Body Name,Date Paid,Transaction Number,Amount,Supplier Name,Supplier Type,Expense Area,Cost Centre Description,Expense Type
Cambridgeshire County Council,01-Jun-23,51301995952,"-2,071.44",FENLAND DISTRICT COUNCIL,OTHER PUBLIC BODIES,County Farms,County Farms,Council Tax
Cambridgeshire County Council,01-Jun-23,51301995090,"-2,059.00",OFSTED,OTHER PUBLIC BODIES,Regional Adoption Agency,Regional Adoption Agency,Subscriptions
Cambridgeshire County Council,01-Jun-23,51301994340,678.27,Dafna Lender,COMPANY,Regional Adoption Agency,Regional Adoption Agency,Staff Training & Development
Cambridgeshire County Council,01-Jun-23,51301995091,"2,059.00",OFSTED,OTHER PUBLIC BODIES,Regional Adoption Agency,Regional Adoption Agency,Subscriptions
Cambridgeshire County Council,02-Jun-23,51301996074,"-51,102.54",MLL Telecom Limited,TRADE SUPPLIER,ICT Service,ICT Service Eastnet,Network Support Contracts
Cambridgeshire County Council,02-Jun-23,51301996087,"-15,964.33",MLL Telecom Limited,TRADE SUPPLIER,Corporate IT Managed,Networks,Computer hardware - purchase
Cambridgeshire County Council,02-Jun-23,51301995821,"-9,896.74",BROOK HEALTHCARE,CARE ESTABLISHMENT,OPPD - Cost of Care - City South Blocks,City and South - Long term blocks,Residential Care
Cambridgeshire County Council,02-Jun-23,51301995821,"-9,896.74",BROOK HEALTHCARE,CARE ESTABLISHMENT,OPPD - Cost of Care - City South Blocks,City and South - Long term blocks,Residential Care
Cambridgeshire County Council,02-Jun-23,51301995821,"-9,896.74",BROOK HEALTHCARE,CARE ESTABLISHMENT,OPPD - Cost of Care - City South Blocks,City and South - Long term blocks,Residential Care
Cambridgeshire County Council,02-Jun-23,51301995821,"-9,896.74",BROOK HEALTHCARE,CARE ESTABLISHMENT,OPPD - Cost of Care - City South Blocks,City and South - Long term blocks,Residential Care
Cambridgeshire County Council,02-Jun-23,51301995821,"-9,896.74",BROOK HEALTHCARE,CARE ESTABLISHMENT,OPPD - Cost of Care - City South Blocks,City and South - Long term blocks,Residential Care
Cambridgeshire County Council,02-Jun-23,51301995821,"-9,896.74",BROOK HEALTHCARE,CARE ESTABLISHMENT,OPPD - Cost of Care - City South Blocks,City and South - Long term blocks,Residential Care
Cambridgeshire County Council,02-Jun-23,51301995821,"-9,896.74",BROOK HEALTHCARE,CARE ESTABLISHMENT,OPPD - Cost of Care - City South Blocks,City and South - Long term blocks,Residential Care
Cambridgeshire County Council,02-Jun-23,51301995821,"-9,896.74",BROOK HEALTHCARE,CARE ESTABLISHMENT,OPPD - Cost of Care - City South Blocks,City and South - Long term blocks,Residential Care
Cambridgeshire County Council,02-Jun-23,51301995821,"-9,896.74",BROOK HEALTHCARE,CARE ESTABLISHMENT,OPPD - Cost of Care - City South Blocks,City and South - Long term blocks,Residential Care
Cambridgeshire County Council,02-Jun-23,51301995821,"-9,896.74",BROOK HEALTHCARE,CARE ESTABLISHMENT,OPPD - Cost of Care - City South Blocks,City and South - Long term blocks,Residential Care
Cambridgeshire County Council,02-Jun-23,51301995821,"-9,896.74",BROOK HEALTHCARE,CARE ESTABLISHMENT,OPPD - Cost of Care - City South Blocks,City and South - Long term blocks,Residential Care
Cambridgeshire County Council,02-Jun-23,51301995821,"-9,896.74",BROOK HEALTHCARE,CARE ESTABLISHMENT,OPPD - Cost of Care - City South Blocks,City and South - Long term blocks,Residential Care
Cambridgeshire County Council,02-Jun-23,51301995821,"-9,896.74",BROOK HEALTHCARE,CARE ESTABLISHMENT,OPPD - Cost of Care - City South Blocks,City and South - Long term blocks,Residential Care
Cambridgeshire County Council,02-Jun-23,51301995821,"-9,896.74",BROOK HEALTHCARE,CARE ESTABLISHMENT,OPPD - Cost of Care - City South Blocks,City and South - Long term blocks,Residential Care
Cambridgeshire County Council,02-Jun-23,51301995821,"-9,896.74",BROOK HEALTHCARE,CARE ESTABLISHMENT,OPPD - Cost of Care - City South Blocks,City and South - Long term blocks,Residential Care
Cambridgeshire County Council,02-Jun-23,51301995821,"-9,896.74",BROOK HEALTHCARE,CARE ESTABLISHMENT,OPPD - Cost of Care - City South Blocks,City and South - Long term blocks,Residential Care
Cambridgeshire County Council,02-Jun-23,51301995821,"-9,896.74",BROOK HEALTHCARE,CARE ESTABLISHMENT,OPPD - Cost of Care - City South Blocks,City and South - Long term blocks,Residential Care
Cambridgeshire County Council,02-Jun-23,51301995821,"-9,896.74",BROOK HEALTHCARE,CARE ESTABLISHMENT,OPPD - Cost of Care - City South Blocks,City and South - Long term blocks,Residential Care
Cambridgeshire County Council,02-Jun-23,51301995821,"-9,896.74",BROOK HEALTHCARE,CARE ESTABLISHMENT,OPPD - Cost of Care - City South Blocks,City and South - Long term blocks,Residential Care
Cambridgeshire County Council,02-Jun-23,51301995821,"-9,896.74",BROOK HEALTHCARE,CARE ESTABLISHMENT,OPPD - Cost of Care - City South Blocks,City and South - Long term blocks,Residential Care
Cambridgeshire County Council,02-Jun-23,51301995821,"-9,896.74",BROOK HEALTHCARE,CARE ESTABLISHMENT,OPPD - Cost of Care - City South Blocks,City and South - Long term blocks,Residential Care
Cambridgeshire County Council,02-Jun-23,51301995821,"-9,896.74",BROOK HEALTHCARE,CARE ESTABLISHMENT,OPPD - Cost of Care - City South Blocks,City and South - Long term blocks,Residential Care
Cambridgeshire County Council,02-Jun-23,51301995821,"-9,896.74",BROOK HEALTHCARE,CARE ESTABLISHMENT,OPPD - Cost of Care - City South Blocks,City and South - Long term blocks,Residential Care
Cambridgeshire County Council,02-Jun-23,51301995821,"-9,896.74",BROOK HEALTHCARE,CARE ESTABLISHMENT,OPPD - Cost of Care - City South Blocks,City and South - Long term blocks,Residential Care
Cambridgeshire County Council,02-Jun-23,51301995821,"-9,896.74",BROOK HEALTHCARE,CARE ESTABLISHMENT,OPPD - Cost of Care - City South Blocks,City and South - Long term blocks,Residential Care
Cambridgeshire County Council,02-Jun-23,51301995821,"-9,896.74",BROOK HEALTHCARE,CARE ESTABLISHMENT,OPPD - Cost of Care - City South Blocks,City and South - Long term blocks,Residential Care
Cambridgeshire County Council,02-Jun-23,51301995821,"-9,896.74",BROOK HEALTHCARE,CARE ESTABLISHMENT,OPPD - Cost of Care - City South Blocks,City and South - Long term blocks,Residential Care
Cambridgeshire County Council,02-Jun-23,51301995821,"-9,896.74",BROOK HEALTHCARE,CARE ESTABLISHMENT,OPPD - Cost of Care - City South Blocks,City and South - Long term blocks,Residential Care
Cambridgeshire County Council,02-Jun-23,51301995821,"-9,896.74",BROOK HEALTHCARE,CARE ESTABLISHMENT,OPPD - Cost of Care - City South Blocks,City and South - Long term blocks,Residential Care
Cambridgeshire County Council,02-Jun-23,51301995821,"-8,482.92",BROOK HEALTHCARE,CARE ESTABLISHMENT,OPPD - Cost of Care - City South Blocks,City and South - Long term blocks,Residential Care
Cambridgeshire County Council,02-Jun-23,51301995821,"-7,069.10",BROOK HEALTHCARE,CARE ESTABLISHMENT,OPPD - Cost of Care - City South Blocks,City and South - Long term blocks,Residential Care
Cambridgeshire County Council,02-Jun-23,51301996082,"-3,411.00",MLL Telecom Limited,TRADE SUPPLIER,EastNet,EastNet,Data Line - Rental
Cambridgeshire County Council,02-Jun-23,51301995821,"-1,514.81",BROOK HEALTHCARE,CARE ESTABLISHMENT,OPPD - Cost of Care - City South Blocks,City and South - Long term blocks,Residential Care
Cambridgeshire County Council,02-Jun-23,51301996086,"-1,450.37",MLL Telecom Limited,TRADE SUPPLIER,EastNet,EastNet,Data Line - Rental
Cambridgeshire County Council,02-Jun-23,65300040018,-991.62,THE SHADE PRE SCHOOL,NURSERY,Early Years,SEND Specialist Services - SENIF,Care & Ed Partner Organisations
Cambridgeshire County Council,02-Jun-23,51301995222,542.60,Sabanu Care Ltd,COMPANY,Disability Clubs,CamPlay Holiday Clubs,Agency Staff
Cambridgeshire County Council,02-Jun-23,51301995691,569.21,SENSE,CARE ESTABLISHMENT,SEND High Needs Top Up,High Needs Top Up - Post 16,Independent School Placements
Cambridgeshire County Council,02-Jun-23,51301995743,613.86,THORNDOWN PRE-SCHOOL,NURSERY,Early Years,SEND Specialist Services - SENIF,Care & Ed Partner Organisations
Cambridgeshire County Council,02-Jun-23,51301995494,638.82,Pathfinder Legal Services Limited,TRADE SUPPLIER,PD - Ely Crossing,MID - Ely Crossing,Construction - External Professional Fees
Cambridgeshire County Council,02-Jun-23,51301995811,700.00,K RAVIVARUMAN T/A FAIR HAVEN CARE HOME,CARE ESTABLISHMENT,OPPD - Cost of Care - East Cambs - Over 65,East Cambs - O P Team - Care,Residential Care
Cambridgeshire County Council,02-Jun-23,51301995811,700.00,K RAVIVARUMAN T/A FAIR HAVEN CARE HOME,CARE ESTABLISHMENT,OPPD - Cost of Care - East Cambs - Over 65,East Cambs - O P Team - Care,Residential Care
Cambridgeshire County Council,02-Jun-23,51301995811,700.00,K RAVIVARUMAN T/A FAIR HAVEN CARE HOME,CARE ESTABLISHMENT,OPPD - Cost of Care - East Cambs - Over 65,East Cambs - O P Team - Care,Residential Care
Cambridgeshire County Council,02-Jun-23,51301995811,700.00,K RAVIVARUMAN T/A FAIR HAVEN CARE HOME,CARE ESTABLISHMENT,OPPD - Cost of Care - East Cambs - Over 65,East Cambs - O P Team - Care,Residential Care
Cambridgeshire County Council,02-Jun-23,51301995811,700.00,K RAVIVARUMAN T/A FAIR HAVEN CARE HOME,CARE ESTABLISHMENT,OPPD - Cost of Care - East Cambs - Over 65,East Cambs - O P Team - Care,Residential Care
Cambridgeshire County Council,02-Jun-23,51301995811,700.00,K RAVIVARUMAN T/A FAIR HAVEN CARE HOME,CARE ESTABLISHMENT,OPPD - Cost of Care - East Cambs - Over 65,East Cambs - O P Team - Care,Residential Care
Cambridgeshire County Council,02-Jun-23,51301995811,700.00,K RAVIVARUMAN T/A FAIR HAVEN CARE HOME,CARE ESTABLISHMENT,OPPD - Cost of Care - East Cambs - Over 65,East Cambs - O P Team - Care,Residential Care
Cambridgeshire County Council,02-Jun-23,51301995811,700.00,K RAVIVARUMAN T/A FAIR HAVEN CARE HOME,CARE ESTABLISHMENT,OPPD - Cost of Care - East Cambs - Over 65,East Cambs - O P Team - Care,Residential Care
Cambridgeshire County Council,02-Jun-23,51301995811,700.00,K RAVIVARUMAN T/A FAIR HAVEN CARE HOME,CARE ESTABLISHMENT,OPPD - Cost of Care - East Cambs - Over 65,East Cambs - O P Team - Care,Residential Care
Cambridgeshire County Council,02-Jun-23,51301995811,700.00,K RAVIVARUMAN T/A FAIR HAVEN CARE HOME,CARE ESTABLISHMENT,OPPD - Cost of Care - East Cambs - Over 65,East Cambs - O P Team - Care,Residential Care
Cambridgeshire County Council,02-Jun-23,51301995811,700.00,K RAVIVARUMAN T/A FAIR HAVEN CARE HOME,CARE ESTABLISHMENT,OPPD - Cost of Care - East Cambs - Over 65,East Cambs - O P Team - Care,Residential Care
Cambridgeshire County Council,02-Jun-23,51301995810,742.86,WOODLANDS CARE CENTRE,CARE ESTABLISHMENT,OPPD - Cost of Care - City South - Over 65,Older People - City & South - Care,Nursing Care
Cambridgeshire County Council,02-Jun-23,51301995838,743.96,SPRINGFIELD RESIDENTIAL CARE,CARE ESTABLISHMENT,OPPD - Cost of Care - Fenland Blocks,Fenland - Short term blocks,Rehabilitation And Respite Care
Cambridgeshire County Council,02-Jun-23,51301995838,743.96,SPRINGFIELD RESIDENTIAL CARE,CARE ESTABLISHMENT,OPPD - Cost of Care - Fenland Blocks,Fenland - Short term blocks,Rehabilitation And Respite Care
Cambridgeshire County Council,02-Jun-23,51301995838,743.96,SPRINGFIELD RESIDENTIAL CARE,CARE ESTABLISHMENT,OPPD - Cost of Care - Fenland Blocks,Fenland - Short term blocks,Rehabilitation And Respite Care
Cambridgeshire County Council,02-Jun-23,51301995838,743.96,SPRINGFIELD RESIDENTIAL CARE,CARE ESTABLISHMENT,OPPD - Cost of Care - Fenland Blocks,Fenland - Short term blocks,Rehabilitation And Respite Care
Cambridgeshire County Council,02-Jun-23,51301995812,750.00,LILY HOUSE,CARE ESTABLISHMENT,OPPD - Cost of Care - East Cambs - Over 65,East Cambs - O P Team - Care,Residential Care
Cambridgeshire County Council,02-Jun-23,51301995812,750.00,LILY HOUSE,CARE ESTABLISHMENT,OPPD - Cost of Care - East Cambs - Over 65,East Cambs - O P Team - Care,Residential Care
Cambridgeshire County Council,02-Jun-23,51301995812,750.00,LILY HOUSE,CARE ESTABLISHMENT,OPPD - Cost of Care - East Cambs - Over 65,East Cambs - O P Team - Care,Residential Care
Cambridgeshire County Council,02-Jun-23,51301995812,750.00,LILY HOUSE,CARE ESTABLISHMENT,OPPD - Cost of Care - East Cambs - Over 65,East Cambs - O P Team - Care,Residential Care
Cambridgeshire County Council,02-Jun-23,51301984573,750.00,Peritia Training Ltd,COMPANY,Early Years,Forest School Qualifications,Staff Training & Development
Cambridgeshire County Council,02-Jun-23,51301995809,750.00,THE CAMBRIDGE HOUSING SOCIETY LTD,CARE ESTABLISHMENT,OPPD - Cost of Care - City South - Over 65,Older People - City & South - Care,Residential Care
Cambridgeshire County Council,02-Jun-23,51301995809,750.00,THE CAMBRIDGE HOUSING SOCIETY LTD,CARE ESTABLISHMENT,OPPD - Cost of Care - City South - Over 65,Older People - City & South - Care,Residential Care
Cambridgeshire County Council,02-Jun-23,51301995809,750.00,THE CAMBRIDGE HOUSING SOCIETY LTD,CARE ESTABLISHMENT,OPPD - Cost of Care - City South - Over 65,Older People - City & South - Care,Residential Care
Cambridgeshire County Council,02-Jun-23,51301995809,750.00,THE CAMBRIDGE HOUSING SOCIETY LTD,CARE ESTABLISHMENT,OPPD - Cost of Care - City South - Over 65,Older People - City & South - Care,Residential Care
Cambridgeshire County Council,02-Jun-23,51301995809,750.00,THE CAMBRIDGE HOUSING SOCIETY LTD,CARE ESTABLISHMENT,OPPD - Cost of Care - City South - Over 65,Older People - City & South - Care,Residential Care
Cambridgeshire County Council,02-Jun-23,51301995873,754.60,Maven Healthcare,CARE ESTABLISHMENT,OPPD - Cost of Care - City South Blocks,City and South - Long term blocks,Nursing Care
Cambridgeshire County Council,02-Jun-23,51301995873,754.60,Maven Healthcare,CARE ESTABLISHMENT,OPPD - Cost of Care - City South Blocks,City and South - Long term blocks,Nursing Care
Cambridgeshire County Council,02-Jun-23,51301995873,754.60,Maven Healthcare,CARE ESTABLISHMENT,OPPD - Cost of Care - City South Blocks,City and South - Long term blocks,Nursing Care
Cambridgeshire County Council,02-Jun-23,51301995873,754.60,Maven Healthcare,CARE ESTABLISHMENT,OPPD - Cost of Care - City South Blocks,City and South - Long term blocks,Nursing Care
Cambridgeshire County Council,02-Jun-23,51301995871,763.18,HARDWICK DENE,CARE ESTABLISHMENT,OPPD - Cost of Care - Huntingdon Blocks,Hunts - Short term blocks,Rehabilitation And Respite Care
Cambridgeshire County Council,02-Jun-23,51301995871,763.18,HARDWICK DENE,CARE ESTABLISHMENT,OPPD - Cost of Care - Huntingdon Blocks,Hunts - Short term blocks,Rehabilitation And Respite Care
Cambridgeshire County Council,02-Jun-23,51301995837,763.18,FLORENCE HOUSE(RAMSEY) RESIDENTIAL HOME FOR THE ELDERLY,CARE ESTABLISHMENT,OPPD - Cost of Care - Huntingdon Blocks,Hunts - Short term blocks,Rehabilitation And Respite Care
Cambridgeshire County Council,02-Jun-23,51301995837,763.18,FLORENCE HOUSE(RAMSEY) RESIDENTIAL HOME FOR THE ELDERLY,CARE ESTABLISHMENT,OPPD - Cost of Care - Huntingdon Blocks,Hunts - Short term blocks,Rehabilitation And Respite Care
Cambridgeshire County Council,02-Jun-23,51301995837,763.18,FLORENCE HOUSE(RAMSEY) RESIDENTIAL HOME FOR THE ELDERLY,CARE ESTABLISHMENT,OPPD - Cost of Care - Huntingdon Blocks,Hunts - Short term blocks,Rehabilitation And Respite Care
Cambridgeshire County Council,02-Jun-23,51301995837,763.18,FLORENCE HOUSE(RAMSEY) RESIDENTIAL HOME FOR THE ELDERLY,CARE ESTABLISHMENT,OPPD - Cost of Care - Huntingdon Blocks,Hunts - Short term blocks,Rehabilitation And Respite Care
Cambridgeshire County Council,02-Jun-23,51301995871,763.18,HARDWICK DENE,CARE ESTABLISHMENT,OPPD - Cost of Care - Huntingdon Blocks,Hunts - Short term blocks,Rehabilitation And Respite Care
Cambridgeshire County Council,02-Jun-23,51301995871,763.18,HARDWICK DENE,CARE ESTABLISHMENT,OPPD - Cost of Care - Huntingdon Blocks,Hunts - Short term blocks,Rehabilitation And Respite Care
Cambridgeshire County Council,02-Jun-23,51301995744,771.26,TEVERSHAM C E PRIMARY SCHOOL,EDUCATION,Early Years,SEND Specialist Services - SENIF,SEN Funding
Cambridgeshire County Council,02-Jun-23,51301990322,777.34,AVAILL HEALTHCARE,CARE ESTABLISHMENT,IHPS - South Accommodation Services,8b Wagstaff Close,Agency Staff
Cambridgeshire County Council,02-Jun-23,51301995861,784.74,POTTON VIEW,CARE ESTABLISHMENT,OPPD - Cost of Care - City South Blocks,City and South - Short term blocks,Rehabilitation And Respite Care
Cambridgeshire County Council,02-Jun-23,51301995861,784.74,POTTON VIEW,CARE ESTABLISHMENT,OPPD - Cost of Care - City South Blocks,City and South - Short term blocks,Rehabilitation And Respite Care
Cambridgeshire County Council,02-Jun-23,51301995861,784.74,POTTON VIEW,CARE ESTABLISHMENT,OPPD - Cost of Care - City South Blocks,City and South - Short term blocks,Rehabilitation And Respite Care
Cambridgeshire County Council,02-Jun-23,51301995861,784.74,POTTON VIEW,CARE ESTABLISHMENT,OPPD - Cost of Care - City South Blocks,City and South - Short term blocks,Rehabilitation And Respite Care
Cambridgeshire County Council,02-Jun-23,51301995871,795.52,HARDWICK DENE,CARE ESTABLISHMENT,OPPD - Cost of Care - Huntingdon Blocks,Hunts - Short term blocks,Rehabilitation And Respite Care
Cambridgeshire County Council,02-Jun-23,51301995871,795.52,HARDWICK DENE,CARE ESTABLISHMENT,OPPD - Cost of Care - Huntingdon Blocks,Hunts - Short term blocks,Rehabilitation And Respite Care
Cambridgeshire County Council,02-Jun-23,51301995871,795.52,HARDWICK DENE,CARE ESTABLISHMENT,OPPD - Cost of Care - Huntingdon Blocks,Hunts - Short term blocks,Rehabilitation And Respite Care
Cambridgeshire County Council,02-Jun-23,51301995871,795.52,HARDWICK DENE,CARE ESTABLISHMENT,OPPD - Cost of Care - Huntingdon Blocks,Hunts - Short term blocks,Rehabilitation And Respite Care
Cambridgeshire County Council,02-Jun-23,51301995813,800.00,POLEBROOK NURSING & RESIDENTIAL HOME,CARE ESTABLISHMENT,OPPD - Cost of Care - Fenland - Over 65,Older People - Fenland - Care,Residential Care
Cambridgeshire County Council,02-Jun-23,51301995813,800.00,POLEBROOK NURSING & RESIDENTIAL HOME,CARE ESTABLISHMENT,OPPD - Cost of Care - Fenland - Over 65,Older People - Fenland - Care,Residential Care
Cambridgeshire County Council,02-Jun-23,51301995813,800.00,POLEBROOK NURSING & RESIDENTIAL HOME,CARE ESTABLISHMENT,OPPD - Cost of Care - Fenland - Over 65,Older People - Fenland - Care,Residential Care
Cambridgeshire County Council,02-Jun-23,51301995813,800.00,POLEBROOK NURSING & RESIDENTIAL HOME,CARE ESTABLISHMENT,OPPD - Cost of Care - Fenland - Over 65,Older People - Fenland - Care,Residential Care
Cambridgeshire County Council,02-Jun-23,51301995171,837.06,Pathfinder Legal Services Limited,TRADE SUPPLIER,PD - Ely Crossing,MID - Ely Crossing,Construction - External Professional Fees
Cambridgeshire County Council,02-Jun-23,51301995758,895.88,Redacted Personal Data,INDIVIDUAL,Cambs Music Head of Instrumental Studies,Cambs Music Instrumental and Vocal Studies,Professional Fees and Hired Services
Cambridgeshire County Council,02-Jun-23,51301995873,945.41,Maven Healthcare,CARE ESTABLISHMENT,OPPD - Cost of Care - City South Blocks,City and South - Long term blocks,Nursing Care
Cambridgeshire County Council,02-Jun-23,51301995873,945.41,Maven Healthcare,CARE ESTABLISHMENT,OPPD - Cost of Care - City South Blocks,City and South - Long term blocks,Nursing Care
Cambridgeshire County Council,02-Jun-23,51301995873,945.41,Maven Healthcare,CARE ESTABLISHMENT,OPPD - Cost of Care - City South Blocks,City and South - Long term blocks,Nursing Care
Cambridgeshire County Council,02-Jun-23,51301995873,945.41,Maven Healthcare,CARE ESTABLISHMENT,OPPD - Cost of Care - City South Blocks,City and South - Long term blocks,Nursing Care
Cambridgeshire County Council,02-Jun-23,51301989848,964.14,AVAILL HEALTHCARE,CARE ESTABLISHMENT,IHPS - South Accommodation Services,IHPS Jasmine House,Agency Staff
Cambridgeshire County Council,02-Jun-23,65300040015,991.62,THE SHADE PRE SCHOOL,NURSERY,Control Accounts,Bank Account - Payables,Bank Account - Payables
Cambridgeshire County Council,02-Jun-23,51301995746,991.62,THE SHADE PRE SCHOOL,NURSERY,Early Years,SEND Specialist Services - SENIF,Care & Ed Partner Organisations
Cambridgeshire County Council,02-Jun-23,51301995527,993.72,Pathfinder Legal Services Limited,TRADE SUPPLIER,PD - Ely Crossing,MID - Ely Crossing,Construction - External Professional Fees
Cambridgeshire County Council,02-Jun-23,51301995901,"1,000.00",V Psychology Ltd,COMPANY,SEND Specialist Services - Education Psychology,SEND Specialist Services - Education Psychology,Professional Fees and Hired Services
Cambridgeshire County Council,02-Jun-23,51301995902,"1,000.00",V Psychology Ltd,COMPANY,SEND Specialist Services - Education Psychology,SEND Specialist Services - Education Psychology,Professional Fees and Hired Services
Cambridgeshire County Council,02-Jun-23,51301995903,"1,000.00",V Psychology Ltd,COMPANY,SEND Specialist Services - Education Psychology,SEND Specialist Services - Education Psychology,Professional Fees and Hired Services
Cambridgeshire County Council,02-Jun-23,51301995798,"1,000.00",EMPATHY CARE SERVICES LIMITED,CARE ESTABLISHMENT,OPPD - Cost of Care - Fenland - Over 65,Older People - Fenland - Care,Domiciliary Care
Cambridgeshire County Council,02-Jun-23,51301995802,"1,000.00",THE CARESTAFF CONSULTING,CARE ESTABLISHMENT,OPPD - Cost of Care - East Cambs - Over 65,East Cambs - O P Team - Care,Domiciliary Care
Cambridgeshire County Council,02-Jun-23,51301995799,"1,000.00",Careuk247 Home Care Ltd,COMPANY,OPPD - Cost of Care - Huntingdon - Over 65,Hunts OP Team - Care,Domiciliary Care
Cambridgeshire County Council,02-Jun-23,51301995803,"1,000.00",Frontal Care Ltd,COMPANY,OPPD - Cost of Care - Huntingdon - Over 65,Hunts OP Team - Care,Domiciliary Care
Cambridgeshire County Council,02-Jun-23,51301995804,"1,000.00",EMPATHY CARE SERVICES LIMITED,CARE ESTABLISHMENT,OPPD - Cost of Care - Huntingdon - Over 65,Hunts OP Team - Care,Domiciliary Care
Cambridgeshire County Council,02-Jun-23,51301995800,"1,000.00",BETTER HOME CARE,CARE ESTABLISHMENT,OPPD - Cost of Care - City South - Over 65,Older People - City & South - Care,Domiciliary Care
Cambridgeshire County Council,02-Jun-23,51301995991,"1,050.00",Redacted Personal Data,INDIVIDUAL,Children's Disability Direct Payments,CSC Direct Payments,Direct Payments
Cambridgeshire County Council,02-Jun-23,51301995816,"1,106.96",WESTMINSTER HOMECARE LIMITED,CARE ESTABLISHMENT,Commissioning - Dom Cars,Hunts - Dom Blocks,Domiciliary Care
Cambridgeshire County Council,02-Jun-23,51301995819,"1,134.52",FORD HOUSE CARE HOME,CARE ESTABLISHMENT,OPPD - Cost of Care - Huntingdon - Over 65,Hunts OP Team - Care,Nursing Care
Cambridgeshire County Council,02-Jun-23,51301995819,"1,134.52",FORD HOUSE CARE HOME,CARE ESTABLISHMENT,OPPD - Cost of Care - Huntingdon - Over 65,Hunts OP Team - Care,Nursing Care
Cambridgeshire County Council,02-Jun-23,51301995819,"1,134.52",FORD HOUSE CARE HOME,CARE ESTABLISHMENT,OPPD - Cost of Care - Huntingdon - Over 65,Hunts OP Team - Care,Nursing Care
Cambridgeshire County Council,02-Jun-23,51301995819,"1,134.52",FORD HOUSE CARE HOME,CARE ESTABLISHMENT,OPPD - Cost of Care - Huntingdon - Over 65,Hunts OP Team - Care,Nursing Care
Cambridgeshire County Council,02-Jun-23,51301995781,"1,138.33",SENSE,CARE ESTABLISHMENT,SEND High Needs Top Up,High Needs Top Up - Post 16,Independent School Placements
Cambridgeshire County Council,02-Jun-23,51301995717,"1,140.00",Sensory Childcare,CARE ESTABLISHMENT,Children's Disability Direct Payments,CSC Direct Payments,Direct Payments
Cambridgeshire County Council,02-Jun-23,51301995807,"1,141.04",THE CAMBRIDGE HOUSING SOCIETY LTD,CARE ESTABLISHMENT,OPPD - Cost of Care - City South - Over 65,Older People - City & South - Care,Residential Care
Cambridgeshire County Council,02-Jun-23,51301995683,"1,166.10",Pathfinder Legal Services Limited,TRADE SUPPLIER,PD - Ely Crossing,MID - Ely Crossing,Construction - External Professional Fees
Cambridgeshire County Council,02-Jun-23,51301989501,"1,186.38",Pathfinder Legal Services Limited,TRADE SUPPLIER,March Future High Street Fund,March Future High Street Fund,Construction - External Professional Fees
Cambridgeshire County Council,02-Jun-23,51301995801,"1,200.00",LITTLEPORT GRANGE,CARE ESTABLISHMENT,OPPD - Cost of Care - East Cambs - Over 65,East Cambs - O P Team - Care,Residential Care
Cambridgeshire County Council,02-Jun-23,51301996007,"1,236.09",COLLEGES NURSERY AND FAMILY CENTRE,NURSERY,Corporate Offices,North Cambridge Children's Centre,Service Charges
Cambridgeshire County Council,02-Jun-23,51301995816,"1,291.45",WESTMINSTER HOMECARE LIMITED,CARE ESTABLISHMENT,Commissioning - Dom Cars,Hunts - Dom Blocks,Domiciliary Care
Cambridgeshire County Council,02-Jun-23,51301995810,"1,300.00",WOODLANDS CARE CENTRE,CARE ESTABLISHMENT,OPPD - Cost of Care - City South - Over 65,Older People - City & South - Care,Nursing Care
Cambridgeshire County Council,02-Jun-23,51301995810,"1,300.00",WOODLANDS CARE CENTRE,CARE ESTABLISHMENT,OPPD - Cost of Care - City South - Over 65,Older People - City & South - Care,Nursing Care
Cambridgeshire County Council,02-Jun-23,51301995810,"1,300.00",WOODLANDS CARE CENTRE,CARE ESTABLISHMENT,OPPD - Cost of Care - City South - Over 65,Older People - City & South - Care,Nursing Care
Cambridgeshire County Council,02-Jun-23,51301995810,"1,300.00",WOODLANDS CARE CENTRE,CARE ESTABLISHMENT,OPPD - Cost of Care - City South - Over 65,Older People - City & South - Care,Nursing Care
Cambridgeshire County Council,02-Jun-23,51301995810,"1,300.00",WOODLANDS CARE CENTRE,CARE ESTABLISHMENT,OPPD - Cost of Care - City South - Over 65,Older People - City & South - Care,Nursing Care
Cambridgeshire County Council,02-Jun-23,51301995810,"1,300.00",WOODLANDS CARE CENTRE,CARE ESTABLISHMENT,OPPD - Cost of Care - City South - Over 65,Older People - City & South - Care,Nursing Care
Cambridgeshire County Council,02-Jun-23,51301995810,"1,300.00",WOODLANDS CARE CENTRE,CARE ESTABLISHMENT,OPPD - Cost of Care - City South - Over 65,Older People - City & South - Care,Nursing Care
Cambridgeshire County Council,02-Jun-23,51301995810,"1,300.00",WOODLANDS CARE CENTRE,CARE ESTABLISHMENT,OPPD - Cost of Care - City South - Over 65,Older People - City & South - Care,Nursing Care
Cambridgeshire County Council,02-Jun-23,51301995810,"1,300.00",WOODLANDS CARE CENTRE,CARE ESTABLISHMENT,OPPD - Cost of Care - City South - Over 65,Older People - City & South - Care,Nursing Care
Cambridgeshire County Council,02-Jun-23,51301995810,"1,300.00",WOODLANDS CARE CENTRE,CARE ESTABLISHMENT,OPPD - Cost of Care - City South - Over 65,Older People - City & South - Care,Nursing Care
Cambridgeshire County Council,02-Jun-23,51301995807,"1,331.21",THE CAMBRIDGE HOUSING SOCIETY LTD,CARE ESTABLISHMENT,OPPD - Cost of Care - City South - Over 65,Older People - City & South - Care,Residential Care
Cambridgeshire County Council,02-Jun-23,51301995807,"1,331.21",THE CAMBRIDGE HOUSING SOCIETY LTD,CARE ESTABLISHMENT,OPPD - Cost of Care - City South - Over 65,Older People - City & South - Care,Residential Care
Cambridgeshire County Council,02-Jun-23,51301995807,"1,331.21",THE CAMBRIDGE HOUSING SOCIETY LTD,CARE ESTABLISHMENT,OPPD - Cost of Care - City South - Over 65,Older People - City & South - Care,Residential Care
Cambridgeshire County Council,02-Jun-23,51301995807,"1,331.21",THE CAMBRIDGE HOUSING SOCIETY LTD,CARE ESTABLISHMENT,OPPD - Cost of Care - City South - Over 65,Older People - City & South - Care,Residential Care
Cambridgeshire County Council,02-Jun-23,51301995807,"1,331.21",THE CAMBRIDGE HOUSING SOCIETY LTD,CARE ESTABLISHMENT,OPPD - Cost of Care - City South - Over 65,Older People - City & South - Care,Residential Care
Cambridgeshire County Council,02-Jun-23,51301995807,"1,331.21",THE CAMBRIDGE HOUSING SOCIETY LTD,CARE ESTABLISHMENT,OPPD - Cost of Care - City South - Over 65,Older People - City & South - Care,Residential Care
Cambridgeshire County Council,02-Jun-23,51301995807,"1,331.21",THE CAMBRIDGE HOUSING SOCIETY LTD,CARE ESTABLISHMENT,OPPD - Cost of Care - City South - Over 65,Older People - City & South - Care,Residential Care
Cambridgeshire County Council,02-Jun-23,51301995807,"1,331.21",THE CAMBRIDGE HOUSING SOCIETY LTD,CARE ESTABLISHMENT,OPPD - Cost of Care - City South - Over 65,Older People - City & South - Care,Residential Care
Cambridgeshire County Council,02-Jun-23,51301995807,"1,331.21",THE CAMBRIDGE HOUSING SOCIETY LTD,CARE ESTABLISHMENT,OPPD - Cost of Care - City South - Over 65,Older People - City & South - Care,Residential Care
Cambridgeshire County Council,02-Jun-23,51301995807,"1,331.21",THE CAMBRIDGE HOUSING SOCIETY LTD,CARE ESTABLISHMENT,OPPD - Cost of Care - City South - Over 65,Older People - City & South - Care,Residential Care
Cambridgeshire County Council,02-Jun-23,51301995807,"1,331.21",THE CAMBRIDGE HOUSING SOCIETY LTD,CARE ESTABLISHMENT,OPPD - Cost of Care - City South - Over 65,Older People - City & South - Care,Residential Care
Cambridgeshire County Council,02-Jun-23,51301995807,"1,331.21",THE CAMBRIDGE HOUSING SOCIETY LTD,CARE ESTABLISHMENT,OPPD - Cost of Care - City South - Over 65,Older People - City & South - Care,Residential Care
Cambridgeshire County Council,02-Jun-23,51301995807,"1,331.21",THE CAMBRIDGE HOUSING SOCIETY LTD,CARE ESTABLISHMENT,OPPD - Cost of Care - City South - Over 65,Older People - City & South - Care,Residential Care
Cambridgeshire County Council,02-Jun-23,51301995807,"1,331.21",THE CAMBRIDGE HOUSING SOCIETY LTD,CARE ESTABLISHMENT,OPPD - Cost of Care - City South - Over 65,Older People - City & South - Care,Residential Care
Cambridgeshire County Council,02-Jun-23,51301995807,"1,331.21",THE CAMBRIDGE HOUSING SOCIETY LTD,CARE ESTABLISHMENT,OPPD - Cost of Care - City South - Over 65,Older People - City & South - Care,Residential Care
Cambridgeshire County Council,02-Jun-23,51301995807,"1,331.21",THE CAMBRIDGE HOUSING SOCIETY LTD,CARE ESTABLISHMENT,OPPD - Cost of Care - City South - Over 65,Older People - City & South - Care,Residential Care
Cambridgeshire County Council,02-Jun-23,51301995807,"1,331.21",THE CAMBRIDGE HOUSING SOCIETY LTD,CARE ESTABLISHMENT,OPPD - Cost of Care - City South - Over 65,Older People - City & South - Care,Residential Care
Cambridgeshire County Council,02-Jun-23,51301995807,"1,331.21",THE CAMBRIDGE HOUSING SOCIETY LTD,CARE ESTABLISHMENT,OPPD - Cost of Care - City South - Over 65,Older People - City & South - Care,Residential Care
Cambridgeshire County Council,02-Jun-23,51301995807,"1,331.21",THE CAMBRIDGE HOUSING SOCIETY LTD,CARE ESTABLISHMENT,OPPD - Cost of Care - City South - Over 65,Older People - City & South - Care,Residential Care
Cambridgeshire County Council,02-Jun-23,51301995807,"1,331.21",THE CAMBRIDGE HOUSING SOCIETY LTD,CARE ESTABLISHMENT,OPPD - Cost of Care - City South - Over 65,Older People - City & South - Care,Residential Care
Cambridgeshire County Council,02-Jun-23,51301995807,"1,331.21",THE CAMBRIDGE HOUSING SOCIETY LTD,CARE ESTABLISHMENT,OPPD - Cost of Care - City South - Over 65,Older People - City & South - Care,Residential Care
Cambridgeshire County Council,02-Jun-23,51301995807,"1,331.21",THE CAMBRIDGE HOUSING SOCIETY LTD,CARE ESTABLISHMENT,OPPD - Cost of Care - City South - Over 65,Older People - City & South - Care,Residential Care
Cambridgeshire County Council,02-Jun-23,51301995807,"1,331.21",THE CAMBRIDGE HOUSING SOCIETY LTD,CARE ESTABLISHMENT,OPPD - Cost of Care - City South - Over 65,Older People - City & South - Care,Residential Care
Cambridgeshire County Council,02-Jun-23,51301995807,"1,331.21",THE CAMBRIDGE HOUSING SOCIETY LTD,CARE ESTABLISHMENT,OPPD - Cost of Care - City South - Over 65,Older People - City & South - Care,Residential Care
Cambridgeshire County Council,02-Jun-23,51301995807,"1,331.21",THE CAMBRIDGE HOUSING SOCIETY LTD,CARE ESTABLISHMENT,OPPD - Cost of Care - City South - Over 65,Older People - City & South - Care,Residential Care
Cambridgeshire County Council,02-Jun-23,51301995807,"1,331.21",THE CAMBRIDGE HOUSING SOCIETY LTD,CARE ESTABLISHMENT,OPPD - Cost of Care - City South - Over 65,Older People - City & South - Care,Residential Care
Cambridgeshire County Council,02-Jun-23,51301995807,"1,331.21",THE CAMBRIDGE HOUSING SOCIETY LTD,CARE ESTABLISHMENT,OPPD - Cost of Care - City South - Over 65,Older People - City & South - Care,Residential Care
Cambridgeshire County Council,02-Jun-23,51301995807,"1,331.21",THE CAMBRIDGE HOUSING SOCIETY LTD,CARE ESTABLISHMENT,OPPD - Cost of Care - City South - Over 65,Older People - City & South - Care,Residential Care
Cambridgeshire County Council,02-Jun-23,51301995807,"1,331.21",THE CAMBRIDGE HOUSING SOCIETY LTD,CARE ESTABLISHMENT,OPPD - Cost of Care - City South - Over 65,Older People - City & South - Care,Residential Care
Cambridgeshire County Council,02-Jun-23,51301995807,"1,331.21",THE CAMBRIDGE HOUSING SOCIETY LTD,CARE ESTABLISHMENT,OPPD - Cost of Care - City South - Over 65,Older People - City & South - Care,Residential Care
Cambridgeshire County Council,02-Jun-23,51301995807,"1,331.21",THE CAMBRIDGE HOUSING SOCIETY LTD,CARE ESTABLISHMENT,OPPD - Cost of Care - City South - Over 65,Older People - City & South - Care,Residential Care
Cambridgeshire County Council,02-Jun-23,51301995807,"1,331.21",THE CAMBRIDGE HOUSING SOCIETY LTD,CARE ESTABLISHMENT,OPPD - Cost of Care - City South - Over 65,Older People - City & South - Care,Residential Care
Cambridgeshire County Council,02-Jun-23,51301995807,"1,331.21",THE CAMBRIDGE HOUSING SOCIETY LTD,CARE ESTABLISHMENT,OPPD - Cost of Care - City South - Over 65,Older People - City & South - Care,Residential Care
Cambridgeshire County Council,02-Jun-23,51301995807,"1,331.21",THE CAMBRIDGE HOUSING SOCIETY LTD,CARE ESTABLISHMENT,OPPD - Cost of Care - City South - Over 65,Older People - City & South - Care,Residential Care
Cambridgeshire County Council,02-Jun-23,51301995807,"1,331.21",THE CAMBRIDGE HOUSING SOCIETY LTD,CARE ESTABLISHMENT,OPPD - Cost of Care - City South - Over 65,Older People - City & South - Care,Residential Care
Cambridgeshire County Council,02-Jun-23,51301995807,"1,331.21",THE CAMBRIDGE HOUSING SOCIETY LTD,CARE ESTABLISHMENT,OPPD - Cost of Care - City South - Over 65,Older People - City & South - Care,Residential Care
Cambridgeshire County Council,02-Jun-23,51301995807,"1,331.21",THE CAMBRIDGE HOUSING SOCIETY LTD,CARE ESTABLISHMENT,OPPD - Cost of Care - City South - Over 65,Older People - City & South - Care,Residential Care
Cambridgeshire County Council,02-Jun-23,51301995807,"1,331.21",THE CAMBRIDGE HOUSING SOCIETY LTD,CARE ESTABLISHMENT,OPPD - Cost of Care - City South - Over 65,Older People - City & South - Care,Residential Care
Cambridgeshire County Council,02-Jun-23,51301995807,"1,331.21",THE CAMBRIDGE HOUSING SOCIETY LTD,CARE ESTABLISHMENT,OPPD - Cost of Care - City South - Over 65,Older People - City & South - Care,Residential Care
Cambridgeshire County Council,02-Jun-23,51301995807,"1,331.21",THE CAMBRIDGE HOUSING SOCIETY LTD,CARE ESTABLISHMENT,OPPD - Cost of Care - City South - Over 65,Older People - City & South - Care,Residential Care
Cambridgeshire County Council,02-Jun-23,51301995807,"1,331.21",THE CAMBRIDGE HOUSING SOCIETY LTD,CARE ESTABLISHMENT,OPPD - Cost of Care - City South - Over 65,Older People - City & South - Care,Residential Care
Cambridgeshire County Council,02-Jun-23,51301995807,"1,331.21",THE CAMBRIDGE HOUSING SOCIETY LTD,CARE ESTABLISHMENT,OPPD - Cost of Care - City South - Over 65,Older People - City & South - Care,Residential Care
Cambridgeshire County Council,02-Jun-23,51301995807,"1,331.21",THE CAMBRIDGE HOUSING SOCIETY LTD,CARE ESTABLISHMENT,OPPD - Cost of Care - City South - Over 65,Older People - City & South - Care,Residential Care
Cambridgeshire County Council,02-Jun-23,51301995807,"1,331.21",THE CAMBRIDGE HOUSING SOCIETY LTD,CARE ESTABLISHMENT,OPPD - Cost of Care - City South - Over 65,Older People - City & South - Care,Residential Care
Cambridgeshire County Council,02-Jun-23,51301995807,"1,331.21",THE CAMBRIDGE HOUSING SOCIETY LTD,CARE ESTABLISHMENT,OPPD - Cost of Care - City South - Over 65,Older People - City & South - Care,Residential Care
Cambridgeshire County Council,02-Jun-23,51301995807,"1,331.21",THE CAMBRIDGE HOUSING SOCIETY LTD,CARE ESTABLISHMENT,OPPD - Cost of Care - City South - Over 65,Older People - City & South - Care,Residential Care
Cambridgeshire County Council,02-Jun-23,51301995807,"1,331.21",THE CAMBRIDGE HOUSING SOCIETY LTD,CARE ESTABLISHMENT,OPPD - Cost of Care - City South - Over 65,Older People - City & South - Care,Residential Care
Cambridgeshire County Council,02-Jun-23,51301995807,"1,331.21",THE CAMBRIDGE HOUSING SOCIETY LTD,CARE ESTABLISHMENT,OPPD - Cost of Care - City South - Over 65,Older People - City & South - Care,Residential Care
Cambridgeshire County Council,02-Jun-23,51301995807,"1,331.21",THE CAMBRIDGE HOUSING SOCIETY LTD,CARE ESTABLISHMENT,OPPD - Cost of Care - City South - Over 65,Older People - City & South - Care,Residential Care
Cambridgeshire County Council,02-Jun-23,51301995807,"1,331.21",THE CAMBRIDGE HOUSING SOCIETY LTD,CARE ESTABLISHMENT,OPPD - Cost of Care - City South - Over 65,Older People - City & South - Care,Residential Care
Cambridgeshire County Council,02-Jun-23,51301995807,"1,331.21",THE CAMBRIDGE HOUSING SOCIETY LTD,CARE ESTABLISHMENT,OPPD - Cost of Care - City South - Over 65,Older People - City & South - Care,Residential Care
Cambridgeshire County Council,02-Jun-23,51301995807,"1,331.21",THE CAMBRIDGE HOUSING SOCIETY LTD,CARE ESTABLISHMENT,OPPD - Cost of Care - City South - Over 65,Older People - City & South - Care,Residential Care
Cambridgeshire County Council,02-Jun-23,51301995807,"1,331.21",THE CAMBRIDGE HOUSING SOCIETY LTD,CARE ESTABLISHMENT,OPPD - Cost of Care - City South - Over 65,Older People - City & South - Care,Residential Care
Cambridgeshire County Council,02-Jun-23,51301995807,"1,331.21",THE CAMBRIDGE HOUSING SOCIETY LTD,CARE ESTABLISHMENT,OPPD - Cost of Care - City South - Over 65,Older People - City & South - Care,Residential Care
Cambridgeshire County Council,02-Jun-23,51301995807,"1,331.21",THE CAMBRIDGE HOUSING SOCIETY LTD,CARE ESTABLISHMENT,OPPD - Cost of Care - City South - Over 65,Older People - City & South - Care,Residential Care
Cambridgeshire County Council,02-Jun-23,51301995807,"1,331.21",THE CAMBRIDGE HOUSING SOCIETY LTD,CARE ESTABLISHMENT,OPPD - Cost of Care - City South - Over 65,Older People - City & South - Care,Residential Care
Cambridgeshire County Council,02-Jun-23,51301995807,"1,331.21",THE CAMBRIDGE HOUSING SOCIETY LTD,CARE ESTABLISHMENT,OPPD - Cost of Care - City South - Over 65,Older People - City & South - Care,Residential Care
Cambridgeshire County Council,02-Jun-23,51301995807,"1,331.21",THE CAMBRIDGE HOUSING SOCIETY LTD,CARE ESTABLISHMENT,OPPD - Cost of Care - City South - Over 65,Older People - City & South - Care,Residential Care
Cambridgeshire County Council,02-Jun-23,51301995807,"1,331.21",THE CAMBRIDGE HOUSING SOCIETY LTD,CARE ESTABLISHMENT,OPPD - Cost of Care - City South - Over 65,Older People - City & South - Care,Residential Care
Cambridgeshire County Council,02-Jun-23,51301995807,"1,331.21",THE CAMBRIDGE HOUSING SOCIETY LTD,CARE ESTABLISHMENT,OPPD - Cost of Care - City South - Over 65,Older People - City & South - Care,Residential Care
Cambridgeshire County Council,02-Jun-23,51301995807,"1,331.21",THE CAMBRIDGE HOUSING SOCIETY LTD,CARE ESTABLISHMENT,OPPD - Cost of Care - City South - Over 65,Older People - City & South - Care,Residential Care
Cambridgeshire County Council,02-Jun-23,51301995965,"1,388.40",DWF Law LLP Client Account,COMPANY,Insurance Fund,Liability,Insurance Claims Paid
Cambridgeshire County Council,02-Jun-23,51301995846,"1,466.08",AISLING LODGE (MD CARE HOMES),CARE ESTABLISHMENT,OPPD - Cost of Care - Huntingdon Blocks,Hunts - Long term blocks,Residential Care
Cambridgeshire County Council,02-Jun-23,51301995846,"1,466.08",AISLING LODGE (MD CARE HOMES),CARE ESTABLISHMENT,OPPD - Cost of Care - Huntingdon Blocks,Hunts - Long term blocks,Residential Care
Cambridgeshire County Council,02-Jun-23,51301995846,"1,466.08",AISLING LODGE (MD CARE HOMES),CARE ESTABLISHMENT,OPPD - Cost of Care - Huntingdon Blocks,Hunts - Long term blocks,Residential Care
Cambridgeshire County Council,02-Jun-23,51301995846,"1,466.08",AISLING LODGE (MD CARE HOMES),CARE ESTABLISHMENT,OPPD - Cost of Care - Huntingdon Blocks,Hunts - Long term blocks,Residential Care
Cambridgeshire County Council,02-Jun-23,51301995837,"1,466.08",FLORENCE HOUSE(RAMSEY) RESIDENTIAL HOME FOR THE ELDERLY,CARE ESTABLISHMENT,OPPD - Cost of Care - Huntingdon Blocks,Hunts - Short term blocks,Rehabilitation And Respite Care
Cambridgeshire County Council,02-Jun-23,51301995837,"1,466.08",FLORENCE HOUSE(RAMSEY) RESIDENTIAL HOME FOR THE ELDERLY,CARE ESTABLISHMENT,OPPD - Cost of Care - Huntingdon Blocks,Hunts - Short term blocks,Rehabilitation And Respite Care
Cambridgeshire County Council,02-Jun-23,51301995837,"1,466.08",FLORENCE HOUSE(RAMSEY) RESIDENTIAL HOME FOR THE ELDERLY,CARE ESTABLISHMENT,OPPD - Cost of Care - Huntingdon Blocks,Hunts - Short term blocks,Rehabilitation And Respite Care
Cambridgeshire County Council,02-Jun-23,51301995837,"1,466.08",FLORENCE HOUSE(RAMSEY) RESIDENTIAL HOME FOR THE ELDERLY,CARE ESTABLISHMENT,OPPD - Cost of Care - Huntingdon Blocks,Hunts - Short term blocks,Rehabilitation And Respite Care
Cambridgeshire County Council,02-Jun-23,51301995858,"1,491.96",LANGLEY LODGE RESIDENTIAL CARE HOME,CARE ESTABLISHMENT,OPPD - Cost of Care - Fenland Blocks,Fenland - Long term blocks,Residential Care
Cambridgeshire County Council,02-Jun-23,51301995858,"1,491.96",LANGLEY LODGE RESIDENTIAL CARE HOME,CARE ESTABLISHMENT,OPPD - Cost of Care - Fenland Blocks,Fenland - Long term blocks,Residential Care
Cambridgeshire County Council,02-Jun-23,51301995858,"1,491.96",LANGLEY LODGE RESIDENTIAL CARE HOME,CARE ESTABLISHMENT,OPPD - Cost of Care - Fenland Blocks,Fenland - Long term blocks,Residential Care
Cambridgeshire County Council,02-Jun-23,51301995858,"1,491.96",LANGLEY LODGE RESIDENTIAL CARE HOME,CARE ESTABLISHMENT,OPPD - Cost of Care - Fenland Blocks,Fenland - Long term blocks,Residential Care
Cambridgeshire County Council,02-Jun-23,51301995876,"1,491.96",MM2 Care Homes Ltd t/a The Chestnuts MM2 (Wisbech),COMPANY,OPPD - Cost of Care - Fenland Blocks,Fenland - Long term blocks,Residential Care
Cambridgeshire County Council,02-Jun-23,51301995876,"1,491.96",MM2 Care Homes Ltd t/a The Chestnuts MM2 (Wisbech),COMPANY,OPPD - Cost of Care - Fenland Blocks,Fenland - Long term blocks,Residential Care
Cambridgeshire County Council,02-Jun-23,51301995876,"1,491.96",MM2 Care Homes Ltd t/a The Chestnuts MM2 (Wisbech),COMPANY,OPPD - Cost of Care - Fenland Blocks,Fenland - Long term blocks,Residential Care
Cambridgeshire County Council,02-Jun-23,51301995876,"1,491.96",MM2 Care Homes Ltd t/a The Chestnuts MM2 (Wisbech),COMPANY,OPPD - Cost of Care - Fenland Blocks,Fenland - Long term blocks,Residential Care
Cambridgeshire County Council,02-Jun-23,51301995861,"1,509.20",POTTON VIEW,CARE ESTABLISHMENT,OPPD - Cost of Care - City South Blocks,City and South - Short term blocks,Rehabilitation And Respite Care
Cambridgeshire County Council,02-Jun-23,51301995861,"1,509.20",POTTON VIEW,CARE ESTABLISHMENT,OPPD - Cost of Care - City South Blocks,City and South - Short term blocks,Rehabilitation And Respite Care
Cambridgeshire County Council,02-Jun-23,51301995861,"1,509.20",POTTON VIEW,CARE ESTABLISHMENT,OPPD - Cost of Care - City South Blocks,City and South - Short term blocks,Rehabilitation And Respite Care
Cambridgeshire County Council,02-Jun-23,51301995861,"1,509.20",POTTON VIEW,CARE ESTABLISHMENT,OPPD - Cost of Care - City South Blocks,City and South - Short term blocks,Rehabilitation And Respite Care
Cambridgeshire County Council,02-Jun-23,51301995829,"1,509.20",THE CAMBRIDGE HOUSING SOCIETY LTD,CARE ESTABLISHMENT,OPPD - Cost of Care - City South Blocks,City and South - Long term blocks,Residential Care
Cambridgeshire County Council,02-Jun-23,51301995829,"1,509.20",THE CAMBRIDGE HOUSING SOCIETY LTD,CARE ESTABLISHMENT,OPPD - Cost of Care - City South Blocks,City and South - Long term blocks,Residential Care
Cambridgeshire County Council,02-Jun-23,51301995829,"1,509.20",THE CAMBRIDGE HOUSING SOCIETY LTD,CARE ESTABLISHMENT,OPPD - Cost of Care - City South Blocks,City and South - Long term blocks,Residential Care
Cambridgeshire County Council,02-Jun-23,51301995868,"1,509.20",THE CAMBRIDGE HOUSING SOCIETY LTD,CARE ESTABLISHMENT,OPPD - Cost of Care - City South Blocks,City and South - Long term blocks,Residential Care
Cambridgeshire County Council,02-Jun-23,51301995868,"1,509.20",THE CAMBRIDGE HOUSING SOCIETY LTD,CARE ESTABLISHMENT,OPPD - Cost of Care - City South Blocks,City and South - Long term blocks,Residential Care
Cambridgeshire County Council,02-Jun-23,51301995868,"1,509.20",THE CAMBRIDGE HOUSING SOCIETY LTD,CARE ESTABLISHMENT,OPPD - Cost of Care - City South Blocks,City and South - Long term blocks,Residential Care
Cambridgeshire County Council,02-Jun-23,51301995829,"1,509.20",THE CAMBRIDGE HOUSING SOCIETY LTD,CARE ESTABLISHMENT,OPPD - Cost of Care - City South Blocks,City and South - Long term blocks,Residential Care
Cambridgeshire County Council,02-Jun-23,51301995868,"1,509.20",THE CAMBRIDGE HOUSING SOCIETY LTD,CARE ESTABLISHMENT,OPPD - Cost of Care - City South Blocks,City and South - Long term blocks,Residential Care
Cambridgeshire County Council,02-Jun-23,51301995832,"1,509.20",ORCHARD HOUSE (SAWSTON),CARE ESTABLISHMENT,OPPD - Cost of Care - City South Blocks,City and South - Long term blocks,Residential Care
Cambridgeshire County Council,02-Jun-23,51301995832,"1,509.20",ORCHARD HOUSE (SAWSTON),CARE ESTABLISHMENT,OPPD - Cost of Care - City South Blocks,City and South - Long term blocks,Residential Care
Cambridgeshire County Council,02-Jun-23,51301995832,"1,509.20",ORCHARD HOUSE (SAWSTON),CARE ESTABLISHMENT,OPPD - Cost of Care - City South Blocks,City and South - Long term blocks,Residential Care
Cambridgeshire County Council,02-Jun-23,51301995832,"1,509.20",ORCHARD HOUSE (SAWSTON),CARE ESTABLISHMENT,OPPD - Cost of Care - City South Blocks,City and South - Long term blocks,Residential Care
Cambridgeshire County Council,02-Jun-23,51301995862,"1,509.20",Southwell Court,CARE ESTABLISHMENT,OPPD - Cost of Care - City South Blocks,City and South - Short term blocks,Rehabilitation And Respite Care
Cambridgeshire County Council,02-Jun-23,51301995862,"1,509.20",Southwell Court,CARE ESTABLISHMENT,OPPD - Cost of Care - City South Blocks,City and South - Short term blocks,Rehabilitation And Respite Care
Cambridgeshire County Council,02-Jun-23,51301995862,"1,509.20",Southwell Court,CARE ESTABLISHMENT,OPPD - Cost of Care - City South Blocks,City and South - Short term blocks,Rehabilitation And Respite Care
Cambridgeshire County Council,02-Jun-23,51301995862,"1,509.20",Southwell Court,CARE ESTABLISHMENT,OPPD - Cost of Care - City South Blocks,City and South - Short term blocks,Rehabilitation And Respite Care
Cambridgeshire County Council,02-Jun-23,51301995840,"1,530.76",NELSON LODGE,CARE ESTABLISHMENT,OPPD - Cost of Care - Huntingdon Blocks,Hunts - Long term blocks,Residential Care
Cambridgeshire County Council,02-Jun-23,51301995840,"1,530.76",NELSON LODGE,CARE ESTABLISHMENT,OPPD - Cost of Care - Huntingdon Blocks,Hunts - Long term blocks,Residential Care
Cambridgeshire County Council,02-Jun-23,51301995840,"1,530.76",NELSON LODGE,CARE ESTABLISHMENT,OPPD - Cost of Care - Huntingdon Blocks,Hunts - Long term blocks,Residential Care
Cambridgeshire County Council,02-Jun-23,51301995840,"1,530.76",NELSON LODGE,CARE ESTABLISHMENT,OPPD - Cost of Care - Huntingdon Blocks,Hunts - Long term blocks,Residential Care
Cambridgeshire County Council,02-Jun-23,51301995845,"1,530.76",THE HILLINGS LIMITED,CARE ESTABLISHMENT,OPPD - Cost of Care - Huntingdon Blocks,Hunts - Long term blocks,Residential Care
Cambridgeshire County Council,02-Jun-23,51301995845,"1,530.76",THE HILLINGS LIMITED,CARE ESTABLISHMENT,OPPD - Cost of Care - Huntingdon Blocks,Hunts - Long term blocks,Residential Care
Cambridgeshire County Council,02-Jun-23,51301995845,"1,530.76",THE HILLINGS LIMITED,CARE ESTABLISHMENT,OPPD - Cost of Care - Huntingdon Blocks,Hunts - Long term blocks,Residential Care
Cambridgeshire County Council,02-Jun-23,51301995845,"1,530.76",THE HILLINGS LIMITED,CARE ESTABLISHMENT,OPPD - Cost of Care - Huntingdon Blocks,Hunts - Long term blocks,Residential Care
Cambridgeshire County Council,02-Jun-23,51301996002,"1,531.20",DWF Law LLP Client Account,COMPANY,Insurance Fund,Liability,Insurance Claims Paid
Cambridgeshire County Council,02-Jun-23,51301995862,"1,569.48",Southwell Court,CARE ESTABLISHMENT,OPPD - Cost of Care - City South Blocks,City and South - Short term blocks,Rehabilitation And Respite Care
Cambridgeshire County Council,02-Jun-23,51301995862,"1,569.48",Southwell Court,CARE ESTABLISHMENT,OPPD - Cost of Care - City South Blocks,City and South - Short term blocks,Rehabilitation And Respite Care
Cambridgeshire County Council,02-Jun-23,51301995862,"1,569.48",Southwell Court,CARE ESTABLISHMENT,OPPD - Cost of Care - City South Blocks,City and South - Short term blocks,Rehabilitation And Respite Care
Cambridgeshire County Council,02-Jun-23,51301995862,"1,569.48",Southwell Court,CARE ESTABLISHMENT,OPPD - Cost of Care - City South Blocks,City and South - Short term blocks,Rehabilitation And Respite Care
Cambridgeshire County Council,02-Jun-23,51301995867,"1,573.88",ETHELDRED HOUSE,CARE ESTABLISHMENT,OPPD - Cost of Care - City South Blocks,City and South - Long term blocks,Nursing Care
Cambridgeshire County Council,02-Jun-23,51301995867,"1,573.88",ETHELDRED HOUSE,CARE ESTABLISHMENT,OPPD - Cost of Care - City South Blocks,City and South - Long term blocks,Nursing Care
Cambridgeshire County Council,02-Jun-23,51301995873,"1,573.88",Maven Healthcare,CARE ESTABLISHMENT,OPPD - Cost of Care - City South Blocks,City and South - Long term blocks,Nursing Care
Cambridgeshire County Council,02-Jun-23,51301995873,"1,573.88",Maven Healthcare,CARE ESTABLISHMENT,OPPD - Cost of Care - City South Blocks,City and South - Long term blocks,Nursing Care
Cambridgeshire County Council,02-Jun-23,51301995873,"1,573.88",Maven Healthcare,CARE ESTABLISHMENT,OPPD - Cost of Care - City South Blocks,City and South - Long term blocks,Nursing Care
Cambridgeshire County Council,02-Jun-23,51301995873,"1,573.88",Maven Healthcare,CARE ESTABLISHMENT,OPPD - Cost of Care - City South Blocks,City and South - Long term blocks,Nursing Care
Cambridgeshire County Council,02-Jun-23,51301995867,"1,573.88",ETHELDRED HOUSE,CARE ESTABLISHMENT,OPPD - Cost of Care - City South Blocks,City and South - Long term blocks,Nursing Care
Cambridgeshire County Council,02-Jun-23,51301995867,"1,573.88",ETHELDRED HOUSE,CARE ESTABLISHMENT,OPPD - Cost of Care - City South Blocks,City and South - Long term blocks,Nursing Care
Cambridgeshire County Council,02-Jun-23,51301995808,"1,600.00",WOODLANDS CARE CENTRE,CARE ESTABLISHMENT,OPPD - Under 65 - City South,OPPD - Under 65 - City South,Nursing Care
Cambridgeshire County Council,02-Jun-23,51301995808,"1,600.00",WOODLANDS CARE CENTRE,CARE ESTABLISHMENT,OPPD - Under 65 - City South,OPPD - Under 65 - City South,Nursing Care
Cambridgeshire County Council,02-Jun-23,51301995808,"1,600.00",WOODLANDS CARE CENTRE,CARE ESTABLISHMENT,OPPD - Under 65 - City South,OPPD - Under 65 - City South,Nursing Care
Cambridgeshire County Council,02-Jun-23,51301995808,"1,600.00",WOODLANDS CARE CENTRE,CARE ESTABLISHMENT,OPPD - Under 65 - City South,OPPD - Under 65 - City South,Nursing Care
Cambridgeshire County Council,02-Jun-23,51301995808,"1,600.00",WOODLANDS CARE CENTRE,CARE ESTABLISHMENT,OPPD - Under 65 - City South,OPPD - Under 65 - City South,Nursing Care
Cambridgeshire County Council,02-Jun-23,51301995808,"1,600.00",WOODLANDS CARE CENTRE,CARE ESTABLISHMENT,OPPD - Under 65 - City South,OPPD - Under 65 - City South,Nursing Care
Cambridgeshire County Council,02-Jun-23,51301995821,"1,615.79",BROOK HEALTHCARE,CARE ESTABLISHMENT,OPPD - Cost of Care - City South Blocks,City and South - Long term blocks,Residential Care
Cambridgeshire County Council,02-Jun-23,51301995830,"1,648.03",BROOKFIELD CARE (Radis Commnity Care),CARE ESTABLISHMENT,Commissioning - Dom Cars,Hancock-Funded Dom-Cars,Domiciliary Care
Cambridgeshire County Council,02-Jun-23,51301995830,"1,648.03",BROOKFIELD CARE (Radis Commnity Care),CARE ESTABLISHMENT,Commissioning - Dom Cars,Hancock-Funded Dom-Cars,Domiciliary Care
Cambridgeshire County Council,02-Jun-23,51301995830,"1,648.03",BROOKFIELD CARE (Radis Commnity Care),CARE ESTABLISHMENT,Commissioning - Dom Cars,Hancock-Funded Dom-Cars,Domiciliary Care
Cambridgeshire County Council,02-Jun-23,51301995830,"1,648.03",BROOKFIELD CARE (Radis Commnity Care),CARE ESTABLISHMENT,Commissioning - Dom Cars,Hancock-Funded Dom-Cars,Domiciliary Care
Cambridgeshire County Council,02-Jun-23,51301995724,"1,796.52",Redacted Personal Data,FOSTER PARENT,Regional Adoption Agency,Regional Adoption Agency,Car mileage and allowances - other
Cambridgeshire County Council,02-Jun-23,51301995819,"1,832.60",FORD HOUSE CARE HOME,CARE ESTABLISHMENT,OPPD - Cost of Care - Huntingdon - Over 65,Hunts OP Team - Care,Nursing Care
Cambridgeshire County Council,02-Jun-23,51301995819,"1,832.60",FORD HOUSE CARE HOME,CARE ESTABLISHMENT,OPPD - Cost of Care - Huntingdon - Over 65,Hunts OP Team - Care,Nursing Care
Cambridgeshire County Council,02-Jun-23,51301995819,"1,832.60",FORD HOUSE CARE HOME,CARE ESTABLISHMENT,OPPD - Cost of Care - Huntingdon - Over 65,Hunts OP Team - Care,Nursing Care
Cambridgeshire County Council,02-Jun-23,51301995819,"1,832.60",FORD HOUSE CARE HOME,CARE ESTABLISHMENT,OPPD - Cost of Care - Huntingdon - Over 65,Hunts OP Team - Care,Nursing Care
Cambridgeshire County Council,02-Jun-23,51301995906,"1,845.38",SENSE,CARE ESTABLISHMENT,SEND High Needs Top Up,High Needs Top Up - Post 16,Independent School Placements
Cambridgeshire County Council,02-Jun-23,51301995709,"1,906.67",Redacted Personal Data,PARENT/GUARDIAN,Children's Disability Direct Payments,CSC Direct Payments,Direct Payments
Cambridgeshire County Council,02-Jun-23,51301995835,"2,144.13",K RAVIVARUMAN T/A FAIR HAVEN CARE HOME,CARE ESTABLISHMENT,OPPD - Cost of Care - East Cambs Blocks,East Cambs � Long term Blocks,Residential Care
Cambridgeshire County Council,02-Jun-23,51301995835,"2,144.13",K RAVIVARUMAN T/A FAIR HAVEN CARE HOME,CARE ESTABLISHMENT,OPPD - Cost of Care - East Cambs Blocks,East Cambs � Long term Blocks,Residential Care
Cambridgeshire County Council,02-Jun-23,51301995835,"2,144.13",K RAVIVARUMAN T/A FAIR HAVEN CARE HOME,CARE ESTABLISHMENT,OPPD - Cost of Care - East Cambs Blocks,East Cambs � Long term Blocks,Residential Care
Cambridgeshire County Council,02-Jun-23,51301995835,"2,144.13",K RAVIVARUMAN T/A FAIR HAVEN CARE HOME,CARE ESTABLISHMENT,OPPD - Cost of Care - East Cambs Blocks,East Cambs � Long term Blocks,Residential Care
Cambridgeshire County Council,02-Jun-23,51301995863,"2,144.13",BLACK SWAN CARE GROUP LTD,CARE ESTABLISHMENT,OPPD - Cost of Care - Fenland Blocks,Fenland - Long term blocks,Residential Care
Cambridgeshire County Council,02-Jun-23,51301995863,"2,144.13",BLACK SWAN CARE GROUP LTD,CARE ESTABLISHMENT,OPPD - Cost of Care - Fenland Blocks,Fenland - Long term blocks,Residential Care
Cambridgeshire County Council,02-Jun-23,51301995863,"2,144.13",BLACK SWAN CARE GROUP LTD,CARE ESTABLISHMENT,OPPD - Cost of Care - Fenland Blocks,Fenland - Long term blocks,Residential Care
Cambridgeshire County Council,02-Jun-23,51301995863,"2,144.13",BLACK SWAN CARE GROUP LTD,CARE ESTABLISHMENT,OPPD - Cost of Care - Fenland Blocks,Fenland - Long term blocks,Residential Care
Cambridgeshire County Council,02-Jun-23,51301995872,"2,199.12",NELSON LODGE,CARE ESTABLISHMENT,OPPD - Cost of Care - Huntingdon Blocks,Hunts - Long term blocks,Residential Care
Cambridgeshire County Council,02-Jun-23,51301995872,"2,199.12",NELSON LODGE,CARE ESTABLISHMENT,OPPD - Cost of Care - Huntingdon Blocks,Hunts - Long term blocks,Residential Care
Cambridgeshire County Council,02-Jun-23,51301995872,"2,199.12",NELSON LODGE,CARE ESTABLISHMENT,OPPD - Cost of Care - Huntingdon Blocks,Hunts - Long term blocks,Residential Care
Cambridgeshire County Council,02-Jun-23,51301995872,"2,199.12",NELSON LODGE,CARE ESTABLISHMENT,OPPD - Cost of Care - Huntingdon Blocks,Hunts - Long term blocks,Residential Care
Cambridgeshire County Council,02-Jun-23,51301995834,"2,237.94",K RAVIVARUMAN T/A FAIR HAVEN CARE HOME,CARE ESTABLISHMENT,OPPD - Cost of Care - East Cambs Blocks,East Cambs � Long term Blocks,Residential Care
Cambridgeshire County Council,02-Jun-23,51301995834,"2,237.94",K RAVIVARUMAN T/A FAIR HAVEN CARE HOME,CARE ESTABLISHMENT,OPPD - Cost of Care - East Cambs Blocks,East Cambs � Long term Blocks,Residential Care
Cambridgeshire County Council,02-Jun-23,51301995834,"2,237.94",K RAVIVARUMAN T/A FAIR HAVEN CARE HOME,CARE ESTABLISHMENT,OPPD - Cost of Care - East Cambs Blocks,East Cambs � Long term Blocks,Residential Care
Cambridgeshire County Council,02-Jun-23,51301995834,"2,237.94",K RAVIVARUMAN T/A FAIR HAVEN CARE HOME,CARE ESTABLISHMENT,OPPD - Cost of Care - East Cambs Blocks,East Cambs � Long term Blocks,Residential Care
Cambridgeshire County Council,02-Jun-23,51301995861,"2,263.80",POTTON VIEW,CARE ESTABLISHMENT,OPPD - Cost of Care - City South Blocks,City and South - Short term blocks,Rehabilitation And Respite Care
Cambridgeshire County Council,02-Jun-23,51301995861,"2,263.80",POTTON VIEW,CARE ESTABLISHMENT,OPPD - Cost of Care - City South Blocks,City and South - Short term blocks,Rehabilitation And Respite Care
Cambridgeshire County Council,02-Jun-23,51301995861,"2,263.80",POTTON VIEW,CARE ESTABLISHMENT,OPPD - Cost of Care - City South Blocks,City and South - Short term blocks,Rehabilitation And Respite Care
Cambridgeshire County Council,02-Jun-23,51301995861,"2,263.80",POTTON VIEW,CARE ESTABLISHMENT,OPPD - Cost of Care - City South Blocks,City and South - Short term blocks,Rehabilitation And Respite Care
Cambridgeshire County Council,02-Jun-23,51301995837,"2,296.14",FLORENCE HOUSE(RAMSEY) RESIDENTIAL HOME FOR THE ELDERLY,CARE ESTABLISHMENT,OPPD - Cost of Care - Huntingdon Blocks,Hunts - Short term blocks,Rehabilitation And Respite Care
Cambridgeshire County Council,02-Jun-23,51301995837,"2,296.14",FLORENCE HOUSE(RAMSEY) RESIDENTIAL HOME FOR THE ELDERLY,CARE ESTABLISHMENT,OPPD - Cost of Care - Huntingdon Blocks,Hunts - Short term blocks,Rehabilitation And Respite Care
Cambridgeshire County Council,02-Jun-23,51301995837,"2,296.14",FLORENCE HOUSE(RAMSEY) RESIDENTIAL HOME FOR THE ELDERLY,CARE ESTABLISHMENT,OPPD - Cost of Care - Huntingdon Blocks,Hunts - Short term blocks,Rehabilitation And Respite Care
Cambridgeshire County Council,02-Jun-23,51301995837,"2,296.14",FLORENCE HOUSE(RAMSEY) RESIDENTIAL HOME FOR THE ELDERLY,CARE ESTABLISHMENT,OPPD - Cost of Care - Huntingdon Blocks,Hunts - Short term blocks,Rehabilitation And Respite Care
Cambridgeshire County Council,02-Jun-23,51301995849,"2,455.75",MULTI CARE COMMUNITY SERVICES,CARE ESTABLISHMENT,Commissioning - Dom Cars,Hancock-Funded Dom-Cars,Domiciliary Care
Cambridgeshire County Council,02-Jun-23,51301995849,"2,455.75",MULTI CARE COMMUNITY SERVICES,CARE ESTABLISHMENT,Commissioning - Dom Cars,Hancock-Funded Dom-Cars,Domiciliary Care
Cambridgeshire County Council,02-Jun-23,51301995850,"2,455.75",MULTI CARE COMMUNITY SERVICES,CARE ESTABLISHMENT,Commissioning - Dom Cars,Hancock-Funded Dom-Cars,Domiciliary Care
Cambridgeshire County Council,02-Jun-23,51301995850,"2,455.75",MULTI CARE COMMUNITY SERVICES,CARE ESTABLISHMENT,Commissioning - Dom Cars,Hancock-Funded Dom-Cars,Domiciliary Care
Cambridgeshire County Council,02-Jun-23,51301995850,"2,455.75",MULTI CARE COMMUNITY SERVICES,CARE ESTABLISHMENT,Commissioning - Dom Cars,Hancock-Funded Dom-Cars,Domiciliary Care
Cambridgeshire County Council,02-Jun-23,51301995850,"2,455.75",MULTI CARE COMMUNITY SERVICES,CARE ESTABLISHMENT,Commissioning - Dom Cars,Hancock-Funded Dom-Cars,Domiciliary Care
Cambridgeshire County Council,02-Jun-23,51301995849,"2,455.75",MULTI CARE COMMUNITY SERVICES,CARE ESTABLISHMENT,Commissioning - Dom Cars,Hancock-Funded Dom-Cars,Domiciliary Care
Cambridgeshire County Council,02-Jun-23,51301995849,"2,455.75",MULTI CARE COMMUNITY SERVICES,CARE ESTABLISHMENT,Commissioning - Dom Cars,Hancock-Funded Dom-Cars,Domiciliary Care
Cambridgeshire County Council,02-Jun-23,51301995874,"2,476.08",BROOKFIELD CARE (Radis Commnity Care),CARE ESTABLISHMENT,Commissioning - Dom Cars,Hancock-Funded Dom-Cars,Domiciliary Care
Cambridgeshire County Council,02-Jun-23,51301995874,"2,476.08",BROOKFIELD CARE (Radis Commnity Care),CARE ESTABLISHMENT,Commissioning - Dom Cars,Hancock-Funded Dom-Cars,Domiciliary Care
Cambridgeshire County Council,02-Jun-23,51301995874,"2,476.08",BROOKFIELD CARE (Radis Commnity Care),CARE ESTABLISHMENT,Commissioning - Dom Cars,Hancock-Funded Dom-Cars,Domiciliary Care
Cambridgeshire County Council,02-Jun-23,51301995874,"2,476.08",BROOKFIELD CARE (Radis Commnity Care),CARE ESTABLISHMENT,Commissioning - Dom Cars,Hancock-Funded Dom-Cars,Domiciliary Care
Cambridgeshire County Council,02-Jun-23,51301995962,"2,477.76",The Oyster Partnership Limited,COMPANY,Waste Disposal incl PFI,Waste PFI,Agency Staff
Cambridgeshire County Council,02-Jun-23,51301995954,"2,688.00",THAMES LABORATORIES,TRADE SUPPLIER,BM - Corporate Offices,Building Maintenance,Specialist Works and Repairs
Cambridgeshire County Council,02-Jun-23,51301995855,"2,711.64",BROOKFIELD CARE (Radis Commnity Care),CARE ESTABLISHMENT,Commissioning - Dom Cars,East Cambs - Dom Blocks,Domiciliary Care
Cambridgeshire County Council,02-Jun-23,51301995831,"2,732.73",HOME CLOSE LTD,CARE ESTABLISHMENT,OPPD - Cost of Care - City South Blocks,City and South - Long term blocks,Nursing Care
Cambridgeshire County Council,02-Jun-23,51301995831,"2,732.73",HOME CLOSE LTD,CARE ESTABLISHMENT,OPPD - Cost of Care - City South Blocks,City and South - Long term blocks,Nursing Care
Cambridgeshire County Council,02-Jun-23,51301995831,"2,732.73",HOME CLOSE LTD,CARE ESTABLISHMENT,OPPD - Cost of Care - City South Blocks,City and South - Long term blocks,Nursing Care
Cambridgeshire County Council,02-Jun-23,51301995831,"2,732.73",HOME CLOSE LTD,CARE ESTABLISHMENT,OPPD - Cost of Care - City South Blocks,City and South - Long term blocks,Nursing Care
Cambridgeshire County Council,02-Jun-23,51301995869,"2,748.90",CARE UK LIMITED,CARE ESTABLISHMENT,OPPD - Cost of Care - Huntingdon Blocks,Hunts - Long term blocks,Nursing Care
Cambridgeshire County Council,02-Jun-23,51301995869,"2,748.90",CARE UK LIMITED,CARE ESTABLISHMENT,OPPD - Cost of Care - Huntingdon Blocks,Hunts - Long term blocks,Nursing Care
Cambridgeshire County Council,02-Jun-23,51301995869,"2,748.90",CARE UK LIMITED,CARE ESTABLISHMENT,OPPD - Cost of Care - Huntingdon Blocks,Hunts - Long term blocks,Nursing Care
Cambridgeshire County Council,02-Jun-23,51301995869,"2,748.90",CARE UK LIMITED,CARE ESTABLISHMENT,OPPD - Cost of Care - Huntingdon Blocks,Hunts - Long term blocks,Nursing Care
Cambridgeshire County Council,02-Jun-23,51301994861,"2,812.00",Pathfinder Legal Services Limited,TRADE SUPPLIER,Legal Proceedings,Legal Proceedings,External Legal Fees
Cambridgeshire County Council,02-Jun-23,51301995863,"2,858.84",BLACK SWAN CARE GROUP LTD,CARE ESTABLISHMENT,OPPD - Cost of Care - Fenland Blocks,Fenland - Long term blocks,Residential Care
Cambridgeshire County Council,02-Jun-23,51301995863,"2,858.84",BLACK SWAN CARE GROUP LTD,CARE ESTABLISHMENT,OPPD - Cost of Care - Fenland Blocks,Fenland - Long term blocks,Residential Care
Cambridgeshire County Council,02-Jun-23,51301995863,"2,858.84",BLACK SWAN CARE GROUP LTD,CARE ESTABLISHMENT,OPPD - Cost of Care - Fenland Blocks,Fenland - Long term blocks,Residential Care
Cambridgeshire County Council,02-Jun-23,51301995863,"2,858.84",BLACK SWAN CARE GROUP LTD,CARE ESTABLISHMENT,OPPD - Cost of Care - Fenland Blocks,Fenland - Long term blocks,Residential Care
Cambridgeshire County Council,02-Jun-23,51301995859,"2,858.84",SWAN HOUSE NURSING & RESIDENTIAL HOME,CARE ESTABLISHMENT,OPPD - Cost of Care - Fenland Blocks,Fenland - Long term blocks,Nursing Care
Cambridgeshire County Council,02-Jun-23,51301995859,"2,858.84",SWAN HOUSE NURSING & RESIDENTIAL HOME,CARE ESTABLISHMENT,OPPD - Cost of Care - Fenland Blocks,Fenland - Long term blocks,Nursing Care
Cambridgeshire County Council,02-Jun-23,51301995859,"2,858.84",SWAN HOUSE NURSING & RESIDENTIAL HOME,CARE ESTABLISHMENT,OPPD - Cost of Care - Fenland Blocks,Fenland - Long term blocks,Nursing Care
Cambridgeshire County Council,02-Jun-23,51301995859,"2,858.84",SWAN HOUSE NURSING & RESIDENTIAL HOME,CARE ESTABLISHMENT,OPPD - Cost of Care - Fenland Blocks,Fenland - Long term blocks,Nursing Care
Cambridgeshire County Council,02-Jun-23,51301995870,"2,858.84",THE HERMITAGE WHITTLESEY LLP,CARE ESTABLISHMENT,OPPD - Cost of Care - Fenland Blocks,Fenland - Long term blocks,Residential Care
Cambridgeshire County Council,02-Jun-23,51301995870,"2,858.84",THE HERMITAGE WHITTLESEY LLP,CARE ESTABLISHMENT,OPPD - Cost of Care - Fenland Blocks,Fenland - Long term blocks,Residential Care
Cambridgeshire County Council,02-Jun-23,51301995870,"2,858.84",THE HERMITAGE WHITTLESEY LLP,CARE ESTABLISHMENT,OPPD - Cost of Care - Fenland Blocks,Fenland - Long term blocks,Residential Care
Cambridgeshire County Council,02-Jun-23,51301995870,"2,858.84",THE HERMITAGE WHITTLESEY LLP,CARE ESTABLISHMENT,OPPD - Cost of Care - Fenland Blocks,Fenland - Long term blocks,Residential Care
Cambridgeshire County Council,02-Jun-23,51301995836,"2,858.84",THE FIRS (Barrels Care),CARE ESTABLISHMENT,OPPD - Cost of Care - East Cambs Blocks,East Cambs � Long term Blocks,Residential Care
Cambridgeshire County Council,02-Jun-23,51301995836,"2,858.84",THE FIRS (Barrels Care),CARE ESTABLISHMENT,OPPD - Cost of Care - East Cambs Blocks,East Cambs � Long term Blocks,Residential Care
Cambridgeshire County Council,02-Jun-23,51301995836,"2,858.84",THE FIRS (Barrels Care),CARE ESTABLISHMENT,OPPD - Cost of Care - East Cambs Blocks,East Cambs � Long term Blocks,Residential Care
Cambridgeshire County Council,02-Jun-23,51301995836,"2,858.84",THE FIRS (Barrels Care),CARE ESTABLISHMENT,OPPD - Cost of Care - East Cambs Blocks,East Cambs � Long term Blocks,Residential Care
Cambridgeshire County Council,02-Jun-23,51301995727,"2,880.00",SLR Consulting Ltd,COMPANY,Waste Disposal incl PFI,Waste PFI,Professional Fees and Hired Services
Cambridgeshire County Council,02-Jun-23,51301995852,"2,896.85",Cera Care Operations Ltd,COMPANY,OPPD - Cost of Care - City South - Over 65,Older People - City & South - Care,Supported Living
Cambridgeshire County Council,02-Jun-23,51301995852,"2,896.85",Cera Care Operations Ltd,COMPANY,OPPD - Cost of Care - City South - Over 65,Older People - City & South - Care,Supported Living
Cambridgeshire County Council,02-Jun-23,51301995852,"2,896.85",Cera Care Operations Ltd,COMPANY,OPPD - Cost of Care - City South - Over 65,Older People - City & South - Care,Supported Living
Cambridgeshire County Council,02-Jun-23,51301995852,"2,896.85",Cera Care Operations Ltd,COMPANY,OPPD - Cost of Care - City South - Over 65,Older People - City & South - Care,Supported Living
Cambridgeshire County Council,02-Jun-23,51301995839,"2,932.16",THE HILLINGS LIMITED,CARE ESTABLISHMENT,OPPD - Cost of Care - Huntingdon Blocks,Hunts - Long term blocks,Residential Care
Cambridgeshire County Council,02-Jun-23,51301995839,"2,932.16",THE HILLINGS LIMITED,CARE ESTABLISHMENT,OPPD - Cost of Care - Huntingdon Blocks,Hunts - Long term blocks,Residential Care
Cambridgeshire County Council,02-Jun-23,51301995839,"2,932.16",THE HILLINGS LIMITED,CARE ESTABLISHMENT,OPPD - Cost of Care - Huntingdon Blocks,Hunts - Long term blocks,Residential Care
Cambridgeshire County Council,02-Jun-23,51301995839,"2,932.16",THE HILLINGS LIMITED,CARE ESTABLISHMENT,OPPD - Cost of Care - Huntingdon Blocks,Hunts - Long term blocks,Residential Care
Cambridgeshire County Council,02-Jun-23,51301995846,"3,061.52",AISLING LODGE (MD CARE HOMES),CARE ESTABLISHMENT,OPPD - Cost of Care - Huntingdon Blocks,Hunts - Long term blocks,Residential Care
Cambridgeshire County Council,02-Jun-23,51301995846,"3,061.52",AISLING LODGE (MD CARE HOMES),CARE ESTABLISHMENT,OPPD - Cost of Care - Huntingdon Blocks,Hunts - Long term blocks,Residential Care
Cambridgeshire County Council,02-Jun-23,51301995846,"3,061.52",AISLING LODGE (MD CARE HOMES),CARE ESTABLISHMENT,OPPD - Cost of Care - Huntingdon Blocks,Hunts - Long term blocks,Residential Care
Cambridgeshire County Council,02-Jun-23,51301995846,"3,061.52",AISLING LODGE (MD CARE HOMES),CARE ESTABLISHMENT,OPPD - Cost of Care - Huntingdon Blocks,Hunts - Long term blocks,Residential Care
Cambridgeshire County Council,02-Jun-23,51301995720,"3,069.96",Freeths LLP,PARTNERSHIP,Capital Receipts Expenses,Capital Receipts Expenses,Professional Fees and Hired Services
Cambridgeshire County Council,02-Jun-23,51301995843,"3,132.42",RADIS COMMUNITY CARE,CARE ESTABLISHMENT,OPPD - Cost of Care - Fenland - Over 65,Older People - Fenland - Care,Supported Living
Cambridgeshire County Council,02-Jun-23,51301995843,"3,132.42",RADIS COMMUNITY CARE,CARE ESTABLISHMENT,OPPD - Cost of Care - Fenland - Over 65,Older People - Fenland - Care,Supported Living
Cambridgeshire County Council,02-Jun-23,51301995843,"3,132.42",RADIS COMMUNITY CARE,CARE ESTABLISHMENT,OPPD - Cost of Care - Fenland - Over 65,Older People - Fenland - Care,Supported Living
Cambridgeshire County Council,02-Jun-23,51301995843,"3,132.42",RADIS COMMUNITY CARE,CARE ESTABLISHMENT,OPPD - Cost of Care - Fenland - Over 65,Older People - Fenland - Care,Supported Living
Cambridgeshire County Council,02-Jun-23,51301995855,"3,163.58",BROOKFIELD CARE (Radis Commnity Care),CARE ESTABLISHMENT,Commissioning - Dom Cars,East Cambs - Dom Blocks,Domiciliary Care
Cambridgeshire County Council,02-Jun-23,51301995847,"3,210.46",BROOKFIELD CARE (Radis Commnity Care),CARE ESTABLISHMENT,Commissioning - Dom Cars,Hancock-Funded Dom-Cars,Domiciliary Care
Cambridgeshire County Council,02-Jun-23,51301995847,"3,210.46",BROOKFIELD CARE (Radis Commnity Care),CARE ESTABLISHMENT,Commissioning - Dom Cars,Hancock-Funded Dom-Cars,Domiciliary Care
Cambridgeshire County Council,02-Jun-23,51301995847,"3,210.46",BROOKFIELD CARE (Radis Commnity Care),CARE ESTABLISHMENT,Commissioning - Dom Cars,Hancock-Funded Dom-Cars,Domiciliary Care
Cambridgeshire County Council,02-Jun-23,51301995847,"3,210.46",BROOKFIELD CARE (Radis Commnity Care),CARE ESTABLISHMENT,Commissioning - Dom Cars,Hancock-Funded Dom-Cars,Domiciliary Care
Cambridgeshire County Council,02-Jun-23,51301995843,"3,278.84",RADIS COMMUNITY CARE,CARE ESTABLISHMENT,OPPD - Cost of Care - Fenland - Over 65,Older People - Fenland - Care,Supported Living
Cambridgeshire County Council,02-Jun-23,51301995843,"3,278.84",RADIS COMMUNITY CARE,CARE ESTABLISHMENT,OPPD - Cost of Care - Fenland - Over 65,Older People - Fenland - Care,Supported Living
Cambridgeshire County Council,02-Jun-23,51301995843,"3,278.84",RADIS COMMUNITY CARE,CARE ESTABLISHMENT,OPPD - Cost of Care - Fenland - Over 65,Older People - Fenland - Care,Supported Living
Cambridgeshire County Council,02-Jun-23,51301995843,"3,278.84",RADIS COMMUNITY CARE,CARE ESTABLISHMENT,OPPD - Cost of Care - Fenland - Over 65,Older People - Fenland - Care,Supported Living
Cambridgeshire County Council,02-Jun-23,51301995710,"3,326.83",Redacted Personal Data,INDIVIDUAL,Children's Disability Direct Payments,CSC Direct Payments,Direct Payments
Cambridgeshire County Council,02-Jun-23,51301994841,"3,420.00",Solace in Business,COMPANY,Monitoring Officer,Legal - Corporate & Democratic,Agency Staff
Cambridgeshire County Council,02-Jun-23,51301994842,"3,420.00",Solace in Business,COMPANY,Monitoring Officer,Legal - Corporate & Democratic,Agency Staff
Cambridgeshire County Council,02-Jun-23,51301994843,"3,420.00",Solace in Business,COMPANY,Monitoring Officer,Legal - Corporate & Democratic,Agency Staff
Cambridgeshire County Council,02-Jun-23,51301995842,"3,424.38",RADIS COMMUNITY CARE,CARE ESTABLISHMENT,OPPD - Cost of Care - City South - Over 65,Older People - City & South - Care,Supported Living
Cambridgeshire County Council,02-Jun-23,51301995842,"3,424.38",RADIS COMMUNITY CARE,CARE ESTABLISHMENT,OPPD - Cost of Care - City South - Over 65,Older People - City & South - Care,Supported Living
Cambridgeshire County Council,02-Jun-23,51301995842,"3,424.38",RADIS COMMUNITY CARE,CARE ESTABLISHMENT,OPPD - Cost of Care - City South - Over 65,Older People - City & South - Care,Supported Living
Cambridgeshire County Council,02-Jun-23,51301995842,"3,424.38",RADIS COMMUNITY CARE,CARE ESTABLISHMENT,OPPD - Cost of Care - City South - Over 65,Older People - City & South - Care,Supported Living
Cambridgeshire County Council,02-Jun-23,51301995859,"3,449.60",SWAN HOUSE NURSING & RESIDENTIAL HOME,CARE ESTABLISHMENT,OPPD - Cost of Care - Fenland Blocks,Fenland - Long term blocks,Nursing Care
Cambridgeshire County Council,02-Jun-23,51301995859,"3,449.60",SWAN HOUSE NURSING & RESIDENTIAL HOME,CARE ESTABLISHMENT,OPPD - Cost of Care - Fenland Blocks,Fenland - Long term blocks,Nursing Care
Cambridgeshire County Council,02-Jun-23,51301995859,"3,449.60",SWAN HOUSE NURSING & RESIDENTIAL HOME,CARE ESTABLISHMENT,OPPD - Cost of Care - Fenland Blocks,Fenland - Long term blocks,Nursing Care
Cambridgeshire County Council,02-Jun-23,51301995859,"3,449.60",SWAN HOUSE NURSING & RESIDENTIAL HOME,CARE ESTABLISHMENT,OPPD - Cost of Care - Fenland Blocks,Fenland - Long term blocks,Nursing Care
Cambridgeshire County Council,02-Jun-23,51301995815,"3,452.05",Beaumont HEALTHCARE LTD,CARE ESTABLISHMENT,Commissioning - Dom Cars,Hunts - Dom Blocks,Domiciliary Care
Cambridgeshire County Council,02-Jun-23,51301995815,"3,452.05",Beaumont HEALTHCARE LTD,CARE ESTABLISHMENT,Commissioning - Dom Cars,Hunts - Dom Blocks,Domiciliary Care
Cambridgeshire County Council,02-Jun-23,51301995815,"3,452.05",Beaumont HEALTHCARE LTD,CARE ESTABLISHMENT,Commissioning - Dom Cars,Hunts - Dom Blocks,Domiciliary Care
Cambridgeshire County Council,02-Jun-23,51301995815,"3,452.05",Beaumont HEALTHCARE LTD,CARE ESTABLISHMENT,Commissioning - Dom Cars,Hunts - Dom Blocks,Domiciliary Care
Cambridgeshire County Council,02-Jun-23,51301995844,"3,467.19",RADIS COMMUNITY CARE,CARE ESTABLISHMENT,OPPD - Cost of Care - Huntingdon - Over 65,Hunts OP Team - Care,Supported Living
Cambridgeshire County Council,02-Jun-23,51301995844,"3,467.19",RADIS COMMUNITY CARE,CARE ESTABLISHMENT,OPPD - Cost of Care - Huntingdon - Over 65,Hunts OP Team - Care,Supported Living
Cambridgeshire County Council,02-Jun-23,51301995844,"3,467.19",RADIS COMMUNITY CARE,CARE ESTABLISHMENT,OPPD - Cost of Care - Huntingdon - Over 65,Hunts OP Team - Care,Supported Living
Cambridgeshire County Council,02-Jun-23,51301995844,"3,467.19",RADIS COMMUNITY CARE,CARE ESTABLISHMENT,OPPD - Cost of Care - Huntingdon - Over 65,Hunts OP Team - Care,Supported Living
Cambridgeshire County Council,02-Jun-23,51301995841,"3,467.19",RADIS COMMUNITY CARE,CARE ESTABLISHMENT,OPPD - Cost of Care - Fenland - Over 65,Older People - Fenland - Care,Supported Living
Cambridgeshire County Council,02-Jun-23,51301995841,"3,467.19",RADIS COMMUNITY CARE,CARE ESTABLISHMENT,OPPD - Cost of Care - Fenland - Over 65,Older People - Fenland - Care,Supported Living
Cambridgeshire County Council,02-Jun-23,51301995841,"3,467.19",RADIS COMMUNITY CARE,CARE ESTABLISHMENT,OPPD - Cost of Care - Fenland - Over 65,Older People - Fenland - Care,Supported Living
Cambridgeshire County Council,02-Jun-23,51301995841,"3,467.19",RADIS COMMUNITY CARE,CARE ESTABLISHMENT,OPPD - Cost of Care - Fenland - Over 65,Older People - Fenland - Care,Supported Living
Cambridgeshire County Council,02-Jun-23,51301992830,"3,480.00",Pathfinder Legal Services Limited,TRADE SUPPLIER,PD - Kings Dyke,MID - Kings Dyke,Construction - External Professional Fees
Cambridgeshire County Council,02-Jun-23,51301995871,"3,665.20",HARDWICK DENE,CARE ESTABLISHMENT,OPPD - Cost of Care - Huntingdon Blocks,Hunts - Short term blocks,Rehabilitation And Respite Care
Cambridgeshire County Council,02-Jun-23,51301995871,"3,665.20",HARDWICK DENE,CARE ESTABLISHMENT,OPPD - Cost of Care - Huntingdon Blocks,Hunts - Short term blocks,Rehabilitation And Respite Care
Cambridgeshire County Council,02-Jun-23,51301995871,"3,665.20",HARDWICK DENE,CARE ESTABLISHMENT,OPPD - Cost of Care - Huntingdon Blocks,Hunts - Short term blocks,Rehabilitation And Respite Care
Cambridgeshire County Council,02-Jun-23,51301995871,"3,665.20",HARDWICK DENE,CARE ESTABLISHMENT,OPPD - Cost of Care - Huntingdon Blocks,Hunts - Short term blocks,Rehabilitation And Respite Care
Cambridgeshire County Council,02-Jun-23,51301995866,"3,765.49",RADIS COMMUNITY CARE,CARE ESTABLISHMENT,OPPD - Cost of Care - Huntingdon - Over 65,Hunts OP Team - Care,Supported Living
Cambridgeshire County Council,02-Jun-23,51301995866,"3,765.49",RADIS COMMUNITY CARE,CARE ESTABLISHMENT,OPPD - Cost of Care - Huntingdon - Over 65,Hunts OP Team - Care,Supported Living
Cambridgeshire County Council,02-Jun-23,51301995866,"3,765.49",RADIS COMMUNITY CARE,CARE ESTABLISHMENT,OPPD - Cost of Care - Huntingdon - Over 65,Hunts OP Team - Care,Supported Living
Cambridgeshire County Council,02-Jun-23,51301995866,"3,765.49",RADIS COMMUNITY CARE,CARE ESTABLISHMENT,OPPD - Cost of Care - Huntingdon - Over 65,Hunts OP Team - Care,Supported Living
Cambridgeshire County Council,02-Jun-23,51301995747,"3,768.16",Sallowbush Preschool (Little Flames Childcare Ltd),NURSERY,Early Years,SEND Specialist Services - SENIF,Care & Ed Partner Organisations
Cambridgeshire County Council,02-Jun-23,51301995867,"3,773.00",ETHELDRED HOUSE,CARE ESTABLISHMENT,OPPD - Cost of Care - City South Blocks,City and South - Long term blocks,Nursing Care
Cambridgeshire County Council,02-Jun-23,51301995867,"3,773.00",ETHELDRED HOUSE,CARE ESTABLISHMENT,OPPD - Cost of Care - City South Blocks,City and South - Long term blocks,Nursing Care
Cambridgeshire County Council,02-Jun-23,51301995867,"3,773.00",ETHELDRED HOUSE,CARE ESTABLISHMENT,OPPD - Cost of Care - City South Blocks,City and South - Long term blocks,Nursing Care
Cambridgeshire County Council,02-Jun-23,51301995867,"3,773.00",ETHELDRED HOUSE,CARE ESTABLISHMENT,OPPD - Cost of Care - City South Blocks,City and South - Long term blocks,Nursing Care
Cambridgeshire County Council,02-Jun-23,51301995854,"3,884.31",MEARS CARE LTD,CARE ESTABLISHMENT,OPPD - Cost of Care - City South - Over 65,Older People - City & South - Care,Supported Living
Cambridgeshire County Council,02-Jun-23,51301995854,"3,884.31",MEARS CARE LTD,CARE ESTABLISHMENT,OPPD - Cost of Care - City South - Over 65,Older People - City & South - Care,Supported Living
Cambridgeshire County Council,02-Jun-23,51301995854,"3,884.31",MEARS CARE LTD,CARE ESTABLISHMENT,OPPD - Cost of Care - City South - Over 65,Older People - City & South - Care,Supported Living
Cambridgeshire County Council,02-Jun-23,51301995854,"3,884.31",MEARS CARE LTD,CARE ESTABLISHMENT,OPPD - Cost of Care - City South - Over 65,Older People - City & South - Care,Supported Living
Cambridgeshire County Council,02-Jun-23,51301995853,"3,884.92",MEARS CARE LTD,CARE ESTABLISHMENT,OPPD - Cost of Care - City South - Over 65,Older People - City & South - Care,Supported Living
Cambridgeshire County Council,02-Jun-23,51301995853,"3,884.92",MEARS CARE LTD,CARE ESTABLISHMENT,OPPD - Cost of Care - City South - Over 65,Older People - City & South - Care,Supported Living
Cambridgeshire County Council,02-Jun-23,51301995853,"3,884.92",MEARS CARE LTD,CARE ESTABLISHMENT,OPPD - Cost of Care - City South - Over 65,Older People - City & South - Care,Supported Living
Cambridgeshire County Council,02-Jun-23,51301995853,"3,884.92",MEARS CARE LTD,CARE ESTABLISHMENT,OPPD - Cost of Care - City South - Over 65,Older People - City & South - Care,Supported Living
Cambridgeshire County Council,02-Jun-23,51301995828,"3,934.70",BUCHAN HEALTHCARE LTD,CARE ESTABLISHMENT,OPPD - Cost of Care - City South Blocks,City and South - Long term blocks,Nursing Care
Cambridgeshire County Council,02-Jun-23,51301995828,"3,934.70",BUCHAN HEALTHCARE LTD,CARE ESTABLISHMENT,OPPD - Cost of Care - City South Blocks,City and South - Long term blocks,Nursing Care
Cambridgeshire County Council,02-Jun-23,51301995828,"3,934.70",BUCHAN HEALTHCARE LTD,CARE ESTABLISHMENT,OPPD - Cost of Care - City South Blocks,City and South - Long term blocks,Nursing Care
Cambridgeshire County Council,02-Jun-23,51301995828,"3,934.70",BUCHAN HEALTHCARE LTD,CARE ESTABLISHMENT,OPPD - Cost of Care - City South Blocks,City and South - Long term blocks,Nursing Care
Cambridgeshire County Council,02-Jun-23,51301995833,"3,934.70",ST GEORGE'S COURT,CARE ESTABLISHMENT,OPPD - Cost of Care - City South Blocks,City and South - Long term blocks,Nursing Care
Cambridgeshire County Council,02-Jun-23,51301995833,"3,934.70",ST GEORGE'S COURT,CARE ESTABLISHMENT,OPPD - Cost of Care - City South Blocks,City and South - Long term blocks,Nursing Care
Cambridgeshire County Council,02-Jun-23,51301995833,"3,934.70",ST GEORGE'S COURT,CARE ESTABLISHMENT,OPPD - Cost of Care - City South Blocks,City and South - Long term blocks,Nursing Care
Cambridgeshire County Council,02-Jun-23,51301995833,"3,934.70",ST GEORGE'S COURT,CARE ESTABLISHMENT,OPPD - Cost of Care - City South Blocks,City and South - Long term blocks,Nursing Care
Cambridgeshire County Council,02-Jun-23,51301995864,"4,137.30",RADIS COMMUNITY CARE,CARE ESTABLISHMENT,OPPD - Cost of Care - East Cambs - Over 65,East Cambs - O P Team - Care,Supported Living
Cambridgeshire County Council,02-Jun-23,51301995864,"4,137.30",RADIS COMMUNITY CARE,CARE ESTABLISHMENT,OPPD - Cost of Care - East Cambs - Over 65,East Cambs - O P Team - Care,Supported Living
Cambridgeshire County Council,02-Jun-23,51301995864,"4,137.30",RADIS COMMUNITY CARE,CARE ESTABLISHMENT,OPPD - Cost of Care - East Cambs - Over 65,East Cambs - O P Team - Care,Supported Living
Cambridgeshire County Council,02-Jun-23,51301995864,"4,137.30",RADIS COMMUNITY CARE,CARE ESTABLISHMENT,OPPD - Cost of Care - East Cambs - Over 65,East Cambs - O P Team - Care,Supported Living
Cambridgeshire County Council,02-Jun-23,51301995814,"4,191.14",BROOKFIELD CARE (Radis Commnity Care),CARE ESTABLISHMENT,Commissioning - Dom Cars,City and South - Dom Blocks,Domiciliary Care
Cambridgeshire County Council,02-Jun-23,51301995711,"4,224.00",Sensory Childcare,CARE ESTABLISHMENT,Children's Disability Direct Payments,CSC Direct Payments,Direct Payments
Cambridgeshire County Council,02-Jun-23,51301995865,"4,266.73",RADIS COMMUNITY CARE,CARE ESTABLISHMENT,OPPD - Cost of Care - East Cambs - Over 65,East Cambs - O P Team - Care,Supported Living
Cambridgeshire County Council,02-Jun-23,51301995865,"4,266.73",RADIS COMMUNITY CARE,CARE ESTABLISHMENT,OPPD - Cost of Care - East Cambs - Over 65,East Cambs - O P Team - Care,Supported Living
Cambridgeshire County Council,02-Jun-23,51301995865,"4,266.73",RADIS COMMUNITY CARE,CARE ESTABLISHMENT,OPPD - Cost of Care - East Cambs - Over 65,East Cambs - O P Team - Care,Supported Living
Cambridgeshire County Council,02-Jun-23,51301995865,"4,266.73",RADIS COMMUNITY CARE,CARE ESTABLISHMENT,OPPD - Cost of Care - East Cambs - Over 65,East Cambs - O P Team - Care,Supported Living
Cambridgeshire County Council,02-Jun-23,51301995820,"4,271.96",FITZWILLIAM HEALTHCARE LTD,CARE ESTABLISHMENT,OPPD - Cost of Care - City South Blocks,City and South - Long term blocks,Residential Care
Cambridgeshire County Council,02-Jun-23,51301995838,"4,288.26",SPRINGFIELD RESIDENTIAL CARE,CARE ESTABLISHMENT,OPPD - Cost of Care - Fenland Blocks,Fenland - Short term blocks,Rehabilitation And Respite Care
Cambridgeshire County Council,02-Jun-23,51301995838,"4,288.26",SPRINGFIELD RESIDENTIAL CARE,CARE ESTABLISHMENT,OPPD - Cost of Care - Fenland Blocks,Fenland - Short term blocks,Rehabilitation And Respite Care
Cambridgeshire County Council,02-Jun-23,51301995838,"4,288.26",SPRINGFIELD RESIDENTIAL CARE,CARE ESTABLISHMENT,OPPD - Cost of Care - Fenland Blocks,Fenland - Short term blocks,Rehabilitation And Respite Care
Cambridgeshire County Council,02-Jun-23,51301995838,"4,288.26",SPRINGFIELD RESIDENTIAL CARE,CARE ESTABLISHMENT,OPPD - Cost of Care - Fenland Blocks,Fenland - Short term blocks,Rehabilitation And Respite Care
Cambridgeshire County Council,02-Jun-23,51301995860,"4,312.00",GLENNFIELD CARE CENTRE (OP),CARE ESTABLISHMENT,OPPD - Cost of Care - Fenland Blocks,Fenland - Long term blocks,Nursing Care
Cambridgeshire County Council,02-Jun-23,51301995860,"4,312.00",GLENNFIELD CARE CENTRE (OP),CARE ESTABLISHMENT,OPPD - Cost of Care - Fenland Blocks,Fenland - Long term blocks,Nursing Care
Cambridgeshire County Council,02-Jun-23,51301995860,"4,312.00",GLENNFIELD CARE CENTRE (OP),CARE ESTABLISHMENT,OPPD - Cost of Care - Fenland Blocks,Fenland - Long term blocks,Nursing Care
Cambridgeshire County Council,02-Jun-23,51301995860,"4,312.00",GLENNFIELD CARE CENTRE (OP),CARE ESTABLISHMENT,OPPD - Cost of Care - Fenland Blocks,Fenland - Long term blocks,Nursing Care
Cambridgeshire County Council,02-Jun-23,51301995859,"4,312.00",SWAN HOUSE NURSING & RESIDENTIAL HOME,CARE ESTABLISHMENT,OPPD - Cost of Care - Fenland Blocks,Fenland - Long term blocks,Nursing Care
Cambridgeshire County Council,02-Jun-23,51301995859,"4,312.00",SWAN HOUSE NURSING & RESIDENTIAL HOME,CARE ESTABLISHMENT,OPPD - Cost of Care - Fenland Blocks,Fenland - Long term blocks,Nursing Care
Cambridgeshire County Council,02-Jun-23,51301995859,"4,312.00",SWAN HOUSE NURSING & RESIDENTIAL HOME,CARE ESTABLISHMENT,OPPD - Cost of Care - Fenland Blocks,Fenland - Long term blocks,Nursing Care
Cambridgeshire County Council,02-Jun-23,51301995859,"4,312.00",SWAN HOUSE NURSING & RESIDENTIAL HOME,CARE ESTABLISHMENT,OPPD - Cost of Care - Fenland Blocks,Fenland - Long term blocks,Nursing Care
Cambridgeshire County Council,02-Jun-23,51301995818,"4,438.35",Beaumont HEALTHCARE LTD,CARE ESTABLISHMENT,Commissioning - Dom Cars,City and South - Dom Blocks,Domiciliary Care
Cambridgeshire County Council,02-Jun-23,51301995860,"4,473.70",GLENNFIELD CARE CENTRE (OP),CARE ESTABLISHMENT,OPPD - Cost of Care - Fenland Blocks,Fenland - Long term blocks,Nursing Care
Cambridgeshire County Council,02-Jun-23,51301995860,"4,473.70",GLENNFIELD CARE CENTRE (OP),CARE ESTABLISHMENT,OPPD - Cost of Care - Fenland Blocks,Fenland - Long term blocks,Nursing Care
Cambridgeshire County Council,02-Jun-23,51301995860,"4,473.70",GLENNFIELD CARE CENTRE (OP),CARE ESTABLISHMENT,OPPD - Cost of Care - Fenland Blocks,Fenland - Long term blocks,Nursing Care
Cambridgeshire County Council,02-Jun-23,51301995860,"4,473.70",GLENNFIELD CARE CENTRE (OP),CARE ESTABLISHMENT,OPPD - Cost of Care - Fenland Blocks,Fenland - Long term blocks,Nursing Care
Cambridgeshire County Council,02-Jun-23,51301996078,"4,527.60",BIDWELLS LLP,TRADE SUPPLIER,County Farms,County Farms,Professional Fees and Hired Services
Cambridgeshire County Council,02-Jun-23,51301995867,"4,554.55",ETHELDRED HOUSE,CARE ESTABLISHMENT,OPPD - Cost of Care - City South Blocks,City and South - Long term blocks,Nursing Care
Cambridgeshire County Council,02-Jun-23,51301995867,"4,554.55",ETHELDRED HOUSE,CARE ESTABLISHMENT,OPPD - Cost of Care - City South Blocks,City and South - Long term blocks,Nursing Care
Cambridgeshire County Council,02-Jun-23,51301995867,"4,554.55",ETHELDRED HOUSE,CARE ESTABLISHMENT,OPPD - Cost of Care - City South Blocks,City and South - Long term blocks,Nursing Care
Cambridgeshire County Council,02-Jun-23,51301995867,"4,554.55",ETHELDRED HOUSE,CARE ESTABLISHMENT,OPPD - Cost of Care - City South Blocks,City and South - Long term blocks,Nursing Care
Cambridgeshire County Council,02-Jun-23,51301995848,"4,717.81",Careuk247 Home Care Ltd,COMPANY,Commissioning - Dom Cars,Hancock-Funded Dom-Cars,Domiciliary Care
Cambridgeshire County Council,02-Jun-23,51301995848,"4,717.81",Careuk247 Home Care Ltd,COMPANY,Commissioning - Dom Cars,Hancock-Funded Dom-Cars,Domiciliary Care
Cambridgeshire County Council,02-Jun-23,51301995848,"4,717.81",Careuk247 Home Care Ltd,COMPANY,Commissioning - Dom Cars,Hancock-Funded Dom-Cars,Domiciliary Care
Cambridgeshire County Council,02-Jun-23,51301995848,"4,717.81",Careuk247 Home Care Ltd,COMPANY,Commissioning - Dom Cars,Hancock-Funded Dom-Cars,Domiciliary Care
Cambridgeshire County Council,02-Jun-23,51301995873,"4,727.05",Maven Healthcare,CARE ESTABLISHMENT,OPPD - Cost of Care - City South Blocks,City and South - Long term blocks,Nursing Care
Cambridgeshire County Council,02-Jun-23,51301995873,"4,727.05",Maven Healthcare,CARE ESTABLISHMENT,OPPD - Cost of Care - City South Blocks,City and South - Long term blocks,Nursing Care
Cambridgeshire County Council,02-Jun-23,51301995873,"4,727.05",Maven Healthcare,CARE ESTABLISHMENT,OPPD - Cost of Care - City South Blocks,City and South - Long term blocks,Nursing Care
Cambridgeshire County Council,02-Jun-23,51301995873,"4,727.05",Maven Healthcare,CARE ESTABLISHMENT,OPPD - Cost of Care - City South Blocks,City and South - Long term blocks,Nursing Care
Cambridgeshire County Council,02-Jun-23,51301995817,"4,745.37",BROOKFIELD CARE (Radis Commnity Care),CARE ESTABLISHMENT,Commissioning - Dom Cars,Hunts - Dom Blocks,Domiciliary Care
Cambridgeshire County Council,02-Jun-23,51301995817,"4,745.37",BROOKFIELD CARE (Radis Commnity Care),CARE ESTABLISHMENT,Commissioning - Dom Cars,Hunts - Dom Blocks,Domiciliary Care
Cambridgeshire County Council,02-Jun-23,51301995817,"4,745.37",BROOKFIELD CARE (Radis Commnity Care),CARE ESTABLISHMENT,Commissioning - Dom Cars,Hunts - Dom Blocks,Domiciliary Care
Cambridgeshire County Council,02-Jun-23,51301995817,"4,745.37",BROOKFIELD CARE (Radis Commnity Care),CARE ESTABLISHMENT,Commissioning - Dom Cars,Hunts - Dom Blocks,Domiciliary Care
Cambridgeshire County Council,02-Jun-23,51301995877,"4,758.97",MEARS CARE LTD,CARE ESTABLISHMENT,OPPD - Cost of Care - Fenland - Over 65,Older People - Fenland - Care,Supported Living
Cambridgeshire County Council,02-Jun-23,51301995877,"4,758.97",MEARS CARE LTD,CARE ESTABLISHMENT,OPPD - Cost of Care - Fenland - Over 65,Older People - Fenland - Care,Supported Living
Cambridgeshire County Council,02-Jun-23,51301995877,"4,758.97",MEARS CARE LTD,CARE ESTABLISHMENT,OPPD - Cost of Care - Fenland - Over 65,Older People - Fenland - Care,Supported Living
Cambridgeshire County Council,02-Jun-23,51301995877,"4,758.97",MEARS CARE LTD,CARE ESTABLISHMENT,OPPD - Cost of Care - Fenland - Over 65,Older People - Fenland - Care,Supported Living
Cambridgeshire County Council,02-Jun-23,51301995874,"4,802.50",BROOKFIELD CARE (Radis Commnity Care),CARE ESTABLISHMENT,Commissioning - Dom Cars,Hancock-Funded Dom-Cars,Domiciliary Care
Cambridgeshire County Council,02-Jun-23,51301995874,"4,802.50",BROOKFIELD CARE (Radis Commnity Care),CARE ESTABLISHMENT,Commissioning - Dom Cars,Hancock-Funded Dom-Cars,Domiciliary Care
Cambridgeshire County Council,02-Jun-23,51301995874,"4,802.50",BROOKFIELD CARE (Radis Commnity Care),CARE ESTABLISHMENT,Commissioning - Dom Cars,Hancock-Funded Dom-Cars,Domiciliary Care
Cambridgeshire County Council,02-Jun-23,51301995874,"4,802.50",BROOKFIELD CARE (Radis Commnity Care),CARE ESTABLISHMENT,Commissioning - Dom Cars,Hancock-Funded Dom-Cars,Domiciliary Care
Cambridgeshire County Council,02-Jun-23,51301995851,"4,871.23",TCS Medicare Ltd (Trinity care),CARE ESTABLISHMENT,Commissioning - Dom Cars,Hancock-Funded Dom-Cars,Domiciliary Care
Cambridgeshire County Council,02-Jun-23,51301995851,"4,871.23",TCS Medicare Ltd (Trinity care),CARE ESTABLISHMENT,Commissioning - Dom Cars,Hancock-Funded Dom-Cars,Domiciliary Care
Cambridgeshire County Council,02-Jun-23,51301995851,"4,871.23",TCS Medicare Ltd (Trinity care),CARE ESTABLISHMENT,Commissioning - Dom Cars,Hancock-Funded Dom-Cars,Domiciliary Care
Cambridgeshire County Council,02-Jun-23,51301995851,"4,871.23",TCS Medicare Ltd (Trinity care),CARE ESTABLISHMENT,Commissioning - Dom Cars,Hancock-Funded Dom-Cars,Domiciliary Care
Cambridgeshire County Council,02-Jun-23,51301982087,"4,871.88",SC Electrical Contracting Ltd,COMPANY,County Farms,County Farms,County Farms Maintenance
Cambridgeshire County Council,02-Jun-23,51301995814,"4,889.66",BROOKFIELD CARE (Radis Commnity Care),CARE ESTABLISHMENT,Commissioning - Dom Cars,City and South - Dom Blocks,Domiciliary Care
Cambridgeshire County Council,02-Jun-23,51301995703,"4,897.08",SAWTRY DAY NURSERY,NURSERY,SEND High Needs Top Up,High Needs Top Up - Early Years,Independent School Placements
Cambridgeshire County Council,02-Jun-23,51301995716,"4,899.95",Redacted Personal Data,INDIVIDUAL,Children's Disability Direct Payments,CSC Direct Payments,Direct Payments
Cambridgeshire County Council,02-Jun-23,51301995824,"5,132.87",RADIS COMMUNITY CARE,CARE ESTABLISHMENT,OPPD - Cost of Care - Huntingdon - Over 65,Hunts OP Team - Care,Supported Living
Cambridgeshire County Council,02-Jun-23,51301995824,"5,132.87",RADIS COMMUNITY CARE,CARE ESTABLISHMENT,OPPD - Cost of Care - Huntingdon - Over 65,Hunts OP Team - Care,Supported Living
Cambridgeshire County Council,02-Jun-23,51301995824,"5,132.87",RADIS COMMUNITY CARE,CARE ESTABLISHMENT,OPPD - Cost of Care - Huntingdon - Over 65,Hunts OP Team - Care,Supported Living
Cambridgeshire County Council,02-Jun-23,51301995824,"5,132.87",RADIS COMMUNITY CARE,CARE ESTABLISHMENT,OPPD - Cost of Care - Huntingdon - Over 65,Hunts OP Team - Care,Supported Living
Cambridgeshire County Council,02-Jun-23,51301995818,"5,178.08",Beaumont HEALTHCARE LTD,CARE ESTABLISHMENT,Commissioning - Dom Cars,City and South - Dom Blocks,Domiciliary Care
Cambridgeshire County Council,02-Jun-23,51301995838,"5,221.86",SPRINGFIELD RESIDENTIAL CARE,CARE ESTABLISHMENT,OPPD - Cost of Care - Fenland Blocks,Fenland - Short term blocks,Rehabilitation And Respite Care
Cambridgeshire County Council,02-Jun-23,51301995838,"5,221.86",SPRINGFIELD RESIDENTIAL CARE,CARE ESTABLISHMENT,OPPD - Cost of Care - Fenland Blocks,Fenland - Short term blocks,Rehabilitation And Respite Care
Cambridgeshire County Council,02-Jun-23,51301995838,"5,221.86",SPRINGFIELD RESIDENTIAL CARE,CARE ESTABLISHMENT,OPPD - Cost of Care - Fenland Blocks,Fenland - Short term blocks,Rehabilitation And Respite Care
Cambridgeshire County Council,02-Jun-23,51301995838,"5,221.86",SPRINGFIELD RESIDENTIAL CARE,CARE ESTABLISHMENT,OPPD - Cost of Care - Fenland Blocks,Fenland - Short term blocks,Rehabilitation And Respite Care
Cambridgeshire County Council,02-Jun-23,51301995862,"5,282.20",Southwell Court,CARE ESTABLISHMENT,OPPD - Cost of Care - City South Blocks,City and South - Short term blocks,Rehabilitation And Respite Care
Cambridgeshire County Council,02-Jun-23,51301995862,"5,282.20",Southwell Court,CARE ESTABLISHMENT,OPPD - Cost of Care - City South Blocks,City and South - Short term blocks,Rehabilitation And Respite Care
Cambridgeshire County Council,02-Jun-23,51301995862,"5,282.20",Southwell Court,CARE ESTABLISHMENT,OPPD - Cost of Care - City South Blocks,City and South - Short term blocks,Rehabilitation And Respite Care
Cambridgeshire County Council,02-Jun-23,51301995862,"5,282.20",Southwell Court,CARE ESTABLISHMENT,OPPD - Cost of Care - City South Blocks,City and South - Short term blocks,Rehabilitation And Respite Care
Cambridgeshire County Council,02-Jun-23,51301995825,"5,396.53",RADIS COMMUNITY CARE,CARE ESTABLISHMENT,OPPD - Cost of Care - East Cambs - Over 65,East Cambs - O P Team - Care,Supported Living
Cambridgeshire County Council,02-Jun-23,51301995825,"5,396.53",RADIS COMMUNITY CARE,CARE ESTABLISHMENT,OPPD - Cost of Care - East Cambs - Over 65,East Cambs - O P Team - Care,Supported Living
Cambridgeshire County Council,02-Jun-23,51301995825,"5,396.53",RADIS COMMUNITY CARE,CARE ESTABLISHMENT,OPPD - Cost of Care - East Cambs - Over 65,East Cambs - O P Team - Care,Supported Living
Cambridgeshire County Council,02-Jun-23,51301995825,"5,396.53",RADIS COMMUNITY CARE,CARE ESTABLISHMENT,OPPD - Cost of Care - East Cambs - Over 65,East Cambs - O P Team - Care,Supported Living
Cambridgeshire County Council,02-Jun-23,51301995859,"5,717.68",SWAN HOUSE NURSING & RESIDENTIAL HOME,CARE ESTABLISHMENT,OPPD - Cost of Care - Fenland Blocks,Fenland - Long term blocks,Nursing Care
Cambridgeshire County Council,02-Jun-23,51301995859,"5,717.68",SWAN HOUSE NURSING & RESIDENTIAL HOME,CARE ESTABLISHMENT,OPPD - Cost of Care - Fenland Blocks,Fenland - Long term blocks,Nursing Care
Cambridgeshire County Council,02-Jun-23,51301995859,"5,717.68",SWAN HOUSE NURSING & RESIDENTIAL HOME,CARE ESTABLISHMENT,OPPD - Cost of Care - Fenland Blocks,Fenland - Long term blocks,Nursing Care
Cambridgeshire County Council,02-Jun-23,51301995859,"5,717.68",SWAN HOUSE NURSING & RESIDENTIAL HOME,CARE ESTABLISHMENT,OPPD - Cost of Care - Fenland Blocks,Fenland - Long term blocks,Nursing Care
Cambridgeshire County Council,02-Jun-23,51301995821,"5,733.42",BROOK HEALTHCARE,CARE ESTABLISHMENT,OPPD - Cost of Care - City South Blocks,City and South - Long term blocks,Residential Care
Cambridgeshire County Council,02-Jun-23,51301995875,"5,849.32",TCS Medicare Ltd (Trinity care),CARE ESTABLISHMENT,Commissioning - Dom Cars,Hancock-Funded Dom-Cars,Domiciliary Care
Cambridgeshire County Council,02-Jun-23,51301995875,"5,849.32",TCS Medicare Ltd (Trinity care),CARE ESTABLISHMENT,Commissioning - Dom Cars,Hancock-Funded Dom-Cars,Domiciliary Care
Cambridgeshire County Council,02-Jun-23,51301995875,"5,849.32",TCS Medicare Ltd (Trinity care),CARE ESTABLISHMENT,Commissioning - Dom Cars,Hancock-Funded Dom-Cars,Domiciliary Care
Cambridgeshire County Council,02-Jun-23,51301995875,"5,849.32",TCS Medicare Ltd (Trinity care),CARE ESTABLISHMENT,Commissioning - Dom Cars,Hancock-Funded Dom-Cars,Domiciliary Care
Cambridgeshire County Council,02-Jun-23,51301995734,"5,940.00",BIDWELLS LLP,TRADE SUPPLIER,County Farms Investment (Viability),Middle Farm,Construction - External Professional Fees
Cambridgeshire County Council,02-Jun-23,51301995735,"5,940.00",BIDWELLS LLP,TRADE SUPPLIER,County Farms Investment (Viability),Meads Farm,Construction - External Professional Fees
Cambridgeshire County Council,02-Jun-23,51301995836,"5,967.84",THE FIRS (Barrels Care),CARE ESTABLISHMENT,OPPD - Cost of Care - East Cambs Blocks,East Cambs � Long term Blocks,Residential Care
Cambridgeshire County Council,02-Jun-23,51301995836,"5,967.84",THE FIRS (Barrels Care),CARE ESTABLISHMENT,OPPD - Cost of Care - East Cambs Blocks,East Cambs � Long term Blocks,Residential Care
Cambridgeshire County Council,02-Jun-23,51301995836,"5,967.84",THE FIRS (Barrels Care),CARE ESTABLISHMENT,OPPD - Cost of Care - East Cambs Blocks,East Cambs � Long term Blocks,Residential Care
Cambridgeshire County Council,02-Jun-23,51301995836,"5,967.84",THE FIRS (Barrels Care),CARE ESTABLISHMENT,OPPD - Cost of Care - East Cambs Blocks,East Cambs � Long term Blocks,Residential Care
Cambridgeshire County Council,02-Jun-23,51301995871,"6,123.04",HARDWICK DENE,CARE ESTABLISHMENT,OPPD - Cost of Care - Huntingdon Blocks,Hunts - Short term blocks,Rehabilitation And Respite Care
Cambridgeshire County Council,02-Jun-23,51301995871,"6,123.04",HARDWICK DENE,CARE ESTABLISHMENT,OPPD - Cost of Care - Huntingdon Blocks,Hunts - Short term blocks,Rehabilitation And Respite Care
Cambridgeshire County Council,02-Jun-23,51301995871,"6,123.04",HARDWICK DENE,CARE ESTABLISHMENT,OPPD - Cost of Care - Huntingdon Blocks,Hunts - Short term blocks,Rehabilitation And Respite Care
Cambridgeshire County Council,02-Jun-23,51301995871,"6,123.04",HARDWICK DENE,CARE ESTABLISHMENT,OPPD - Cost of Care - Huntingdon Blocks,Hunts - Short term blocks,Rehabilitation And Respite Care
Cambridgeshire County Council,02-Jun-23,51301995856,"6,123.04",RHEOLA HEALTHCARE,CARE ESTABLISHMENT,OPPD - Cost of Care - Huntingdon Blocks,Hunts - Long term blocks,Residential Care
Cambridgeshire County Council,02-Jun-23,51301995856,"6,123.04",RHEOLA HEALTHCARE,CARE ESTABLISHMENT,OPPD - Cost of Care - Huntingdon Blocks,Hunts - Long term blocks,Residential Care
Cambridgeshire County Council,02-Jun-23,51301995856,"6,123.04",RHEOLA HEALTHCARE,CARE ESTABLISHMENT,OPPD - Cost of Care - Huntingdon Blocks,Hunts - Long term blocks,Residential Care
Cambridgeshire County Council,02-Jun-23,51301995856,"6,123.04",RHEOLA HEALTHCARE,CARE ESTABLISHMENT,OPPD - Cost of Care - Huntingdon Blocks,Hunts - Long term blocks,Residential Care
Cambridgeshire County Council,02-Jun-23,51301994877,"6,223.34",SEND4Change,COMPANY,SEND Financing - DSG,SEND Transformation Programme,Agency Staff
Cambridgeshire County Council,02-Jun-23,51301995908,"6,259.02",EAST CAMBRIDGESHIRE DISTRICT COUNCIL,OTHER PUBLIC BODIES,Highways Maintenance,Highways Maintenance - Works,Village Maintenance
Cambridgeshire County Council,02-Jun-23,51301995873,"6,376.37",Maven Healthcare,CARE ESTABLISHMENT,OPPD - Cost of Care - City South Blocks,City and South - Long term blocks,Nursing Care
Cambridgeshire County Council,02-Jun-23,51301995873,"6,376.37",Maven Healthcare,CARE ESTABLISHMENT,OPPD - Cost of Care - City South Blocks,City and South - Long term blocks,Nursing Care
Cambridgeshire County Council,02-Jun-23,51301995873,"6,376.37",Maven Healthcare,CARE ESTABLISHMENT,OPPD - Cost of Care - City South Blocks,City and South - Long term blocks,Nursing Care
Cambridgeshire County Council,02-Jun-23,51301995873,"6,376.37",Maven Healthcare,CARE ESTABLISHMENT,OPPD - Cost of Care - City South Blocks,City and South - Long term blocks,Nursing Care
Cambridgeshire County Council,02-Jun-23,51301995992,"6,445.40",Redacted Personal Data,INDIVIDUAL,Children's Disability Direct Payments,CSC Direct Payments,Direct Payments
Cambridgeshire County Council,02-Jun-23,51301995819,"7,071.68",FORD HOUSE CARE HOME,CARE ESTABLISHMENT,OPPD - Cost of Care - Huntingdon - Over 65,Hunts OP Team - Care,Nursing Care
Cambridgeshire County Council,02-Jun-23,51301995819,"7,071.68",FORD HOUSE CARE HOME,CARE ESTABLISHMENT,OPPD - Cost of Care - Huntingdon - Over 65,Hunts OP Team - Care,Nursing Care
Cambridgeshire County Council,02-Jun-23,51301995819,"7,071.68",FORD HOUSE CARE HOME,CARE ESTABLISHMENT,OPPD - Cost of Care - Huntingdon - Over 65,Hunts OP Team - Care,Nursing Care
Cambridgeshire County Council,02-Jun-23,51301995819,"7,071.68",FORD HOUSE CARE HOME,CARE ESTABLISHMENT,OPPD - Cost of Care - Huntingdon - Over 65,Hunts OP Team - Care,Nursing Care
Cambridgeshire County Council,02-Jun-23,51301995826,"7,181.21",RADIS COMMUNITY CARE,CARE ESTABLISHMENT,OPPD - Cost of Care - Fenland - Over 65,Older People - Fenland - Care,Supported Living
Cambridgeshire County Council,02-Jun-23,51301995826,"7,181.21",RADIS COMMUNITY CARE,CARE ESTABLISHMENT,OPPD - Cost of Care - Fenland - Over 65,Older People - Fenland - Care,Supported Living
Cambridgeshire County Council,02-Jun-23,51301995826,"7,181.21",RADIS COMMUNITY CARE,CARE ESTABLISHMENT,OPPD - Cost of Care - Fenland - Over 65,Older People - Fenland - Care,Supported Living
Cambridgeshire County Council,02-Jun-23,51301995826,"7,181.21",RADIS COMMUNITY CARE,CARE ESTABLISHMENT,OPPD - Cost of Care - Fenland - Over 65,Older People - Fenland - Care,Supported Living
Cambridgeshire County Council,02-Jun-23,51301995821,"7,194.88",BROOK HEALTHCARE,CARE ESTABLISHMENT,OPPD - Cost of Care - City South Blocks,City and South - Long term blocks,Residential Care
Cambridgeshire County Council,02-Jun-23,51301995873,"7,287.28",Maven Healthcare,CARE ESTABLISHMENT,OPPD - Cost of Care - City South Blocks,City and South - Long term blocks,Nursing Care
Cambridgeshire County Council,02-Jun-23,51301995873,"7,287.28",Maven Healthcare,CARE ESTABLISHMENT,OPPD - Cost of Care - City South Blocks,City and South - Long term blocks,Nursing Care
Cambridgeshire County Council,02-Jun-23,51301995873,"7,287.28",Maven Healthcare,CARE ESTABLISHMENT,OPPD - Cost of Care - City South Blocks,City and South - Long term blocks,Nursing Care
Cambridgeshire County Council,02-Jun-23,51301995873,"7,287.28",Maven Healthcare,CARE ESTABLISHMENT,OPPD - Cost of Care - City South Blocks,City and South - Long term blocks,Nursing Care
Cambridgeshire County Council,02-Jun-23,51301995821,"7,574.04",BROOK HEALTHCARE,CARE ESTABLISHMENT,OPPD - Cost of Care - City South Blocks,City and South - Long term blocks,Residential Care
Cambridgeshire County Council,02-Jun-23,51301995828,"8,198.19",BUCHAN HEALTHCARE LTD,CARE ESTABLISHMENT,OPPD - Cost of Care - City South Blocks,City and South - Long term blocks,Nursing Care
Cambridgeshire County Council,02-Jun-23,51301995821,"9,088.84",BROOK HEALTHCARE,CARE ESTABLISHMENT,OPPD - Cost of Care - City South Blocks,City and South - Long term blocks,Residential Care
Cambridgeshire County Council,02-Jun-23,51301995822,"9,163.00",HUNTERS HEALTHCARE (HUNTERS DOWN),CARE ESTABLISHMENT,OPPD - Cost of Care - Huntingdon Blocks,Hunts - Long term blocks,Nursing Care
Cambridgeshire County Council,02-Jun-23,51301995822,"9,163.00",HUNTERS HEALTHCARE (HUNTERS DOWN),CARE ESTABLISHMENT,OPPD - Cost of Care - Huntingdon Blocks,Hunts - Long term blocks,Nursing Care
Cambridgeshire County Council,02-Jun-23,51301995822,"9,163.00",HUNTERS HEALTHCARE (HUNTERS DOWN),CARE ESTABLISHMENT,OPPD - Cost of Care - Huntingdon Blocks,Hunts - Long term blocks,Nursing Care
Cambridgeshire County Council,02-Jun-23,51301995822,"9,163.00",HUNTERS HEALTHCARE (HUNTERS DOWN),CARE ESTABLISHMENT,OPPD - Cost of Care - Huntingdon Blocks,Hunts - Long term blocks,Nursing Care
Cambridgeshire County Council,02-Jun-23,51301995822,"9,184.56",HUNTERS HEALTHCARE (HUNTERS DOWN),CARE ESTABLISHMENT,OPPD - Cost of Care - Huntingdon Blocks,Hunts - Long term blocks,Nursing Care
Cambridgeshire County Council,02-Jun-23,51301995822,"9,184.56",HUNTERS HEALTHCARE (HUNTERS DOWN),CARE ESTABLISHMENT,OPPD - Cost of Care - Huntingdon Blocks,Hunts - Long term blocks,Nursing Care
Cambridgeshire County Council,02-Jun-23,51301995822,"9,184.56",HUNTERS HEALTHCARE (HUNTERS DOWN),CARE ESTABLISHMENT,OPPD - Cost of Care - Huntingdon Blocks,Hunts - Long term blocks,Nursing Care
Cambridgeshire County Council,02-Jun-23,51301995822,"9,184.56",HUNTERS HEALTHCARE (HUNTERS DOWN),CARE ESTABLISHMENT,OPPD - Cost of Care - Huntingdon Blocks,Hunts - Long term blocks,Nursing Care
Cambridgeshire County Council,02-Jun-23,51301995819,"9,723.56",FORD HOUSE CARE HOME,CARE ESTABLISHMENT,OPPD - Cost of Care - Huntingdon - Over 65,Hunts OP Team - Care,Nursing Care
Cambridgeshire County Council,02-Jun-23,51301995819,"9,723.56",FORD HOUSE CARE HOME,CARE ESTABLISHMENT,OPPD - Cost of Care - Huntingdon - Over 65,Hunts OP Team - Care,Nursing Care
Cambridgeshire County Council,02-Jun-23,51301995819,"9,723.56",FORD HOUSE CARE HOME,CARE ESTABLISHMENT,OPPD - Cost of Care - Huntingdon - Over 65,Hunts OP Team - Care,Nursing Care
Cambridgeshire County Council,02-Jun-23,51301995819,"9,723.56",FORD HOUSE CARE HOME,CARE ESTABLISHMENT,OPPD - Cost of Care - Huntingdon - Over 65,Hunts OP Team - Care,Nursing Care
Cambridgeshire County Council,02-Jun-23,51301995867,"10,399.51",ETHELDRED HOUSE,CARE ESTABLISHMENT,OPPD - Cost of Care - City South Blocks,City and South - Long term blocks,Nursing Care
Cambridgeshire County Council,02-Jun-23,51301995867,"10,399.51",ETHELDRED HOUSE,CARE ESTABLISHMENT,OPPD - Cost of Care - City South Blocks,City and South - Long term blocks,Nursing Care
Cambridgeshire County Council,02-Jun-23,51301995867,"10,399.51",ETHELDRED HOUSE,CARE ESTABLISHMENT,OPPD - Cost of Care - City South Blocks,City and South - Long term blocks,Nursing Care
Cambridgeshire County Council,02-Jun-23,51301995867,"10,399.51",ETHELDRED HOUSE,CARE ESTABLISHMENT,OPPD - Cost of Care - City South Blocks,City and South - Long term blocks,Nursing Care
Cambridgeshire County Council,02-Jun-23,51301995821,"10,603.65",BROOK HEALTHCARE,CARE ESTABLISHMENT,OPPD - Cost of Care - City South Blocks,City and South - Long term blocks,Residential Care
Cambridgeshire County Council,02-Jun-23,51301995821,"10,603.65",BROOK HEALTHCARE,CARE ESTABLISHMENT,OPPD - Cost of Care - City South Blocks,City and South - Long term blocks,Residential Care
Cambridgeshire County Council,02-Jun-23,51301995821,"10,603.65",BROOK HEALTHCARE,CARE ESTABLISHMENT,OPPD - Cost of Care - City South Blocks,City and South - Long term blocks,Residential Care
Cambridgeshire County Council,02-Jun-23,51301995821,"10,603.65",BROOK HEALTHCARE,CARE ESTABLISHMENT,OPPD - Cost of Care - City South Blocks,City and South - Long term blocks,Residential Care
Cambridgeshire County Council,02-Jun-23,51301995821,"10,603.65",BROOK HEALTHCARE,CARE ESTABLISHMENT,OPPD - Cost of Care - City South Blocks,City and South - Long term blocks,Residential Care
Cambridgeshire County Council,02-Jun-23,51301995821,"10,603.65",BROOK HEALTHCARE,CARE ESTABLISHMENT,OPPD - Cost of Care - City South Blocks,City and South - Long term blocks,Residential Care
Cambridgeshire County Council,02-Jun-23,51301995821,"10,603.65",BROOK HEALTHCARE,CARE ESTABLISHMENT,OPPD - Cost of Care - City South Blocks,City and South - Long term blocks,Residential Care
Cambridgeshire County Council,02-Jun-23,51301995821,"10,603.65",BROOK HEALTHCARE,CARE ESTABLISHMENT,OPPD - Cost of Care - City South Blocks,City and South - Long term blocks,Residential Care
Cambridgeshire County Council,02-Jun-23,51301995821,"10,603.65",BROOK HEALTHCARE,CARE ESTABLISHMENT,OPPD - Cost of Care - City South Blocks,City and South - Long term blocks,Residential Care
Cambridgeshire County Council,02-Jun-23,51301995821,"10,603.65",BROOK HEALTHCARE,CARE ESTABLISHMENT,OPPD - Cost of Care - City South Blocks,City and South - Long term blocks,Residential Care
Cambridgeshire County Council,02-Jun-23,51301995821,"10,603.65",BROOK HEALTHCARE,CARE ESTABLISHMENT,OPPD - Cost of Care - City South Blocks,City and South - Long term blocks,Residential Care
Cambridgeshire County Council,02-Jun-23,51301995821,"10,603.65",BROOK HEALTHCARE,CARE ESTABLISHMENT,OPPD - Cost of Care - City South Blocks,City and South - Long term blocks,Residential Care
Cambridgeshire County Council,02-Jun-23,51301995821,"10,603.65",BROOK HEALTHCARE,CARE ESTABLISHMENT,OPPD - Cost of Care - City South Blocks,City and South - Long term blocks,Residential Care
Cambridgeshire County Council,02-Jun-23,51301995821,"10,603.65",BROOK HEALTHCARE,CARE ESTABLISHMENT,OPPD - Cost of Care - City South Blocks,City and South - Long term blocks,Residential Care
Cambridgeshire County Council,02-Jun-23,51301995821,"10,603.65",BROOK HEALTHCARE,CARE ESTABLISHMENT,OPPD - Cost of Care - City South Blocks,City and South - Long term blocks,Residential Care
Cambridgeshire County Council,02-Jun-23,51301995821,"10,603.65",BROOK HEALTHCARE,CARE ESTABLISHMENT,OPPD - Cost of Care - City South Blocks,City and South - Long term blocks,Residential Care
Cambridgeshire County Council,02-Jun-23,51301995821,"10,603.65",BROOK HEALTHCARE,CARE ESTABLISHMENT,OPPD - Cost of Care - City South Blocks,City and South - Long term blocks,Residential Care
Cambridgeshire County Council,02-Jun-23,51301995821,"10,603.65",BROOK HEALTHCARE,CARE ESTABLISHMENT,OPPD - Cost of Care - City South Blocks,City and South - Long term blocks,Residential Care
Cambridgeshire County Council,02-Jun-23,51301995821,"10,603.65",BROOK HEALTHCARE,CARE ESTABLISHMENT,OPPD - Cost of Care - City South Blocks,City and South - Long term blocks,Residential Care
Cambridgeshire County Council,02-Jun-23,51301995821,"10,603.65",BROOK HEALTHCARE,CARE ESTABLISHMENT,OPPD - Cost of Care - City South Blocks,City and South - Long term blocks,Residential Care
Cambridgeshire County Council,02-Jun-23,51301995821,"10,603.65",BROOK HEALTHCARE,CARE ESTABLISHMENT,OPPD - Cost of Care - City South Blocks,City and South - Long term blocks,Residential Care
Cambridgeshire County Council,02-Jun-23,51301995821,"10,603.65",BROOK HEALTHCARE,CARE ESTABLISHMENT,OPPD - Cost of Care - City South Blocks,City and South - Long term blocks,Residential Care
Cambridgeshire County Council,02-Jun-23,51301995821,"10,603.65",BROOK HEALTHCARE,CARE ESTABLISHMENT,OPPD - Cost of Care - City South Blocks,City and South - Long term blocks,Residential Care
Cambridgeshire County Council,02-Jun-23,51301995821,"10,603.65",BROOK HEALTHCARE,CARE ESTABLISHMENT,OPPD - Cost of Care - City South Blocks,City and South - Long term blocks,Residential Care
Cambridgeshire County Council,02-Jun-23,51301995821,"10,603.65",BROOK HEALTHCARE,CARE ESTABLISHMENT,OPPD - Cost of Care - City South Blocks,City and South - Long term blocks,Residential Care
Cambridgeshire County Council,02-Jun-23,51301995821,"10,603.65",BROOK HEALTHCARE,CARE ESTABLISHMENT,OPPD - Cost of Care - City South Blocks,City and South - Long term blocks,Residential Care
Cambridgeshire County Council,02-Jun-23,51301995821,"10,603.65",BROOK HEALTHCARE,CARE ESTABLISHMENT,OPPD - Cost of Care - City South Blocks,City and South - Long term blocks,Residential Care
Cambridgeshire County Council,02-Jun-23,51301995821,"10,603.65",BROOK HEALTHCARE,CARE ESTABLISHMENT,OPPD - Cost of Care - City South Blocks,City and South - Long term blocks,Residential Care
Cambridgeshire County Council,02-Jun-23,51301995821,"10,603.65",BROOK HEALTHCARE,CARE ESTABLISHMENT,OPPD - Cost of Care - City South Blocks,City and South - Long term blocks,Residential Care
Cambridgeshire County Council,02-Jun-23,51301995820,"11,242.00",FITZWILLIAM HEALTHCARE LTD,CARE ESTABLISHMENT,OPPD - Cost of Care - City South Blocks,City and South - Long term blocks,Residential Care
Cambridgeshire County Council,02-Jun-23,51301995828,"11,451.44",BUCHAN HEALTHCARE LTD,CARE ESTABLISHMENT,OPPD - Cost of Care - City South Blocks,City and South - Long term blocks,Nursing Care
Cambridgeshire County Council,02-Jun-23,51301995828,"12,290.33",BUCHAN HEALTHCARE LTD,CARE ESTABLISHMENT,OPPD - Cost of Care - City South Blocks,City and South - Long term blocks,Nursing Care
Cambridgeshire County Council,02-Jun-23,51301995828,"12,290.33",BUCHAN HEALTHCARE LTD,CARE ESTABLISHMENT,OPPD - Cost of Care - City South Blocks,City and South - Long term blocks,Nursing Care
Cambridgeshire County Council,02-Jun-23,51301995828,"12,290.33",BUCHAN HEALTHCARE LTD,CARE ESTABLISHMENT,OPPD - Cost of Care - City South Blocks,City and South - Long term blocks,Nursing Care
Cambridgeshire County Council,02-Jun-23,51301995828,"12,290.33",BUCHAN HEALTHCARE LTD,CARE ESTABLISHMENT,OPPD - Cost of Care - City South Blocks,City and South - Long term blocks,Nursing Care
Cambridgeshire County Council,02-Jun-23,51301995822,"12,375.44",HUNTERS HEALTHCARE (HUNTERS DOWN),CARE ESTABLISHMENT,OPPD - Cost of Care - Huntingdon Blocks,Hunts - Long term blocks,Nursing Care
Cambridgeshire County Council,02-Jun-23,51301995822,"12,375.44",HUNTERS HEALTHCARE (HUNTERS DOWN),CARE ESTABLISHMENT,OPPD - Cost of Care - Huntingdon Blocks,Hunts - Long term blocks,Nursing Care
Cambridgeshire County Council,02-Jun-23,51301995822,"12,375.44",HUNTERS HEALTHCARE (HUNTERS DOWN),CARE ESTABLISHMENT,OPPD - Cost of Care - Huntingdon Blocks,Hunts - Long term blocks,Nursing Care
Cambridgeshire County Council,02-Jun-23,51301995822,"12,375.44",HUNTERS HEALTHCARE (HUNTERS DOWN),CARE ESTABLISHMENT,OPPD - Cost of Care - Huntingdon Blocks,Hunts - Long term blocks,Nursing Care
Cambridgeshire County Council,02-Jun-23,51301995833,"13,235.74",ST GEORGE'S COURT,CARE ESTABLISHMENT,OPPD - Cost of Care - City South Blocks,City and South - Long term blocks,Nursing Care
Cambridgeshire County Council,02-Jun-23,51301995833,"13,235.74",ST GEORGE'S COURT,CARE ESTABLISHMENT,OPPD - Cost of Care - City South Blocks,City and South - Long term blocks,Nursing Care
Cambridgeshire County Council,02-Jun-23,51301995833,"13,235.74",ST GEORGE'S COURT,CARE ESTABLISHMENT,OPPD - Cost of Care - City South Blocks,City and South - Long term blocks,Nursing Care
Cambridgeshire County Council,02-Jun-23,51301995833,"13,235.74",ST GEORGE'S COURT,CARE ESTABLISHMENT,OPPD - Cost of Care - City South Blocks,City and South - Long term blocks,Nursing Care
Cambridgeshire County Council,02-Jun-23,51301995827,"13,320.04",RADIS COMMUNITY CARE,CARE ESTABLISHMENT,OPPD - Cost of Care - City South - Over 65,Older People - City & South - Care,Supported Living
Cambridgeshire County Council,02-Jun-23,51301995827,"13,320.04",RADIS COMMUNITY CARE,CARE ESTABLISHMENT,OPPD - Cost of Care - City South - Over 65,Older People - City & South - Care,Supported Living
Cambridgeshire County Council,02-Jun-23,51301995827,"13,320.04",RADIS COMMUNITY CARE,CARE ESTABLISHMENT,OPPD - Cost of Care - City South - Over 65,Older People - City & South - Care,Supported Living
Cambridgeshire County Council,02-Jun-23,51301995827,"13,320.04",RADIS COMMUNITY CARE,CARE ESTABLISHMENT,OPPD - Cost of Care - City South - Over 65,Older People - City & South - Care,Supported Living
Cambridgeshire County Council,02-Jun-23,51301995821,"13,377.98",BROOK HEALTHCARE,CARE ESTABLISHMENT,OPPD - Cost of Care - City South Blocks,City and South - Long term blocks,Residential Care
Cambridgeshire County Council,02-Jun-23,51301995821,"13,377.98",BROOK HEALTHCARE,CARE ESTABLISHMENT,OPPD - Cost of Care - City South Blocks,City and South - Long term blocks,Residential Care
Cambridgeshire County Council,02-Jun-23,51301995821,"13,377.98",BROOK HEALTHCARE,CARE ESTABLISHMENT,OPPD - Cost of Care - City South Blocks,City and South - Long term blocks,Residential Care
Cambridgeshire County Council,02-Jun-23,51301995823,"13,663.65",COTTENHAM COURT NURSING HOME,CARE ESTABLISHMENT,OPPD - Cost of Care - City South Blocks,City and South - Long term blocks,Nursing Care
Cambridgeshire County Council,02-Jun-23,51301995823,"13,663.65",COTTENHAM COURT NURSING HOME,CARE ESTABLISHMENT,OPPD - Cost of Care - City South Blocks,City and South - Long term blocks,Nursing Care
Cambridgeshire County Council,02-Jun-23,51301995823,"13,663.65",COTTENHAM COURT NURSING HOME,CARE ESTABLISHMENT,OPPD - Cost of Care - City South Blocks,City and South - Long term blocks,Nursing Care
Cambridgeshire County Council,02-Jun-23,51301995823,"13,663.65",COTTENHAM COURT NURSING HOME,CARE ESTABLISHMENT,OPPD - Cost of Care - City South Blocks,City and South - Long term blocks,Nursing Care
Cambridgeshire County Council,02-Jun-23,51301995856,"14,660.80",RHEOLA HEALTHCARE,CARE ESTABLISHMENT,OPPD - Cost of Care - Huntingdon Blocks,Hunts - Long term blocks,Residential Care
Cambridgeshire County Council,02-Jun-23,51301995856,"14,660.80",RHEOLA HEALTHCARE,CARE ESTABLISHMENT,OPPD - Cost of Care - Huntingdon Blocks,Hunts - Long term blocks,Residential Care
Cambridgeshire County Council,02-Jun-23,51301995856,"14,660.80",RHEOLA HEALTHCARE,CARE ESTABLISHMENT,OPPD - Cost of Care - Huntingdon Blocks,Hunts - Long term blocks,Residential Care
Cambridgeshire County Council,02-Jun-23,51301995856,"14,660.80",RHEOLA HEALTHCARE,CARE ESTABLISHMENT,OPPD - Cost of Care - Huntingdon Blocks,Hunts - Long term blocks,Residential Care
Cambridgeshire County Council,02-Jun-23,51301995820,"15,738.80",FITZWILLIAM HEALTHCARE LTD,CARE ESTABLISHMENT,OPPD - Cost of Care - City South Blocks,City and South - Long term blocks,Residential Care
Cambridgeshire County Council,02-Jun-23,51301995820,"15,738.80",FITZWILLIAM HEALTHCARE LTD,CARE ESTABLISHMENT,OPPD - Cost of Care - City South Blocks,City and South - Long term blocks,Residential Care
Cambridgeshire County Council,02-Jun-23,51301995820,"15,738.80",FITZWILLIAM HEALTHCARE LTD,CARE ESTABLISHMENT,OPPD - Cost of Care - City South Blocks,City and South - Long term blocks,Residential Care
Cambridgeshire County Council,02-Jun-23,51301994862,"17,302.80",G & S HUTCHINSON LTD,COMPANY,"School Condition, Maintenance & Suitability","School Condition, Maintenance & Suitability",Buildings - Roof
Cambridgeshire County Council,02-Jun-23,51301996053,"18,037.91",Irwin Mitchell Solicitors LLP,PARTNERSHIP,Insurance Fund,Liability,Insurance Claims Paid
Cambridgeshire County Council,02-Jun-23,51301995931,"18,446.40",PITNEY BOWES FINANCE PLC,TRADE SUPPLIER,Digital Engagement,IT Strategy - Digital Engagement,IT Hardware
Cambridgeshire County Council,02-Jun-23,51301995857,"18,886.56",PRIMROSE HEALTHCARE,CARE ESTABLISHMENT,OPPD - Cost of Care - City South Blocks,City and South - Long term blocks,Residential Care
Cambridgeshire County Council,02-Jun-23,51301995857,"18,886.56",PRIMROSE HEALTHCARE,CARE ESTABLISHMENT,OPPD - Cost of Care - City South Blocks,City and South - Long term blocks,Residential Care
Cambridgeshire County Council,02-Jun-23,51301995857,"18,886.56",PRIMROSE HEALTHCARE,CARE ESTABLISHMENT,OPPD - Cost of Care - City South Blocks,City and South - Long term blocks,Residential Care
Cambridgeshire County Council,02-Jun-23,51301995857,"18,886.56",PRIMROSE HEALTHCARE,CARE ESTABLISHMENT,OPPD - Cost of Care - City South Blocks,City and South - Long term blocks,Residential Care
Cambridgeshire County Council,02-Jun-23,51301995828,"19,129.11",BUCHAN HEALTHCARE LTD,CARE ESTABLISHMENT,OPPD - Cost of Care - City South Blocks,City and South - Long term blocks,Nursing Care
Cambridgeshire County Council,02-Jun-23,51301995828,"19,129.11",BUCHAN HEALTHCARE LTD,CARE ESTABLISHMENT,OPPD - Cost of Care - City South Blocks,City and South - Long term blocks,Nursing Care
Cambridgeshire County Council,02-Jun-23,51301995828,"19,129.11",BUCHAN HEALTHCARE LTD,CARE ESTABLISHMENT,OPPD - Cost of Care - City South Blocks,City and South - Long term blocks,Nursing Care
Cambridgeshire County Council,02-Jun-23,51301995833,"31,881.85",ST GEORGE'S COURT,CARE ESTABLISHMENT,OPPD - Cost of Care - City South Blocks,City and South - Long term blocks,Nursing Care
Cambridgeshire County Council,02-Jun-23,51301995833,"31,881.85",ST GEORGE'S COURT,CARE ESTABLISHMENT,OPPD - Cost of Care - City South Blocks,City and South - Long term blocks,Nursing Care
Cambridgeshire County Council,02-Jun-23,51301995833,"31,881.85",ST GEORGE'S COURT,CARE ESTABLISHMENT,OPPD - Cost of Care - City South Blocks,City and South - Long term blocks,Nursing Care
Cambridgeshire County Council,02-Jun-23,51301995833,"31,881.85",ST GEORGE'S COURT,CARE ESTABLISHMENT,OPPD - Cost of Care - City South Blocks,City and South - Long term blocks,Nursing Care
Cambridgeshire County Council,02-Jun-23,51301996051,"34,000.00",PETERBOROUGH CITY COUNCIL,OTHER PUBLIC BODIES,LAC Placements,Placements - secure accommodation,Agency Placements - Out of  County
Cambridgeshire County Council,02-Jun-23,51301979655,"51,212.53",ATKINS LTD,COMPANY,March Area Transport Study,March Area Transport Study,Construction - External Professional Fees
Cambridgeshire County Council,02-Jun-23,51301996052,"60,000.00",PETERBOROUGH CITY COUNCIL,OTHER PUBLIC BODIES,LAC Placements,Placements - secure accommodation,Agency Placements - Out of  County
Cambridgeshire County Council,02-Jun-23,51301995749,"139,235.17",CAMBRIDGESHIRE COMMUNITY SERVICES NHS TRUST,TRUST (OTHER),Community Sexual Health,SH STI  -  Community Sexual Health Services,Professional Fees and Hired Services
Cambridgeshire County Council,02-Jun-23,51301995932,"176,757.00",CAMBRIDGE REGIONAL COLLEGE,EDUCATION,SEND High Needs Top Up,High Needs Top Up - Post 16,Independent School Placements
Cambridgeshire County Council,02-Jun-23,51301995750,"285,785.58",CAMBRIDGESHIRE COMMUNITY SERVICES NHS TRUST,TRUST (OTHER),Community Sexual Health,SH STI  -  Community Sexual Health Services,Professional Fees and Hired Services
Cambridgeshire County Council,02-Jun-23,51301995780,"1,000,800.00",Pathfinder Legal Services Limited,TRADE SUPPLIER,Samuel Pepys Special School,Samuel Pepys Special School,Construction - External Professional Fees
Cambridgeshire County Council,02-Jun-23,51301996075,"1,277,563.64",MLL Telecom Limited,TRADE SUPPLIER,ICT Service,ICT Service Eastnet,Network Support Contracts
Cambridgeshire County Council,05-Jun-23,51301973498,"-9,312.31",Infinigate Cloud UK Ltd,COMPANY,ICT Service,ICT Service Technical Support,Computer software - purchase
Cambridgeshire County Council,05-Jun-23,51301996370,"-5,322.97",RADIS COMMUNITY CARE,CARE ESTABLISHMENT,OPPD - Cost of Care - Huntingdon - Over 65,Hunts OP Team - Care,Supported Living
Cambridgeshire County Council,05-Jun-23,51301996373,"-5,165.64",RADIS COMMUNITY CARE,CARE ESTABLISHMENT,OPPD - Cost of Care - East Cambs - Over 65,East Cambs - O P Team - Care,Supported Living
Cambridgeshire County Council,05-Jun-23,51301996374,"-5,146.19",RADIS COMMUNITY CARE,CARE ESTABLISHMENT,OPPD - Cost of Care - East Cambs - Over 65,East Cambs - O P Team - Care,Supported Living
Cambridgeshire County Council,05-Jun-23,51301996378,"-5,097.56",RADIS COMMUNITY CARE,CARE ESTABLISHMENT,OPPD - Cost of Care - East Cambs - Over 65,East Cambs - O P Team - Care,Supported Living
Cambridgeshire County Council,05-Jun-23,51301996371,"-4,752.12",RADIS COMMUNITY CARE,CARE ESTABLISHMENT,OPPD - Cost of Care - Huntingdon - Over 65,Hunts OP Team - Care,Supported Living
Cambridgeshire County Council,05-Jun-23,51301996372,"-4,742.60",RADIS COMMUNITY CARE,CARE ESTABLISHMENT,OPPD - Cost of Care - East Cambs - Over 65,East Cambs - O P Team - Care,Supported Living
Cambridgeshire County Council,05-Jun-23,51301996369,"-4,554.70",RADIS COMMUNITY CARE,CARE ESTABLISHMENT,OPPD - Cost of Care - Huntingdon - Over 65,Hunts OP Team - Care,Supported Living
Cambridgeshire County Council,05-Jun-23,51301996379,"-3,684.31",RADIS COMMUNITY CARE,CARE ESTABLISHMENT,OPPD - Cost of Care - Huntingdon - Over 65,Hunts OP Team - Care,Supported Living
Cambridgeshire County Council,05-Jun-23,51301996095,"-2,591.46",MLL Telecom Limited,TRADE SUPPLIER,EastNet,EastNet,Data Line - Rental
Cambridgeshire County Council,05-Jun-23,51301994445,"-1,997.14",CHS GROUP,CARE ESTABLISHMENT,LAC Placements,Placements - supported accommodation,Agency Placements - In County
Cambridgeshire County Council,05-Jun-23,51301996533,-937.44,QUALITY HOMECARE,CARE ESTABLISHMENT,OPPD - Cost of Care - East Cambs - Over 65,East Cambs - O P Team - Care,Domiciliary Care
Cambridgeshire County Council,05-Jun-23,51301997735,-705.60,MIHOMECARE LTD (THE CARE AGENCY),CARE ESTABLISHMENT,OPPD - Cost of Care - Fenland - Over 65,Older People - Fenland - Care,Domiciliary Care
Cambridgeshire County Council,05-Jun-23,51301997735,-705.60,MIHOMECARE LTD (THE CARE AGENCY),CARE ESTABLISHMENT,OPPD - Cost of Care - Fenland - Over 65,Older People - Fenland - Care,Domiciliary Care
Cambridgeshire County Council,05-Jun-23,51301997735,-705.60,MIHOMECARE LTD (THE CARE AGENCY),CARE ESTABLISHMENT,OPPD - Cost of Care - Fenland - Over 65,Older People - Fenland - Care,Domiciliary Care
Cambridgeshire County Council,05-Jun-23,51301997735,-705.60,MIHOMECARE LTD (THE CARE AGENCY),CARE ESTABLISHMENT,OPPD - Cost of Care - Fenland - Over 65,Older People - Fenland - Care,Domiciliary Care
Cambridgeshire County Council,05-Jun-23,51301997735,-705.60,MIHOMECARE LTD (THE CARE AGENCY),CARE ESTABLISHMENT,OPPD - Cost of Care - Fenland - Over 65,Older People - Fenland - Care,Domiciliary Care
Cambridgeshire County Council,05-Jun-23,51301997735,-705.60,MIHOMECARE LTD (THE CARE AGENCY),CARE ESTABLISHMENT,OPPD - Cost of Care - Fenland - Over 65,Older People - Fenland - Care,Domiciliary Care
Cambridgeshire County Council,05-Jun-23,51301997724,-671.76,Reliance Care Services Ltd,COMPANY,OPPD - Cost of Care - City South - Over 65,Older People - City & South - Care,Domiciliary Care
Cambridgeshire County Council,05-Jun-23,51301997724,-671.76,Reliance Care Services Ltd,COMPANY,OPPD - Cost of Care - City South - Over 65,Older People - City & South - Care,Domiciliary Care
Cambridgeshire County Council,05-Jun-23,51301997724,-671.76,Reliance Care Services Ltd,COMPANY,OPPD - Cost of Care - City South - Over 65,Older People - City & South - Care,Domiciliary Care
Cambridgeshire County Council,05-Jun-23,51301997724,-671.76,Reliance Care Services Ltd,COMPANY,OPPD - Cost of Care - City South - Over 65,Older People - City & South - Care,Domiciliary Care
Cambridgeshire County Council,05-Jun-23,51301997719,-653.10,Reliance Care Services Ltd,COMPANY,OPPD - Cost of Care - City South - Over 65,Older People - City & South - Care,Domiciliary Care
Cambridgeshire County Council,05-Jun-23,51301997719,-653.10,Reliance Care Services Ltd,COMPANY,OPPD - Cost of Care - City South - Over 65,Older People - City & South - Care,Domiciliary Care
Cambridgeshire County Council,05-Jun-23,51301997719,-653.10,Reliance Care Services Ltd,COMPANY,OPPD - Cost of Care - City South - Over 65,Older People - City & South - Care,Domiciliary Care
Cambridgeshire County Council,05-Jun-23,51301997719,-653.10,Reliance Care Services Ltd,COMPANY,OPPD - Cost of Care - City South - Over 65,Older People - City & South - Care,Domiciliary Care
Cambridgeshire County Council,05-Jun-23,51301996687,-642.25,PROMINENT VENTURES LTD T/A KARE PLUS CAMBRIDGE,CARE ESTABLISHMENT,OPPD - Cost of Care - City South - Over 65,Older People - City & South - Care,Domiciliary Care
Cambridgeshire County Council,05-Jun-23,51301996687,-642.25,PROMINENT VENTURES LTD T/A KARE PLUS CAMBRIDGE,CARE ESTABLISHMENT,OPPD - Cost of Care - City South - Over 65,Older People - City & South - Care,Domiciliary Care
Cambridgeshire County Council,05-Jun-23,51301996687,-642.25,PROMINENT VENTURES LTD T/A KARE PLUS CAMBRIDGE,CARE ESTABLISHMENT,OPPD - Cost of Care - City South - Over 65,Older People - City & South - Care,Domiciliary Care
Cambridgeshire County Council,05-Jun-23,51301996687,-642.25,PROMINENT VENTURES LTD T/A KARE PLUS CAMBRIDGE,CARE ESTABLISHMENT,OPPD - Cost of Care - City South - Over 65,Older People - City & South - Care,Domiciliary Care
Cambridgeshire County Council,05-Jun-23,51301996687,-642.25,PROMINENT VENTURES LTD T/A KARE PLUS CAMBRIDGE,CARE ESTABLISHMENT,OPPD - Cost of Care - City South - Over 65,Older People - City & South - Care,Domiciliary Care
Cambridgeshire County Council,05-Jun-23,51301996687,-642.25,PROMINENT VENTURES LTD T/A KARE PLUS CAMBRIDGE,CARE ESTABLISHMENT,OPPD - Cost of Care - City South - Over 65,Older People - City & South - Care,Domiciliary Care
Cambridgeshire County Council,05-Jun-23,51301996687,-642.25,PROMINENT VENTURES LTD T/A KARE PLUS CAMBRIDGE,CARE ESTABLISHMENT,OPPD - Cost of Care - City South - Over 65,Older People - City & South - Care,Domiciliary Care
Cambridgeshire County Council,05-Jun-23,51301996687,-642.25,PROMINENT VENTURES LTD T/A KARE PLUS CAMBRIDGE,CARE ESTABLISHMENT,OPPD - Cost of Care - City South - Over 65,Older People - City & South - Care,Domiciliary Care
Cambridgeshire County Council,05-Jun-23,51301996476,-635.04,QUALITY HOMECARE,CARE ESTABLISHMENT,OPPD - Cost of Care - East Cambs - Over 65,East Cambs - O P Team - Care,Domiciliary Care
Cambridgeshire County Council,05-Jun-23,51301996476,-635.04,QUALITY HOMECARE,CARE ESTABLISHMENT,OPPD - Cost of Care - East Cambs - Over 65,East Cambs - O P Team - Care,Domiciliary Care
Cambridgeshire County Council,05-Jun-23,51301996476,-635.04,QUALITY HOMECARE,CARE ESTABLISHMENT,OPPD - Cost of Care - East Cambs - Over 65,East Cambs - O P Team - Care,Domiciliary Care
Cambridgeshire County Council,05-Jun-23,51301996476,-635.04,QUALITY HOMECARE,CARE ESTABLISHMENT,OPPD - Cost of Care - East Cambs - Over 65,East Cambs - O P Team - Care,Domiciliary Care
Cambridgeshire County Council,05-Jun-23,51301996476,-635.04,QUALITY HOMECARE,CARE ESTABLISHMENT,OPPD - Cost of Care - East Cambs - Over 65,East Cambs - O P Team - Care,Domiciliary Care
Cambridgeshire County Council,05-Jun-23,51301996476,-635.04,QUALITY HOMECARE,CARE ESTABLISHMENT,OPPD - Cost of Care - East Cambs - Over 65,East Cambs - O P Team - Care,Domiciliary Care
Cambridgeshire County Council,05-Jun-23,51301996476,-635.04,QUALITY HOMECARE,CARE ESTABLISHMENT,OPPD - Cost of Care - East Cambs - Over 65,East Cambs - O P Team - Care,Domiciliary Care
Cambridgeshire County Council,05-Jun-23,51301996502,-627.80,TCS Medicare Ltd (Trinity care),CARE ESTABLISHMENT,OPPD - Cost of Care - City South - Over 65,Older People - City & South - Care,Domiciliary Care
Cambridgeshire County Council,05-Jun-23,51301996502,-627.80,TCS Medicare Ltd (Trinity care),CARE ESTABLISHMENT,OPPD - Cost of Care - City South - Over 65,Older People - City & South - Care,Domiciliary Care
Cambridgeshire County Council,05-Jun-23,51301996502,-627.80,TCS Medicare Ltd (Trinity care),CARE ESTABLISHMENT,OPPD - Cost of Care - City South - Over 65,Older People - City & South - Care,Domiciliary Care
Cambridgeshire County Council,05-Jun-23,51301997735,-593.25,MIHOMECARE LTD (THE CARE AGENCY),CARE ESTABLISHMENT,OPPD - Cost of Care - Fenland - Over 65,Older People - Fenland - Care,Domiciliary Care
Cambridgeshire County Council,05-Jun-23,51301996485,-564.48,QUALITY HOMECARE,CARE ESTABLISHMENT,OPPD - Cost of Care - City South - Over 65,Older People - City & South - Care,Domiciliary Care
Cambridgeshire County Council,05-Jun-23,51301996485,-564.48,QUALITY HOMECARE,CARE ESTABLISHMENT,OPPD - Cost of Care - City South - Over 65,Older People - City & South - Care,Domiciliary Care
Cambridgeshire County Council,05-Jun-23,51301997230,-564.48,WESTMINSTER HOMECARE LIMITED,CARE ESTABLISHMENT,OPPD - Cost of Care - City South - Over 65,Older People - City & South - Care,Domiciliary Care
Cambridgeshire County Council,05-Jun-23,51301997230,-564.48,WESTMINSTER HOMECARE LIMITED,CARE ESTABLISHMENT,OPPD - Cost of Care - City South - Over 65,Older People - City & South - Care,Domiciliary Care
Cambridgeshire County Council,05-Jun-23,51301997230,-564.48,WESTMINSTER HOMECARE LIMITED,CARE ESTABLISHMENT,OPPD - Cost of Care - City South - Over 65,Older People - City & South - Care,Domiciliary Care
Cambridgeshire County Council,05-Jun-23,51301997230,-564.48,WESTMINSTER HOMECARE LIMITED,CARE ESTABLISHMENT,OPPD - Cost of Care - City South - Over 65,Older People - City & South - Care,Domiciliary Care
Cambridgeshire County Council,05-Jun-23,51301998076,-564.48,Faith Care Line Services Ltd,CARE ESTABLISHMENT,AMH Hunts and Fens - care,Hunts and Fens Adult Mental Health Team,Domiciliary Care
Cambridgeshire County Council,05-Jun-23,51301998076,-564.48,Faith Care Line Services Ltd,CARE ESTABLISHMENT,AMH Hunts and Fens - care,Hunts and Fens Adult Mental Health Team,Domiciliary Care
Cambridgeshire County Council,05-Jun-23,51301998076,-564.48,Faith Care Line Services Ltd,CARE ESTABLISHMENT,AMH Hunts and Fens - care,Hunts and Fens Adult Mental Health Team,Domiciliary Care
Cambridgeshire County Council,05-Jun-23,51301996318,-544.41,SEMI INDEPENDENT HOUSE,CARE ESTABLISHMENT,LAC Placements,Placements - residential homes,Agency Placements - In County
Cambridgeshire County Council,05-Jun-23,51301996812,-540.72,AVAILL HEALTHCARE,CARE ESTABLISHMENT,LD - East Locality - Cost of Care,LD - East Cambs - Care,Domiciliary Care
Cambridgeshire County Council,05-Jun-23,51301997905,-538.16,Total Healthcare,COMPANY,OPPD - Cost of Care - Huntingdon - Under 65,OPPD - Under 65 - Huntingdon,Domiciliary Care
Cambridgeshire County Council,05-Jun-23,51301997905,-538.16,Total Healthcare,COMPANY,OPPD - Cost of Care - Huntingdon - Under 65,OPPD - Under 65 - Huntingdon,Domiciliary Care
Cambridgeshire County Council,05-Jun-23,51301997905,-538.16,Total Healthcare,COMPANY,OPPD - Cost of Care - Huntingdon - Under 65,OPPD - Under 65 - Huntingdon,Domiciliary Care
Cambridgeshire County Council,05-Jun-23,51301997905,-538.16,Total Healthcare,COMPANY,OPPD - Cost of Care - Huntingdon - Under 65,OPPD - Under 65 - Huntingdon,Domiciliary Care
Cambridgeshire County Council,05-Jun-23,51301997905,-538.16,Total Healthcare,COMPANY,OPPD - Cost of Care - Huntingdon - Under 65,OPPD - Under 65 - Huntingdon,Domiciliary Care
Cambridgeshire County Council,05-Jun-23,51301997905,-538.16,Total Healthcare,COMPANY,OPPD - Cost of Care - Huntingdon - Under 65,OPPD - Under 65 - Huntingdon,Domiciliary Care
Cambridgeshire County Council,05-Jun-23,51301996502,-527.63,TCS Medicare Ltd (Trinity care),CARE ESTABLISHMENT,OPPD - Cost of Care - City South - Over 65,Older People - City & South - Care,Domiciliary Care
Cambridgeshire County Council,05-Jun-23,51301998046,-527.24,THE EDMUND TRUST,CARE ESTABLISHMENT,LD - South Locality - Cost of Care,LD - South Cambs - Care,Domiciliary Care
Cambridgeshire County Council,05-Jun-23,51301998073,-522.48,Ray Care Services,CARE ESTABLISHMENT,OPPD - Cost of Care - City South - Over 65,Older People - City & South - Care,Domiciliary Care
Cambridgeshire County Council,05-Jun-23,51301998073,-522.48,Ray Care Services,CARE ESTABLISHMENT,OPPD - Cost of Care - City South - Over 65,Older People - City & South - Care,Domiciliary Care
Cambridgeshire County Council,05-Jun-23,51301998073,-522.48,Ray Care Services,CARE ESTABLISHMENT,OPPD - Cost of Care - City South - Over 65,Older People - City & South - Care,Domiciliary Care
Cambridgeshire County Council,05-Jun-23,51301998073,-522.48,Ray Care Services,CARE ESTABLISHMENT,OPPD - Cost of Care - City South - Over 65,Older People - City & South - Care,Domiciliary Care
Cambridgeshire County Council,05-Jun-23,51301998073,-522.48,Ray Care Services,CARE ESTABLISHMENT,OPPD - Cost of Care - City South - Over 65,Older People - City & South - Care,Domiciliary Care
Cambridgeshire County Council,05-Jun-23,51301998073,-522.48,Ray Care Services,CARE ESTABLISHMENT,OPPD - Cost of Care - City South - Over 65,Older People - City & South - Care,Domiciliary Care
Cambridgeshire County Council,05-Jun-23,51301998073,-522.48,Ray Care Services,CARE ESTABLISHMENT,OPPD - Cost of Care - City South - Over 65,Older People - City & South - Care,Domiciliary Care
Cambridgeshire County Council,05-Jun-23,51301998073,-522.48,Ray Care Services,CARE ESTABLISHMENT,OPPD - Cost of Care - City South - Over 65,Older People - City & South - Care,Domiciliary Care
Cambridgeshire County Council,05-Jun-23,51301998073,-522.48,Ray Care Services,CARE ESTABLISHMENT,OPPD - Cost of Care - City South - Over 65,Older People - City & South - Care,Domiciliary Care
Cambridgeshire County Council,05-Jun-23,51301998073,-522.48,Ray Care Services,CARE ESTABLISHMENT,OPPD - Cost of Care - City South - Over 65,Older People - City & South - Care,Domiciliary Care
Cambridgeshire County Council,05-Jun-23,51301998073,-522.48,Ray Care Services,CARE ESTABLISHMENT,OPPD - Cost of Care - City South - Over 65,Older People - City & South - Care,Domiciliary Care
Cambridgeshire County Council,05-Jun-23,51301998073,-522.48,Ray Care Services,CARE ESTABLISHMENT,OPPD - Cost of Care - City South - Over 65,Older People - City & South - Care,Domiciliary Care
Cambridgeshire County Council,05-Jun-23,51301998073,-522.48,Ray Care Services,CARE ESTABLISHMENT,OPPD - Cost of Care - City South - Over 65,Older People - City & South - Care,Domiciliary Care
Cambridgeshire County Council,05-Jun-23,51301998073,-522.48,Ray Care Services,CARE ESTABLISHMENT,OPPD - Cost of Care - City South - Over 65,Older People - City & South - Care,Domiciliary Care
Cambridgeshire County Council,05-Jun-23,51301996971,-518.28,MK WORLDWIDE LTD (T/A LEAD CARE),CARE ESTABLISHMENT,OPPD - Cost of Care - City South - Over 65,Older People - City & South - Care,Domiciliary Care
Cambridgeshire County Council,05-Jun-23,51301996971,-518.28,MK WORLDWIDE LTD (T/A LEAD CARE),CARE ESTABLISHMENT,OPPD - Cost of Care - City South - Over 65,Older People - City & South - Care,Domiciliary Care
Cambridgeshire County Council,05-Jun-23,51301996971,-518.28,MK WORLDWIDE LTD (T/A LEAD CARE),CARE ESTABLISHMENT,OPPD - Cost of Care - City South - Over 65,Older People - City & South - Care,Domiciliary Care
Cambridgeshire County Council,05-Jun-23,51301996979,-511.19,Beaumont HEALTHCARE LTD,CARE ESTABLISHMENT,OPPD - Under 65 - City South,OPPD - Under 65 - City South,Domiciliary Care
Cambridgeshire County Council,05-Jun-23,51301998778,508.40,Redacted Personal Data,FOSTER PARENT,Adoption Allowances,Adoption Allowances,Adoption Allowances
Cambridgeshire County Council,05-Jun-23,51301999012,510.00,Redacted Personal Data,FOSTER PARENT,Fostering,FCP allowances,Adoption Allowances
Cambridgeshire County Council,05-Jun-23,51301998826,510.00,Redacted Personal Data,INDIVIDUAL,Fostering,FCP allowances,Adoption Allowances
Cambridgeshire County Council,05-Jun-23,51301998827,510.00,Redacted Personal Data,INDIVIDUAL,Fostering,FCP allowances,Adoption Allowances
Cambridgeshire County Council,05-Jun-23,51301998836,510.00,Redacted Personal Data,FOSTER PARENT,Fostering,FCP allowances,Adoption Allowances
Cambridgeshire County Council,05-Jun-23,51301998889,510.00,Redacted Personal Data,FOSTER PARENT,Fostering,FCP allowances,Adoption Allowances
Cambridgeshire County Council,05-Jun-23,51301998930,510.00,Redacted Personal Data,PARENT/GUARDIAN,Fostering,FCP allowances,Adoption Allowances
Cambridgeshire County Council,05-Jun-23,51301998974,510.00,Redacted Personal Data,PARENT/GUARDIAN,Fostering,FCP allowances,Adoption Allowances
Cambridgeshire County Council,05-Jun-23,51301998875,510.00,Redacted Personal Data,FOSTER PARENT,Fostering,FCP allowances,Adoption Allowances
Cambridgeshire County Council,05-Jun-23,51301998837,510.00,Redacted Personal Data,FOSTER PARENT,Fostering,FCP allowances,Adoption Allowances
Cambridgeshire County Council,05-Jun-23,51301998838,510.00,Redacted Personal Data,FOSTER PARENT,Fostering,FCP allowances,Adoption Allowances
Cambridgeshire County Council,05-Jun-23,51301998971,510.00,Redacted Personal Data,FOSTER PARENT,Fostering,FCP allowances,Adoption Allowances
Cambridgeshire County Council,05-Jun-23,51301994109,514.00,IMPERIAL COLLEGE PROJECTS LIMITED,TRADE SUPPLIER,Coroners,Coroners General,Testing
Cambridgeshire County Council,05-Jun-23,51301996971,514.75,MK WORLDWIDE LTD (T/A LEAD CARE),CARE ESTABLISHMENT,OPPD - Cost of Care - City South - Over 65,Older People - City & South - Care,Domiciliary Care
Cambridgeshire County Council,05-Jun-23,51301996971,514.75,MK WORLDWIDE LTD (T/A LEAD CARE),CARE ESTABLISHMENT,OPPD - Cost of Care - City South - Over 65,Older People - City & South - Care,Domiciliary Care
Cambridgeshire County Council,05-Jun-23,51301996971,514.75,MK WORLDWIDE LTD (T/A LEAD CARE),CARE ESTABLISHMENT,OPPD - Cost of Care - City South - Over 65,Older People - City & South - Care,Domiciliary Care
Cambridgeshire County Council,05-Jun-23,51301996476,515.55,QUALITY HOMECARE,CARE ESTABLISHMENT,OPPD - Cost of Care - East Cambs - Over 65,East Cambs - O P Team - Care,Domiciliary Care
Cambridgeshire County Council,05-Jun-23,51301991471,516.26,EUCLID LIMITED (DENMEAD),TRADE SUPPLIER,Home to School Transport - Mainstream,Home to School Transport Mainstream - Central Costs,Printing
Cambridgeshire County Council,05-Jun-23,51301998210,516.40,THE RIVERSIDE GROUP LTD,CARE ESTABLISHMENT,Unaccompanied Asylum Seeking Children,Separated Migrant Children > 18,Living Spport Grants - Financial Assistance 18+
Cambridgeshire County Council,05-Jun-23,51301996740,518.67,Empathy Care 24 Limited,CARE ESTABLISHMENT,OPPD - Cost of Care - Fenland - Under 65,OPPD - Under 65 - Fenland,Domiciliary Care
Cambridgeshire County Council,05-Jun-23,51301996740,518.67,Empathy Care 24 Limited,CARE ESTABLISHMENT,OPPD - Cost of Care - Fenland - Under 65,OPPD - Under 65 - Fenland,Domiciliary Care
Cambridgeshire County Council,05-Jun-23,51301996740,518.67,Empathy Care 24 Limited,CARE ESTABLISHMENT,OPPD - Cost of Care - Fenland - Under 65,OPPD - Under 65 - Fenland,Domiciliary Care
Cambridgeshire County Council,05-Jun-23,51301996740,518.67,Empathy Care 24 Limited,CARE ESTABLISHMENT,OPPD - Cost of Care - Fenland - Under 65,OPPD - Under 65 - Fenland,Domiciliary Care
Cambridgeshire County Council,05-Jun-23,51301996740,518.67,Empathy Care 24 Limited,CARE ESTABLISHMENT,OPPD - Cost of Care - Fenland - Under 65,OPPD - Under 65 - Fenland,Domiciliary Care
Cambridgeshire County Council,05-Jun-23,51301996740,518.67,Empathy Care 24 Limited,CARE ESTABLISHMENT,OPPD - Cost of Care - Fenland - Under 65,OPPD - Under 65 - Fenland,Domiciliary Care
Cambridgeshire County Council,05-Jun-23,51301996740,518.67,Empathy Care 24 Limited,CARE ESTABLISHMENT,OPPD - Cost of Care - Fenland - Under 65,OPPD - Under 65 - Fenland,Domiciliary Care
Cambridgeshire County Council,05-Jun-23,51301998362,519.10,Redacted Personal Data,FOSTER PARENT,Adoption Allowances,Adoption Allowances,Adoption Allowances
Cambridgeshire County Council,05-Jun-23,51301998719,519.76,Redacted Personal Data,FOSTER PARENT,Adoption Allowances,Adoption Allowances,Adoption Allowances
Cambridgeshire County Council,05-Jun-23,51301997051,520.02,WESTMINSTER HOMECARE LIMITED,CARE ESTABLISHMENT,OPPD - Cost of Care - City South - Over 65,Older People - City & South - Care,Domiciliary Care
Cambridgeshire County Council,05-Jun-23,51301998919,532.00,Redacted Personal Data,FOSTER PARENT,Fostering,FCP allowances,Childrens Lodgings
Cambridgeshire County Council,05-Jun-23,51301998917,532.00,Redacted Personal Data,FOSTER PARENT,Fostering,FCP allowances,Adoption Allowances
Cambridgeshire County Council,05-Jun-23,51301998925,532.00,Redacted Personal Data,FOSTER PARENT,Fostering,FCP allowances,Adoption Allowances
Cambridgeshire County Council,05-Jun-23,51301998829,532.00,Redacted Personal Data,FOSTER PARENT,Fostering,FCP allowances,Childrens Lodgings
Cambridgeshire County Council,05-Jun-23,51301998791,532.00,Redacted Personal Data,INDIVIDUAL,Fostering,FCP allowances,Adoption Allowances
Cambridgeshire County Council,05-Jun-23,51301998803,532.00,Redacted Personal Data,INDIVIDUAL,Fostering,FCP allowances,Adoption Allowances
Cambridgeshire County Council,05-Jun-23,51301994107,535.00,IMPERIAL COLLEGE PROJECTS LIMITED,TRADE SUPPLIER,Coroners,Coroners General,Testing
Cambridgeshire County Council,05-Jun-23,51301998094,539.00,Healthy Care Limited,COMPANY,OPPD - Cost of Care - Fenland - Under 65,OPPD - Under 65 - Fenland,Domiciliary Care
Cambridgeshire County Council,05-Jun-23,51301998094,539.00,Healthy Care Limited,COMPANY,OPPD - Cost of Care - Fenland - Under 65,OPPD - Under 65 - Fenland,Domiciliary Care
Cambridgeshire County Council,05-Jun-23,51301998094,539.00,Healthy Care Limited,COMPANY,OPPD - Cost of Care - Fenland - Under 65,OPPD - Under 65 - Fenland,Domiciliary Care
Cambridgeshire County Council,05-Jun-23,51301998094,539.00,Healthy Care Limited,COMPANY,OPPD - Cost of Care - Fenland - Under 65,OPPD - Under 65 - Fenland,Domiciliary Care
Cambridgeshire County Council,05-Jun-23,51301998094,539.00,Healthy Care Limited,COMPANY,OPPD - Cost of Care - Fenland - Under 65,OPPD - Under 65 - Fenland,Domiciliary Care
Cambridgeshire County Council,05-Jun-23,51301998094,539.00,Healthy Care Limited,COMPANY,OPPD - Cost of Care - Fenland - Under 65,OPPD - Under 65 - Fenland,Domiciliary Care
Cambridgeshire County Council,05-Jun-23,51301998094,539.00,Healthy Care Limited,COMPANY,OPPD - Cost of Care - Fenland - Under 65,OPPD - Under 65 - Fenland,Domiciliary Care
Cambridgeshire County Council,05-Jun-23,51301998094,539.00,Healthy Care Limited,COMPANY,OPPD - Cost of Care - Fenland - Under 65,OPPD - Under 65 - Fenland,Domiciliary Care
Cambridgeshire County Council,05-Jun-23,51301998094,539.00,Healthy Care Limited,COMPANY,OPPD - Cost of Care - Fenland - Under 65,OPPD - Under 65 - Fenland,Domiciliary Care
Cambridgeshire County Council,05-Jun-23,51301998094,539.00,Healthy Care Limited,COMPANY,OPPD - Cost of Care - Fenland - Under 65,OPPD - Under 65 - Fenland,Domiciliary Care
Cambridgeshire County Council,05-Jun-23,51301998094,539.00,Healthy Care Limited,COMPANY,OPPD - Cost of Care - Fenland - Under 65,OPPD - Under 65 - Fenland,Domiciliary Care
Cambridgeshire County Council,05-Jun-23,51301998094,539.00,Healthy Care Limited,COMPANY,OPPD - Cost of Care - Fenland - Under 65,OPPD - Under 65 - Fenland,Domiciliary Care
Cambridgeshire County Council,05-Jun-23,51301998094,539.00,Healthy Care Limited,COMPANY,OPPD - Cost of Care - Fenland - Under 65,OPPD - Under 65 - Fenland,Domiciliary Care
Cambridgeshire County Council,05-Jun-23,51301998094,539.00,Healthy Care Limited,COMPANY,OPPD - Cost of Care - Fenland - Under 65,OPPD - Under 65 - Fenland,Domiciliary Care
Cambridgeshire County Council,05-Jun-23,51301998094,539.00,Healthy Care Limited,COMPANY,OPPD - Cost of Care - Fenland - Under 65,OPPD - Under 65 - Fenland,Domiciliary Care
Cambridgeshire County Council,05-Jun-23,51301998094,539.00,Healthy Care Limited,COMPANY,OPPD - Cost of Care - Fenland - Under 65,OPPD - Under 65 - Fenland,Domiciliary Care
Cambridgeshire County Council,05-Jun-23,51301998094,539.00,Healthy Care Limited,COMPANY,OPPD - Cost of Care - Fenland - Under 65,OPPD - Under 65 - Fenland,Domiciliary Care
Cambridgeshire County Council,05-Jun-23,51301998214,543.78,YMCA NORFOLK,CARE ESTABLISHMENT,Unaccompanied Asylum Seeking Children,Separated Migrant Children > 18,Living Spport Grants - Financial Assistance 18+
Cambridgeshire County Council,05-Jun-23,51301998707,547.44,Redacted Personal Data,FOSTER PARENT,Fostering,FCP allowances,Enhanced Payments
Cambridgeshire County Council,05-Jun-23,51301994123,548.00,IMPERIAL COLLEGE PROJECTS LIMITED,TRADE SUPPLIER,Coroners,Coroners General,Testing
Cambridgeshire County Council,05-Jun-23,51301988893,550.80,CRICK SOFTWARE LTD,TRADE SUPPLIER,ICT Service,ICT Service Sales,Materials for resale
Cambridgeshire County Council,05-Jun-23,51301998900,552.00,Redacted Personal Data,FOSTER PARENT,Fostering,FCP allowances,Adoption Allowances
Cambridgeshire County Council,05-Jun-23,51301998797,552.00,Redacted Personal Data,FOSTER PARENT,Fostering,FCP allowances,Childrens Lodgings
Cambridgeshire County Council,05-Jun-23,51301998958,552.00,Redacted Personal Data,FOSTER PARENT,Fostering,FCP allowances,Adoption Allowances
Cambridgeshire County Council,05-Jun-23,51301998849,552.00,Redacted Personal Data,FOSTER PARENT,Fostering,FCP allowances,Adoption Allowances
Cambridgeshire County Council,05-Jun-23,51301998850,552.00,Redacted Personal Data,FOSTER PARENT,Fostering,FCP allowances,Adoption Allowances
Cambridgeshire County Council,05-Jun-23,51301992762,556.56,PSL Print Management LTD,COMPANY,Shared Services Business Systems,Business Systems,Printing
Cambridgeshire County Council,05-Jun-23,51301994120,557.00,IMPERIAL COLLEGE PROJECTS LIMITED,TRADE SUPPLIER,Coroners,Coroners General,Testing
Cambridgeshire County Council,05-Jun-23,51301997230,558.54,WESTMINSTER HOMECARE LIMITED,CARE ESTABLISHMENT,OPPD - Cost of Care - City South - Over 65,Older People - City & South - Care,Domiciliary Care
Cambridgeshire County Council,05-Jun-23,51301994563,560.00,EAQ,EDUCATION,Out of School Tuition,Out of School Provision EHCPs,Independent School Placements
Cambridgeshire County Council,05-Jun-23,51301994552,560.00,EAQ,EDUCATION,Out of School Tuition,Out of School Provision EHCPs,Independent School Placements
Cambridgeshire County Council,05-Jun-23,51301993175,574.27,MADINGLEY MULCH,TRADE SUPPLIER,Grafham Water,Grafham Water Centre,Grounds Maintenance
Cambridgeshire County Council,05-Jun-23,51301988871,580.80,CRICK SOFTWARE LTD,TRADE SUPPLIER,ICT Service,ICT Service Sales,Materials for resale
Cambridgeshire County Council,05-Jun-23,51301998174,584.57,Elite care,CARE ESTABLISHMENT,Unaccompanied Asylum Seeking Children,Separated Migrant Children > 18,Living Spport Grants - Financial Assistance 18+
Cambridgeshire County Council,05-Jun-23,51301998177,584.57,Elite care,CARE ESTABLISHMENT,Unaccompanied Asylum Seeking Children,Separated Migrant Children > 18,Living Spport Grants - Financial Assistance 18+
Cambridgeshire County Council,05-Jun-23,51301998361,586.40,Redacted Personal Data,FOSTER PARENT,Adoption Allowances,Adoption Allowances,Adoption Allowances
Cambridgeshire County Council,05-Jun-23,51301997702,590.80,Reliance Care Services Ltd,COMPANY,OPPD - Cost of Care - City South - Over 65,Older People - City & South - Care,Domiciliary Care
Cambridgeshire County Council,05-Jun-23,51301997702,590.80,Reliance Care Services Ltd,COMPANY,OPPD - Cost of Care - City South - Over 65,Older People - City & South - Care,Domiciliary Care
Cambridgeshire County Council,05-Jun-23,51301997702,590.80,Reliance Care Services Ltd,COMPANY,OPPD - Cost of Care - City South - Over 65,Older People - City & South - Care,Domiciliary Care
Cambridgeshire County Council,05-Jun-23,51301997702,590.80,Reliance Care Services Ltd,COMPANY,OPPD - Cost of Care - City South - Over 65,Older People - City & South - Care,Domiciliary Care
Cambridgeshire County Council,05-Jun-23,51301998064,595.28,THE EDMUND TRUST,CARE ESTABLISHMENT,LD - City Locality - Cost of Care,LD - City - Care,Domiciliary Care
Cambridgeshire County Council,05-Jun-23,51301998149,597.00,Cambridge Care Company,CARE ESTABLISHMENT,Unaccompanied Asylum Seeking Children,Separated Migrant Children > 18,Living Spport Grants - Financial Assistance 18+
Cambridgeshire County Council,05-Jun-23,51301989786,600.00,MLL Telecom Limited,TRADE SUPPLIER,Connecting Cambs,Investment in Connecting Cambridgeshire,Construction - External Professional Fees
Cambridgeshire County Council,05-Jun-23,51301998792,600.00,Redacted Personal Data,INDIVIDUAL,Fostering,FCP allowances,Adoption Allowances
Cambridgeshire County Council,05-Jun-23,51301998363,601.10,Redacted Personal Data,FOSTER PARENT,Adoption Allowances,Adoption Allowances,Adoption Allowances
Cambridgeshire County Council,05-Jun-23,51301998607,609.44,Redacted Personal Data,PARENT/GUARDIAN,Adoption Allowances,Adoption Allowances,Adoption Allowances
Cambridgeshire County Council,05-Jun-23,51301989009,612.00,DRAINCO SERVICES LTD,COMPANY,County Farms,County Farms,County Farms Maintenance unplanned
Cambridgeshire County Council,05-Jun-23,51301998953,612.00,Redacted Personal Data,FOSTER PARENT,Fostering,FCP allowances,Adoption Allowances
Cambridgeshire County Council,05-Jun-23,51301998896,612.00,Redacted Personal Data,FOSTER PARENT,Fostering,FCP allowances,Adoption Allowances
Cambridgeshire County Council,05-Jun-23,51301998890,612.00,Redacted Personal Data,FOSTER PARENT,Fostering,FCP allowances,Adoption Allowances
Cambridgeshire County Council,05-Jun-23,51301998891,612.00,Redacted Personal Data,FOSTER PARENT,Fostering,FCP allowances,Adoption Allowances
Cambridgeshire County Council,05-Jun-23,51301998795,612.00,Redacted Personal Data,FOSTER PARENT,Fostering,FCP allowances,Childrens Lodgings
Cambridgeshire County Council,05-Jun-23,51301998796,612.00,Redacted Personal Data,FOSTER PARENT,Fostering,FCP allowances,Childrens Lodgings
Cambridgeshire County Council,05-Jun-23,51301999041,612.00,Redacted Personal Data,INDIVIDUAL,Fostering,FCP allowances,Adoption Allowances
Cambridgeshire County Council,05-Jun-23,51301999004,612.00,Redacted Personal Data,FOSTER PARENT,Fostering,FCP allowances,Adoption Allowances
Cambridgeshire County Council,05-Jun-23,51301998883,612.00,Redacted Personal Data,PARENT/GUARDIAN,Unaccompanied Asylum Seeking Children,Separated Migrant Children < 18,Adoption Allowances
Cambridgeshire County Council,05-Jun-23,51301994121,616.00,IMPERIAL COLLEGE PROJECTS LIMITED,TRADE SUPPLIER,Coroners,Coroners General,Testing
Cambridgeshire County Council,05-Jun-23,51301996536,625.95,QUALITY HOMECARE,CARE ESTABLISHMENT,OPPD - Cost of Care - City South - Over 65,Older People - City & South - Care,Domiciliary Care
Cambridgeshire County Council,05-Jun-23,51301997679,629.16,PBS Care,CARE ESTABLISHMENT,OPPD - Cost of Care - Huntingdon - Over 65,Hunts OP Team - Care,Domiciliary Care
Cambridgeshire County Council,05-Jun-23,51301998760,630.00,Redacted Personal Data,FOSTER PARENT,Adoption Allowances,Adoption Allowances,Adoption Allowances
Cambridgeshire County Council,05-Jun-23,51301998093,630.00,Alves iCare Ltd,CARE ESTABLISHMENT,LD - East Locality - Cost of Care,LD - East Cambs - Special Needs,Domiciliary Care
Cambridgeshire County Council,05-Jun-23,51301998093,630.00,Alves iCare Ltd,CARE ESTABLISHMENT,LD - East Locality - Cost of Care,LD - East Cambs - Special Needs,Domiciliary Care
Cambridgeshire County Council,05-Jun-23,51301998093,630.00,Alves iCare Ltd,CARE ESTABLISHMENT,LD - East Locality - Cost of Care,LD - East Cambs - Special Needs,Domiciliary Care
Cambridgeshire County Council,05-Jun-23,51301998093,630.00,Alves iCare Ltd,CARE ESTABLISHMENT,LD - East Locality - Cost of Care,LD - East Cambs - Special Needs,Domiciliary Care
Cambridgeshire County Council,05-Jun-23,51301998093,630.00,Alves iCare Ltd,CARE ESTABLISHMENT,LD - East Locality - Cost of Care,LD - East Cambs - Special Needs,Domiciliary Care
Cambridgeshire County Council,05-Jun-23,51301998093,630.00,Alves iCare Ltd,CARE ESTABLISHMENT,LD - East Locality - Cost of Care,LD - East Cambs - Special Needs,Domiciliary Care
Cambridgeshire County Council,05-Jun-23,51301998093,630.00,Alves iCare Ltd,CARE ESTABLISHMENT,LD - East Locality - Cost of Care,LD - East Cambs - Special Needs,Domiciliary Care
Cambridgeshire County Council,05-Jun-23,51301998093,630.00,Alves iCare Ltd,CARE ESTABLISHMENT,LD - East Locality - Cost of Care,LD - East Cambs - Special Needs,Domiciliary Care
Cambridgeshire County Council,05-Jun-23,51301998853,634.00,Redacted Personal Data,FOSTER PARENT,Fostering,FCP allowances,Adoption Allowances
Cambridgeshire County Council,05-Jun-23,51301998816,634.00,Redacted Personal Data,INDIVIDUAL,Fostering,FCP allowances,Childrens Lodgings
Cambridgeshire County Council,05-Jun-23,51301998924,634.00,Redacted Personal Data,FOSTER PARENT,Fostering,FCP allowances,Adoption Allowances
Cambridgeshire County Council,05-Jun-23,51301998830,634.00,Redacted Personal Data,FOSTER PARENT,Fostering,FCP allowances,Childrens Lodgings
Cambridgeshire County Council,05-Jun-23,51301996806,645.90,AVAILL HEALTHCARE,CARE ESTABLISHMENT,LD - East Locality - Cost of Care,LD - East Cambs - Care,Domiciliary Care
Cambridgeshire County Council,05-Jun-23,51301996806,645.90,AVAILL HEALTHCARE,CARE ESTABLISHMENT,LD - East Locality - Cost of Care,LD - East Cambs - Care,Domiciliary Care
Cambridgeshire County Council,05-Jun-23,51301996806,645.90,AVAILL HEALTHCARE,CARE ESTABLISHMENT,LD - East Locality - Cost of Care,LD - East Cambs - Care,Domiciliary Care
Cambridgeshire County Council,05-Jun-23,51301997230,651.63,WESTMINSTER HOMECARE LIMITED,CARE ESTABLISHMENT,OPPD - Cost of Care - City South - Over 65,Older People - City & South - Care,Domiciliary Care
Cambridgeshire County Council,05-Jun-23,51301997230,651.63,WESTMINSTER HOMECARE LIMITED,CARE ESTABLISHMENT,OPPD - Cost of Care - City South - Over 65,Older People - City & South - Care,Domiciliary Care
Cambridgeshire County Council,05-Jun-23,51301997230,651.63,WESTMINSTER HOMECARE LIMITED,CARE ESTABLISHMENT,OPPD - Cost of Care - City South - Over 65,Older People - City & South - Care,Domiciliary Care
Cambridgeshire County Council,05-Jun-23,51301997230,651.63,WESTMINSTER HOMECARE LIMITED,CARE ESTABLISHMENT,OPPD - Cost of Care - City South - Over 65,Older People - City & South - Care,Domiciliary Care
Cambridgeshire County Council,05-Jun-23,51301997047,651.63,Beaumont HEALTHCARE LTD,CARE ESTABLISHMENT,OPPD - Cost of Care - City South - Over 65,Older People - City & South - Care,Domiciliary Care
Cambridgeshire County Council,05-Jun-23,51301997902,654.12,Starry Care Uk Ltd,COMPANY,OPPD - Cost of Care - Fenland - Over 65,Older People - Fenland - Care,Domiciliary Care
Cambridgeshire County Council,05-Jun-23,51301990363,656.94,ESPO,TRADE SUPPLIER,IHPS - South Day Services,Horizon,Specialist Supplies and Materials
Cambridgeshire County Council,05-Jun-23,51301996810,661.82,PROMINENT VENTURES LTD T/A KARE PLUS CAMBRIDGE,CARE ESTABLISHMENT,OPPD - Cost of Care - City South - Over 65,Older People - City & South - Care,Domiciliary Care
Cambridgeshire County Council,05-Jun-23,51301996810,661.82,PROMINENT VENTURES LTD T/A KARE PLUS CAMBRIDGE,CARE ESTABLISHMENT,OPPD - Cost of Care - City South - Over 65,Older People - City & South - Care,Domiciliary Care
Cambridgeshire County Council,05-Jun-23,51301996810,661.82,PROMINENT VENTURES LTD T/A KARE PLUS CAMBRIDGE,CARE ESTABLISHMENT,OPPD - Cost of Care - City South - Over 65,Older People - City & South - Care,Domiciliary Care
Cambridgeshire County Council,05-Jun-23,51301984544,663.00,EUCLID LIMITED (DENMEAD),TRADE SUPPLIER,Corporate Offices,County Offices General,General Office Expenses & Stationery
Cambridgeshire County Council,05-Jun-23,51301997719,664.65,Reliance Care Services Ltd,COMPANY,OPPD - Cost of Care - City South - Over 65,Older People - City & South - Care,Domiciliary Care
Cambridgeshire County Council,05-Jun-23,51301997719,664.65,Reliance Care Services Ltd,COMPANY,OPPD - Cost of Care - City South - Over 65,Older People - City & South - Care,Domiciliary Care
Cambridgeshire County Council,05-Jun-23,51301997719,664.65,Reliance Care Services Ltd,COMPANY,OPPD - Cost of Care - City South - Over 65,Older People - City & South - Care,Domiciliary Care
Cambridgeshire County Council,05-Jun-23,51301997719,664.65,Reliance Care Services Ltd,COMPANY,OPPD - Cost of Care - City South - Over 65,Older People - City & South - Care,Domiciliary Care
Cambridgeshire County Council,05-Jun-23,51301998952,674.00,Redacted Personal Data,FOSTER PARENT,Fostering,FCP allowances,Adoption Allowances
Cambridgeshire County Council,05-Jun-23,51301998794,674.00,Redacted Personal Data,FOSTER PARENT,Fostering,FCP allowances,Childrens Lodgings
Cambridgeshire County Council,05-Jun-23,51301998909,674.00,Redacted Personal Data,FOSTER PARENT,Fostering,FCP allowances,Adoption Allowances
Cambridgeshire County Council,05-Jun-23,51301998910,674.00,Redacted Personal Data,FOSTER PARENT,Fostering,FCP allowances,Adoption Allowances
Cambridgeshire County Council,05-Jun-23,51301999040,674.00,Redacted Personal Data,INDIVIDUAL,Fostering,FCP allowances,Adoption Allowances
Cambridgeshire County Council,05-Jun-23,51301990324,675.24,AG FAMILY SUPPORT LTD,OTHER PUBLIC BODIES,Contact,Contact Relief,Professional Fees and Hired Services
Cambridgeshire County Council,05-Jun-23,51301996605,682.29,Careuk247 Home Care Ltd,COMPANY,OPPD - Under 65 - City South,OPPD - Under 65 - City South,Domiciliary Care
Cambridgeshire County Council,05-Jun-23,51301996605,682.29,Careuk247 Home Care Ltd,COMPANY,OPPD - Under 65 - City South,OPPD - Under 65 - City South,Domiciliary Care
Cambridgeshire County Council,05-Jun-23,51301996605,682.29,Careuk247 Home Care Ltd,COMPANY,OPPD - Under 65 - City South,OPPD - Under 65 - City South,Domiciliary Care
Cambridgeshire County Council,05-Jun-23,51301997724,685.75,Reliance Care Services Ltd,COMPANY,OPPD - Cost of Care - City South - Over 65,Older People - City & South - Care,Domiciliary Care
Cambridgeshire County Council,05-Jun-23,51301997724,685.75,Reliance Care Services Ltd,COMPANY,OPPD - Cost of Care - City South - Over 65,Older People - City & South - Care,Domiciliary Care
Cambridgeshire County Council,05-Jun-23,51301997724,685.75,Reliance Care Services Ltd,COMPANY,OPPD - Cost of Care - City South - Over 65,Older People - City & South - Care,Domiciliary Care
Cambridgeshire County Council,05-Jun-23,51301997724,685.75,Reliance Care Services Ltd,COMPANY,OPPD - Cost of Care - City South - Over 65,Older People - City & South - Care,Domiciliary Care
Cambridgeshire County Council,05-Jun-23,51301998495,688.20,Redacted Personal Data,FOSTER PARENT,Adoption Allowances,Adoption Allowances,Adoption Allowances
Cambridgeshire County Council,05-Jun-23,51301990157,689.36,CARING TOGETHER CHARITY,CARE ESTABLISHMENT,Community Support Service,Community Support Service ECF,Grants to Voluntary Bodies
Cambridgeshire County Council,05-Jun-23,51301990354,689.36,CARING TOGETHER CHARITY,CARE ESTABLISHMENT,Community Support Service,Community Support Service ECF,Grants to Voluntary Bodies
Cambridgeshire County Council,05-Jun-23,51301996980,696.57,Beaumont HEALTHCARE LTD,CARE ESTABLISHMENT,OPPD - Cost of Care - Huntingdon - Over 65,Hunts OP Team - Care,Domiciliary Care
Cambridgeshire County Council,05-Jun-23,51301996980,696.57,Beaumont HEALTHCARE LTD,CARE ESTABLISHMENT,OPPD - Cost of Care - Huntingdon - Over 65,Hunts OP Team - Care,Domiciliary Care
Cambridgeshire County Council,05-Jun-23,51301996980,696.57,Beaumont HEALTHCARE LTD,CARE ESTABLISHMENT,OPPD - Cost of Care - Huntingdon - Over 65,Hunts OP Team - Care,Domiciliary Care
Cambridgeshire County Council,05-Jun-23,51301999090,712.00,Redacted Personal Data,PARENT/GUARDIAN,Home to School Transport - Mainstream,Home to School Transport Mainstream - Secondary,Contribution To Transport Related Provisions
Cambridgeshire County Council,05-Jun-23,51301998073,718.41,Ray Care Services,CARE ESTABLISHMENT,OPPD - Cost of Care - City South - Over 65,Older People - City & South - Care,Domiciliary Care
Cambridgeshire County Council,05-Jun-23,51301998073,718.41,Ray Care Services,CARE ESTABLISHMENT,OPPD - Cost of Care - City South - Over 65,Older People - City & South - Care,Domiciliary Care
Cambridgeshire County Council,05-Jun-23,51301998073,718.41,Ray Care Services,CARE ESTABLISHMENT,OPPD - Cost of Care - City South - Over 65,Older People - City & South - Care,Domiciliary Care
Cambridgeshire County Council,05-Jun-23,51301998073,718.41,Ray Care Services,CARE ESTABLISHMENT,OPPD - Cost of Care - City South - Over 65,Older People - City & South - Care,Domiciliary Care
Cambridgeshire County Council,05-Jun-23,51301998073,718.41,Ray Care Services,CARE ESTABLISHMENT,OPPD - Cost of Care - City South - Over 65,Older People - City & South - Care,Domiciliary Care
Cambridgeshire County Council,05-Jun-23,51301998073,718.41,Ray Care Services,CARE ESTABLISHMENT,OPPD - Cost of Care - City South - Over 65,Older People - City & South - Care,Domiciliary Care
Cambridgeshire County Council,05-Jun-23,51301996536,730.28,QUALITY HOMECARE,CARE ESTABLISHMENT,OPPD - Cost of Care - City South - Over 65,Older People - City & South - Care,Domiciliary Care
Cambridgeshire County Council,05-Jun-23,51301996536,730.28,QUALITY HOMECARE,CARE ESTABLISHMENT,OPPD - Cost of Care - City South - Over 65,Older People - City & South - Care,Domiciliary Care
Cambridgeshire County Council,05-Jun-23,51301996536,730.28,QUALITY HOMECARE,CARE ESTABLISHMENT,OPPD - Cost of Care - City South - Over 65,Older People - City & South - Care,Domiciliary Care
Cambridgeshire County Council,05-Jun-23,51301996536,730.28,QUALITY HOMECARE,CARE ESTABLISHMENT,OPPD - Cost of Care - City South - Over 65,Older People - City & South - Care,Domiciliary Care
Cambridgeshire County Council,05-Jun-23,51301998073,731.83,Ray Care Services,CARE ESTABLISHMENT,OPPD - Cost of Care - City South - Over 65,Older People - City & South - Care,Domiciliary Care
Cambridgeshire County Council,05-Jun-23,51301996502,734.58,TCS Medicare Ltd (Trinity care),CARE ESTABLISHMENT,OPPD - Cost of Care - City South - Over 65,Older People - City & South - Care,Domiciliary Care
Cambridgeshire County Council,05-Jun-23,51301998839,736.00,Redacted Personal Data,FOSTER PARENT,Fostering,FCP allowances,Adoption Allowances
Cambridgeshire County Council,05-Jun-23,51301998916,736.00,Redacted Personal Data,FOSTER PARENT,Fostering,FCP allowances,Adoption Allowances
Cambridgeshire County Council,05-Jun-23,51301998948,736.00,Redacted Personal Data,FOSTER PARENT,Fostering,FCP allowances,Adoption Allowances
Cambridgeshire County Council,05-Jun-23,51301999014,736.00,Redacted Personal Data,FOSTER PARENT,Fostering,FCP allowances,Adoption Allowances
Cambridgeshire County Council,05-Jun-23,51301999013,736.00,Redacted Personal Data,FOSTER PARENT,Fostering,FCP allowances,Adoption Allowances
Cambridgeshire County Council,05-Jun-23,51301998809,736.00,Redacted Personal Data,FOSTER PARENT,Fostering,FCP allowances,Adoption Allowances
Cambridgeshire County Council,05-Jun-23,51301998814,736.00,Redacted Personal Data,FOSTER PARENT,Fostering,FCP allowances,Adoption Allowances
Cambridgeshire County Council,05-Jun-23,51301998815,736.00,Redacted Personal Data,FOSTER PARENT,Fostering,FCP allowances,Adoption Allowances
Cambridgeshire County Council,05-Jun-23,51301998819,736.00,Redacted Personal Data,FOSTER PARENT,Fostering,FCP allowances,Adoption Allowances
Cambridgeshire County Council,05-Jun-23,51301998972,736.00,Redacted Personal Data,INDIVIDUAL,Fostering,FCP allowances,Adoption Allowances
Cambridgeshire County Council,05-Jun-23,51301998920,736.00,Redacted Personal Data,FOSTER PARENT,Fostering,FCP allowances,Adoption Allowances
Cambridgeshire County Council,05-Jun-23,51301998921,736.00,Redacted Personal Data,FOSTER PARENT,Fostering,FCP allowances,Adoption Allowances
Cambridgeshire County Council,05-Jun-23,51301996811,738.15,Frontal Care Ltd,COMPANY,OPPD - Cost of Care - Huntingdon - Over 65,Hunts OP Team - Care,Domiciliary Care
Cambridgeshire County Council,05-Jun-23,51301996811,738.15,Frontal Care Ltd,COMPANY,OPPD - Cost of Care - Huntingdon - Over 65,Hunts OP Team - Care,Domiciliary Care
Cambridgeshire County Council,05-Jun-23,51301996811,738.15,Frontal Care Ltd,COMPANY,OPPD - Cost of Care - Huntingdon - Over 65,Hunts OP Team - Care,Domiciliary Care
Cambridgeshire County Council,05-Jun-23,51301996811,738.15,Frontal Care Ltd,COMPANY,OPPD - Cost of Care - Huntingdon - Over 65,Hunts OP Team - Care,Domiciliary Care
Cambridgeshire County Council,05-Jun-23,51301998615,739.94,Redacted Personal Data,FOSTER PARENT,Adoption Allowances,Adoption Allowances,Adoption Allowances
Cambridgeshire County Council,05-Jun-23,51301997735,741.51,MIHOMECARE LTD (THE CARE AGENCY),CARE ESTABLISHMENT,OPPD - Cost of Care - Fenland - Over 65,Older People - Fenland - Care,Domiciliary Care
Cambridgeshire County Council,05-Jun-23,51301996533,741.51,QUALITY HOMECARE,CARE ESTABLISHMENT,OPPD - Cost of Care - East Cambs - Over 65,East Cambs - O P Team - Care,Domiciliary Care
Cambridgeshire County Council,05-Jun-23,51301998619,748.14,Redacted Personal Data,PARENT/GUARDIAN,Adoption Allowances,Adoption Allowances,Adoption Allowances
Cambridgeshire County Council,05-Jun-23,51301998418,750.00,Redacted Personal Data,INDIVIDUAL,Adoption Allowances,Adoption Allowances,Adoption Allowances
Cambridgeshire County Council,05-Jun-23,51301998419,750.00,Redacted Personal Data,INDIVIDUAL,Adoption Allowances,Adoption Allowances,Adoption Allowances
Cambridgeshire County Council,05-Jun-23,51301998180,750.64,Elite care,CARE ESTABLISHMENT,Unaccompanied Asylum Seeking Children,Separated Migrant Children > 18,Living Spport Grants - Financial Assistance 18+
Cambridgeshire County Council,05-Jun-23,51301998198,754.28,LOCATE ACCOMMODATION,CARE ESTABLISHMENT,Unaccompanied Asylum Seeking Children,Separated Migrant Children > 18,Living Spport Grants - Financial Assistance 18+
Cambridgeshire County Council,05-Jun-23,51301984556,756.10,Aurora Fairway School (Beechkeys Ltd ),EDUCATION,SEN Placements,Independent Education Placements,Independent School Placements
Cambridgeshire County Council,05-Jun-23,51301998200,762.60,LOCATE ACCOMMODATION,CARE ESTABLISHMENT,Unaccompanied Asylum Seeking Children,Separated Migrant Children > 18,Living Spport Grants - Financial Assistance 18+
Cambridgeshire County Council,05-Jun-23,51301998201,762.60,LOCATE ACCOMMODATION,CARE ESTABLISHMENT,Unaccompanied Asylum Seeking Children,Separated Migrant Children > 18,Living Spport Grants - Financial Assistance 18+
Cambridgeshire County Council,05-Jun-23,51301998202,762.60,LOCATE ACCOMMODATION,CARE ESTABLISHMENT,Unaccompanied Asylum Seeking Children,Separated Migrant Children > 18,Living Spport Grants - Financial Assistance 18+
Cambridgeshire County Council,05-Jun-23,51301998759,781.00,Redacted Personal Data,FOSTER PARENT,Adoption Allowances,Adoption Allowances,Adoption Allowances
Cambridgeshire County Council,05-Jun-23,51301996476,786.45,QUALITY HOMECARE,CARE ESTABLISHMENT,OPPD - Cost of Care - East Cambs - Over 65,East Cambs - O P Team - Care,Domiciliary Care
Cambridgeshire County Council,05-Jun-23,51301996476,786.45,QUALITY HOMECARE,CARE ESTABLISHMENT,OPPD - Cost of Care - East Cambs - Over 65,East Cambs - O P Team - Care,Domiciliary Care
Cambridgeshire County Council,05-Jun-23,51301996476,786.45,QUALITY HOMECARE,CARE ESTABLISHMENT,OPPD - Cost of Care - East Cambs - Over 65,East Cambs - O P Team - Care,Domiciliary Care
Cambridgeshire County Council,05-Jun-23,51301996476,786.45,QUALITY HOMECARE,CARE ESTABLISHMENT,OPPD - Cost of Care - East Cambs - Over 65,East Cambs - O P Team - Care,Domiciliary Care
Cambridgeshire County Council,05-Jun-23,51301996476,786.45,QUALITY HOMECARE,CARE ESTABLISHMENT,OPPD - Cost of Care - East Cambs - Over 65,East Cambs - O P Team - Care,Domiciliary Care
Cambridgeshire County Council,05-Jun-23,51301996476,786.45,QUALITY HOMECARE,CARE ESTABLISHMENT,OPPD - Cost of Care - East Cambs - Over 65,East Cambs - O P Team - Care,Domiciliary Care
Cambridgeshire County Council,05-Jun-23,51301996476,786.45,QUALITY HOMECARE,CARE ESTABLISHMENT,OPPD - Cost of Care - East Cambs - Over 65,East Cambs - O P Team - Care,Domiciliary Care
Cambridgeshire County Council,05-Jun-23,51301996485,786.45,QUALITY HOMECARE,CARE ESTABLISHMENT,OPPD - Cost of Care - City South - Over 65,Older People - City & South - Care,Domiciliary Care
Cambridgeshire County Council,05-Jun-23,51301996485,786.45,QUALITY HOMECARE,CARE ESTABLISHMENT,OPPD - Cost of Care - City South - Over 65,Older People - City & South - Care,Domiciliary Care
Cambridgeshire County Council,05-Jun-23,51301998076,786.45,Faith Care Line Services Ltd,CARE ESTABLISHMENT,AMH Hunts and Fens - care,Hunts and Fens Adult Mental Health Team,Domiciliary Care
Cambridgeshire County Council,05-Jun-23,51301998076,786.45,Faith Care Line Services Ltd,CARE ESTABLISHMENT,AMH Hunts and Fens - care,Hunts and Fens Adult Mental Health Team,Domiciliary Care
Cambridgeshire County Council,05-Jun-23,51301998076,786.45,Faith Care Line Services Ltd,CARE ESTABLISHMENT,AMH Hunts and Fens - care,Hunts and Fens Adult Mental Health Team,Domiciliary Care
Cambridgeshire County Council,05-Jun-23,51301996687,786.66,PROMINENT VENTURES LTD T/A KARE PLUS CAMBRIDGE,CARE ESTABLISHMENT,OPPD - Cost of Care - City South - Over 65,Older People - City & South - Care,Domiciliary Care
Cambridgeshire County Council,05-Jun-23,51301998117,800.00,TWO CAN TALK,EDUCATION,Early Years Specialist Support,SEND - Independent Therapy,Independent School Placements
Cambridgeshire County Council,05-Jun-23,51301998775,800.00,Redacted Personal Data,PARENT/GUARDIAN,Adoption Allowances,Adoption Allowances,Adoption Allowances
Cambridgeshire County Council,05-Jun-23,51301998776,800.00,Redacted Personal Data,PARENT/GUARDIAN,Adoption Allowances,Adoption Allowances,Adoption Allowances
Cambridgeshire County Council,05-Jun-23,51301994553,800.00,EAQ,EDUCATION,Out of School Tuition,Out of School Provision EHCPs,Independent School Placements
Cambridgeshire County Council,05-Jun-23,51301994554,800.00,EAQ,EDUCATION,Out of School Tuition,Out of School Provision EHCPs,Independent School Placements
Cambridgeshire County Council,05-Jun-23,51301994562,800.00,EAQ,EDUCATION,Out of School Tuition,Out of School Provision EHCPs,Independent School Placements
Cambridgeshire County Council,05-Jun-23,51301992764,807.06,PSL Print Management LTD,COMPANY,Shared Services Business Systems,Business Systems,Printing
Cambridgeshire County Council,05-Jun-23,51301998653,809.06,Redacted Personal Data,FOSTER PARENT,Adoption Allowances,Adoption Allowances,Adoption Allowances
Cambridgeshire County Council,05-Jun-23,51301998073,812.35,Ray Care Services,CARE ESTABLISHMENT,OPPD - Cost of Care - City South - Over 65,Older People - City & South - Care,Domiciliary Care
Cambridgeshire County Council,05-Jun-23,51301998073,812.35,Ray Care Services,CARE ESTABLISHMENT,OPPD - Cost of Care - City South - Over 65,Older People - City & South - Care,Domiciliary Care
Cambridgeshire County Council,05-Jun-23,51301998073,812.35,Ray Care Services,CARE ESTABLISHMENT,OPPD - Cost of Care - City South - Over 65,Older People - City & South - Care,Domiciliary Care
Cambridgeshire County Council,05-Jun-23,51301998073,812.35,Ray Care Services,CARE ESTABLISHMENT,OPPD - Cost of Care - City South - Over 65,Older People - City & South - Care,Domiciliary Care
Cambridgeshire County Council,05-Jun-23,51301998073,812.35,Ray Care Services,CARE ESTABLISHMENT,OPPD - Cost of Care - City South - Over 65,Older People - City & South - Care,Domiciliary Care
Cambridgeshire County Council,05-Jun-23,51301998073,812.35,Ray Care Services,CARE ESTABLISHMENT,OPPD - Cost of Care - City South - Over 65,Older People - City & South - Care,Domiciliary Care
Cambridgeshire County Council,05-Jun-23,51301998073,812.35,Ray Care Services,CARE ESTABLISHMENT,OPPD - Cost of Care - City South - Over 65,Older People - City & South - Care,Domiciliary Care
Cambridgeshire County Council,05-Jun-23,51301998833,815.29,Redacted Personal Data,PARENT/GUARDIAN,Fostering,FCP allowances,Childrens Lodgings
Cambridgeshire County Council,05-Jun-23,51301998617,817.70,Redacted Personal Data,FOSTER PARENT,Adoption Allowances,Adoption Allowances,Adoption Allowances
Cambridgeshire County Council,05-Jun-23,51301989486,818.22,POSTURITE (UK) LTD,TRADE SUPPLIER,OPPD - Staffing - Fenland,Older People - Fenland - Staffing,Staff health & welfare Costs
Cambridgeshire County Council,05-Jun-23,51301996377,823.60,CHS GROUP,CARE ESTABLISHMENT,OPPD - Cost of Care - City South - Over 65,Older People - City & South - Care,Supported Living
Cambridgeshire County Council,05-Jun-23,51301998811,838.00,Redacted Personal Data,FOSTER PARENT,Fostering,FCP allowances,Adoption Allowances
Cambridgeshire County Council,05-Jun-23,51301998843,838.00,Redacted Personal Data,FOSTER PARENT,Fostering,FCP allowances,Adoption Allowances
Cambridgeshire County Council,05-Jun-23,51301998844,838.00,Redacted Personal Data,FOSTER PARENT,Fostering,FCP allowances,Adoption Allowances
Cambridgeshire County Council,05-Jun-23,51301998813,838.00,Redacted Personal Data,FOSTER PARENT,Fostering,FCP allowances,Adoption Allowances
Cambridgeshire County Council,05-Jun-23,51301999028,838.00,Redacted Personal Data,FOSTER PARENT,Fostering,FCP allowances,Adoption Allowances
Cambridgeshire County Council,05-Jun-23,51301998988,838.00,Redacted Personal Data,PARENT/GUARDIAN,Fostering,FCP allowances,Adoption Allowances
Cambridgeshire County Council,05-Jun-23,51301998957,838.00,Redacted Personal Data,PARENT/GUARDIAN,Fostering,FCP allowances,Adoption Allowances
Cambridgeshire County Council,05-Jun-23,51301998861,838.00,Redacted Personal Data,FOSTER PARENT,Fostering,FCP allowances,Adoption Allowances
Cambridgeshire County Council,05-Jun-23,51301998973,838.00,Redacted Personal Data,INDIVIDUAL,Fostering,FCP allowances,Adoption Allowances
Cambridgeshire County Council,05-Jun-23,51301999033,838.00,Redacted Personal Data,FOSTER PARENT,Fostering,FCP allowances,Adoption Allowances
Cambridgeshire County Council,05-Jun-23,51301998856,838.00,Redacted Personal Data,FOSTER PARENT,Fostering,FCP allowances,Adoption Allowances
Cambridgeshire County Council,05-Jun-23,51301998894,838.00,Redacted Personal Data,FOSTER PARENT,Fostering,FCP allowances,Adoption Allowances
Cambridgeshire County Council,05-Jun-23,51301998895,838.00,Redacted Personal Data,FOSTER PARENT,Fostering,FCP allowances,Adoption Allowances
Cambridgeshire County Council,05-Jun-23,51301998877,838.00,Redacted Personal Data,FOSTER PARENT,Fostering,FCP allowances,Adoption Allowances
Cambridgeshire County Council,05-Jun-23,51301998878,838.00,Redacted Personal Data,FOSTER PARENT,Fostering,FCP allowances,Adoption Allowances
Cambridgeshire County Council,05-Jun-23,51301998940,838.00,Redacted Personal Data,FOSTER PARENT,Fostering,FCP allowances,Adoption Allowances
Cambridgeshire County Council,05-Jun-23,51301998941,838.00,Redacted Personal Data,FOSTER PARENT,Fostering,FCP allowances,Adoption Allowances
Cambridgeshire County Council,05-Jun-23,51301998960,838.00,Redacted Personal Data,FOSTER PARENT,Fostering,FCP allowances,Adoption Allowances
Cambridgeshire County Council,05-Jun-23,51301999026,838.00,Redacted Personal Data,FOSTER PARENT,Fostering,FCP allowances,Adoption Allowances
Cambridgeshire County Council,05-Jun-23,51301984711,849.46,Evolve Intervention Ltd,EDUCATION,Out of School Tuition,Out of School Provision EHCPs,Independent School Placements
Cambridgeshire County Council,05-Jun-23,51301988936,850.00,MARK STEPHEN LAND MANAGEMENT,TRADE SUPPLIER,"County Planning, Minerals & Waste","County Planning, Minerals & Waste",Professional Fees and Hired Services
Cambridgeshire County Council,05-Jun-23,51301996502,857.01,TCS Medicare Ltd (Trinity care),CARE ESTABLISHMENT,OPPD - Cost of Care - City South - Over 65,Older People - City & South - Care,Domiciliary Care
Cambridgeshire County Council,05-Jun-23,51301996502,857.01,TCS Medicare Ltd (Trinity care),CARE ESTABLISHMENT,OPPD - Cost of Care - City South - Over 65,Older People - City & South - Care,Domiciliary Care
Cambridgeshire County Council,05-Jun-23,51301996502,857.01,TCS Medicare Ltd (Trinity care),CARE ESTABLISHMENT,OPPD - Cost of Care - City South - Over 65,Older People - City & South - Care,Domiciliary Care
Cambridgeshire County Council,05-Jun-23,51301998179,861.36,Elite care,CARE ESTABLISHMENT,Unaccompanied Asylum Seeking Children,Separated Migrant Children > 18,Living Spport Grants - Financial Assistance 18+
Cambridgeshire County Council,05-Jun-23,51301997735,865.10,MIHOMECARE LTD (THE CARE AGENCY),CARE ESTABLISHMENT,OPPD - Cost of Care - Fenland - Over 65,Older People - Fenland - Care,Domiciliary Care
Cambridgeshire County Council,05-Jun-23,51301997735,865.10,MIHOMECARE LTD (THE CARE AGENCY),CARE ESTABLISHMENT,OPPD - Cost of Care - Fenland - Over 65,Older People - Fenland - Care,Domiciliary Care
Cambridgeshire County Council,05-Jun-23,51301997735,865.10,MIHOMECARE LTD (THE CARE AGENCY),CARE ESTABLISHMENT,OPPD - Cost of Care - Fenland - Over 65,Older People - Fenland - Care,Domiciliary Care
Cambridgeshire County Council,05-Jun-23,51301997735,865.10,MIHOMECARE LTD (THE CARE AGENCY),CARE ESTABLISHMENT,OPPD - Cost of Care - Fenland - Over 65,Older People - Fenland - Care,Domiciliary Care
Cambridgeshire County Council,05-Jun-23,51301997735,865.10,MIHOMECARE LTD (THE CARE AGENCY),CARE ESTABLISHMENT,OPPD - Cost of Care - Fenland - Over 65,Older People - Fenland - Care,Domiciliary Care
Cambridgeshire County Council,05-Jun-23,51301997735,865.10,MIHOMECARE LTD (THE CARE AGENCY),CARE ESTABLISHMENT,OPPD - Cost of Care - Fenland - Over 65,Older People - Fenland - Care,Domiciliary Care
Cambridgeshire County Council,05-Jun-23,51301997902,872.16,Starry Care Uk Ltd,COMPANY,OPPD - Cost of Care - Fenland - Over 65,Older People - Fenland - Care,Domiciliary Care
Cambridgeshire County Council,05-Jun-23,51301998855,878.00,Redacted Personal Data,FOSTER PARENT,Unaccompanied Asylum Seeking Children,Separated Migrant Children < 18,Adoption Allowances
Cambridgeshire County Council,05-Jun-23,51301998860,878.00,Redacted Personal Data,FOSTER PARENT,Unaccompanied Asylum Seeking Children,Separated Migrant Children < 18,Adoption Allowances
Cambridgeshire County Council,05-Jun-23,51301998959,878.00,Redacted Personal Data,FOSTER PARENT,Fostering,FCP allowances,Adoption Allowances
Cambridgeshire County Council,05-Jun-23,51301999024,878.00,Redacted Personal Data,FOSTER PARENT,Fostering,FCP allowances,Adoption Allowances
Cambridgeshire County Council,05-Jun-23,51301999025,878.00,Redacted Personal Data,FOSTER PARENT,Fostering,FCP allowances,Adoption Allowances
Cambridgeshire County Council,05-Jun-23,51301998947,878.00,Redacted Personal Data,FOSTER PARENT,Fostering,FCP allowances,Adoption Allowances
Cambridgeshire County Council,05-Jun-23,51301998993,878.00,Redacted Personal Data,FOSTER PARENT,Fostering,FCP allowances,Adoption Allowances
Cambridgeshire County Council,05-Jun-23,51301998995,878.00,Redacted Personal Data,FOSTER PARENT,Fostering,FCP allowances,Adoption Allowances
Cambridgeshire County Council,05-Jun-23,51301998851,878.00,Redacted Personal Data,FOSTER PARENT,Fostering,FCP allowances,Adoption Allowances
Cambridgeshire County Council,05-Jun-23,51301998852,878.00,Redacted Personal Data,FOSTER PARENT,Fostering,FCP allowances,Adoption Allowances
Cambridgeshire County Council,05-Jun-23,51301998927,878.00,Redacted Personal Data,FOSTER PARENT,Fostering,FCP allowances,Adoption Allowances
Cambridgeshire County Council,05-Jun-23,51301998939,878.00,Redacted Personal Data,FOSTER PARENT,Fostering,FCP allowances,Adoption Allowances
Cambridgeshire County Council,05-Jun-23,51301998946,878.00,Redacted Personal Data,FOSTER PARENT,Fostering,FCP allowances,Adoption Allowances
Cambridgeshire County Council,05-Jun-23,51301998970,878.00,Redacted Personal Data,FOSTER PARENT,Fostering,FCP allowances,Childrens Lodgings
Cambridgeshire County Council,05-Jun-23,51301998881,878.00,Redacted Personal Data,FOSTER PARENT,Fostering,FCP allowances,Adoption Allowances
Cambridgeshire County Council,05-Jun-23,51301998882,878.00,Redacted Personal Data,FOSTER PARENT,Fostering,FCP allowances,Adoption Allowances
Cambridgeshire County Council,05-Jun-23,51301998887,878.00,Redacted Personal Data,FOSTER PARENT,Fostering,FCP allowances,Adoption Allowances
Cambridgeshire County Council,05-Jun-23,51301999019,878.00,Redacted Personal Data,FOSTER PARENT,Fostering,FCP allowances,Adoption Allowances
Cambridgeshire County Council,05-Jun-23,51301999032,878.00,Redacted Personal Data,FOSTER PARENT,Fostering,FCP allowances,Adoption Allowances
Cambridgeshire County Council,05-Jun-23,51301998893,878.00,Redacted Personal Data,FOSTER PARENT,Fostering,FCP allowances,Adoption Allowances
Cambridgeshire County Council,05-Jun-23,51301998854,878.00,Redacted Personal Data,FOSTER PARENT,Fostering,FCP allowances,Adoption Allowances
Cambridgeshire County Council,05-Jun-23,51301999034,878.00,Redacted Personal Data,FOSTER PARENT,Fostering,FCP allowances,Adoption Allowances
Cambridgeshire County Council,05-Jun-23,51301998933,878.00,Redacted Personal Data,FOSTER PARENT,Fostering,FCP allowances,Adoption Allowances
Cambridgeshire County Council,05-Jun-23,51301999021,878.00,Redacted Personal Data,PARENT/GUARDIAN,Fostering,FCP allowances,Adoption Allowances
Cambridgeshire County Council,05-Jun-23,51301999022,878.00,Redacted Personal Data,PARENT/GUARDIAN,Fostering,FCP allowances,Adoption Allowances
Cambridgeshire County Council,05-Jun-23,51301998842,878.00,Redacted Personal Data,FOSTER PARENT,Fostering,FCP allowances,Adoption Allowances
Cambridgeshire County Council,05-Jun-23,51301998906,878.00,Redacted Personal Data,FOSTER PARENT,Fostering,FCP allowances,Adoption Allowances
Cambridgeshire County Council,05-Jun-23,51301999005,878.00,Redacted Personal Data,FOSTER PARENT,Fostering,FCP allowances,Adoption Allowances
Cambridgeshire County Council,05-Jun-23,51301998810,878.00,Redacted Personal Data,FOSTER PARENT,Fostering,FCP allowances,Adoption Allowances
Cambridgeshire County Council,05-Jun-23,51301998808,878.00,Redacted Personal Data,FOSTER PARENT,Fostering,FCP allowances,Adoption Allowances
Cambridgeshire County Council,05-Jun-23,51301998902,878.00,Redacted Personal Data,FOSTER PARENT,Fostering,FCP allowances,Adoption Allowances
Cambridgeshire County Council,05-Jun-23,51301998903,878.00,Redacted Personal Data,FOSTER PARENT,Fostering,FCP allowances,Adoption Allowances
Cambridgeshire County Council,05-Jun-23,51301998968,878.00,Redacted Personal Data,PARENT/GUARDIAN,Fostering,FCP allowances,Adoption Allowances
Cambridgeshire County Council,05-Jun-23,51301998831,878.00,Redacted Personal Data,FOSTER PARENT,Fostering,FCP allowances,Adoption Allowances
Cambridgeshire County Council,05-Jun-23,51301998832,878.00,Redacted Personal Data,FOSTER PARENT,Fostering,FCP allowances,Adoption Allowances
Cambridgeshire County Council,05-Jun-23,51301998859,878.00,Redacted Personal Data,FOSTER PARENT,Fostering,FCP allowances,Adoption Allowances
Cambridgeshire County Council,05-Jun-23,51301998943,878.00,Redacted Personal Data,FOSTER PARENT,Fostering,FCP allowances,Adoption Allowances
Cambridgeshire County Council,05-Jun-23,51301998944,878.00,Redacted Personal Data,FOSTER PARENT,Fostering,FCP allowances,Adoption Allowances
Cambridgeshire County Council,05-Jun-23,51301998914,878.00,Redacted Personal Data,PARENT/GUARDIAN,Fostering,FCP allowances,Adoption Allowances
Cambridgeshire County Council,05-Jun-23,51301998915,878.00,Redacted Personal Data,PARENT/GUARDIAN,Fostering,FCP allowances,Adoption Allowances
Cambridgeshire County Council,05-Jun-23,51301998976,878.00,Redacted Personal Data,FOSTER PARENT,Fostering,FCP allowances,Adoption Allowances
Cambridgeshire County Council,05-Jun-23,51301998977,878.00,Redacted Personal Data,FOSTER PARENT,Fostering,FCP allowances,Adoption Allowances
Cambridgeshire County Council,05-Jun-23,51301998987,878.00,Redacted Personal Data,PARENT/GUARDIAN,Fostering,FCP allowances,Adoption Allowances
Cambridgeshire County Council,05-Jun-23,51301998840,878.00,Redacted Personal Data,PARENT/GUARDIAN,Fostering,FCP allowances,Adoption Allowances
Cambridgeshire County Council,05-Jun-23,51301998935,878.00,Redacted Personal Data,FOSTER PARENT,Fostering,FCP allowances,Adoption Allowances
Cambridgeshire County Council,05-Jun-23,51301998936,878.00,Redacted Personal Data,FOSTER PARENT,Fostering,FCP allowances,Adoption Allowances
Cambridgeshire County Council,05-Jun-23,51301999003,878.00,Redacted Personal Data,FOSTER PARENT,Fostering,FCP allowances,Adoption Allowances
Cambridgeshire County Council,05-Jun-23,51301998951,878.00,Redacted Personal Data,FOSTER PARENT,Fostering,FCP allowances,Adoption Allowances
Cambridgeshire County Council,05-Jun-23,51301999044,878.00,Redacted Personal Data,PARENT/GUARDIAN,Fostering,FCP allowances,Adoption Allowances
Cambridgeshire County Council,05-Jun-23,51301999045,878.00,Redacted Personal Data,PARENT/GUARDIAN,Fostering,FCP allowances,Adoption Allowances
Cambridgeshire County Council,05-Jun-23,51301999046,878.00,Redacted Personal Data,PARENT/GUARDIAN,Fostering,FCP allowances,Adoption Allowances
Cambridgeshire County Council,05-Jun-23,51301999001,878.00,Redacted Personal Data,FOSTER PARENT,Fostering,FCP allowances,Adoption Allowances
Cambridgeshire County Council,05-Jun-23,51301998928,878.00,Redacted Personal Data,FOSTER PARENT,Fostering,FCP allowances,Adoption Allowances
Cambridgeshire County Council,05-Jun-23,51301998962,878.00,Redacted Personal Data,FOSTER PARENT,Fostering,FCP allowances,Adoption Allowances
Cambridgeshire County Council,05-Jun-23,51301998964,878.00,Redacted Personal Data,FOSTER PARENT,Fostering,FCP allowances,Adoption Allowances
Cambridgeshire County Council,05-Jun-23,51301998965,878.00,Redacted Personal Data,FOSTER PARENT,Fostering,FCP allowances,Adoption Allowances
Cambridgeshire County Council,05-Jun-23,51301999007,878.00,Redacted Personal Data,FOSTER PARENT,Fostering,FCP allowances,Adoption Allowances
Cambridgeshire County Council,05-Jun-23,51301998847,878.00,Redacted Personal Data,FOSTER PARENT,Fostering,FCP allowances,Adoption Allowances
Cambridgeshire County Council,05-Jun-23,51301998848,878.00,Redacted Personal Data,FOSTER PARENT,Fostering,FCP allowances,Adoption Allowances
Cambridgeshire County Council,05-Jun-23,51301998954,878.00,Redacted Personal Data,FOSTER PARENT,Fostering,FCP allowances,Adoption Allowances
Cambridgeshire County Council,05-Jun-23,51301998966,878.00,Redacted Personal Data,FOSTER PARENT,Fostering,FCP allowances,Adoption Allowances
Cambridgeshire County Council,05-Jun-23,51301998967,878.00,Redacted Personal Data,FOSTER PARENT,Fostering,FCP allowances,Adoption Allowances
Cambridgeshire County Council,05-Jun-23,51301998793,878.00,Redacted Personal Data,INDIVIDUAL,Fostering,FCP allowances,Adoption Allowances
Cambridgeshire County Council,05-Jun-23,51301996687,882.42,PROMINENT VENTURES LTD T/A KARE PLUS CAMBRIDGE,CARE ESTABLISHMENT,OPPD - Cost of Care - City South - Over 65,Older People - City & South - Care,Domiciliary Care
Cambridgeshire County Council,05-Jun-23,51301996687,882.42,PROMINENT VENTURES LTD T/A KARE PLUS CAMBRIDGE,CARE ESTABLISHMENT,OPPD - Cost of Care - City South - Over 65,Older People - City & South - Care,Domiciliary Care
Cambridgeshire County Council,05-Jun-23,51301996687,882.42,PROMINENT VENTURES LTD T/A KARE PLUS CAMBRIDGE,CARE ESTABLISHMENT,OPPD - Cost of Care - City South - Over 65,Older People - City & South - Care,Domiciliary Care
Cambridgeshire County Council,05-Jun-23,51301996687,882.42,PROMINENT VENTURES LTD T/A KARE PLUS CAMBRIDGE,CARE ESTABLISHMENT,OPPD - Cost of Care - City South - Over 65,Older People - City & South - Care,Domiciliary Care
Cambridgeshire County Council,05-Jun-23,51301996687,882.42,PROMINENT VENTURES LTD T/A KARE PLUS CAMBRIDGE,CARE ESTABLISHMENT,OPPD - Cost of Care - City South - Over 65,Older People - City & South - Care,Domiciliary Care
Cambridgeshire County Council,05-Jun-23,51301996687,882.42,PROMINENT VENTURES LTD T/A KARE PLUS CAMBRIDGE,CARE ESTABLISHMENT,OPPD - Cost of Care - City South - Over 65,Older People - City & South - Care,Domiciliary Care
Cambridgeshire County Council,05-Jun-23,51301996687,882.42,PROMINENT VENTURES LTD T/A KARE PLUS CAMBRIDGE,CARE ESTABLISHMENT,OPPD - Cost of Care - City South - Over 65,Older People - City & South - Care,Domiciliary Care
Cambridgeshire County Council,05-Jun-23,51301996226,898.07,ORWELL HOUSING ASSOCIATION LTD,CARE ESTABLISHMENT,LAC Placements,Placements - 16+,Agency Placements - In County
Cambridgeshire County Council,05-Jun-23,51301997902,906.24,Starry Care Uk Ltd,COMPANY,OPPD - Cost of Care - Fenland - Over 65,Older People - Fenland - Care,Domiciliary Care
Cambridgeshire County Council,05-Jun-23,51301997051,910.04,WESTMINSTER HOMECARE LIMITED,CARE ESTABLISHMENT,OPPD - Cost of Care - City South - Over 65,Older People - City & South - Care,Domiciliary Care
Cambridgeshire County Council,05-Jun-23,51301997051,910.04,WESTMINSTER HOMECARE LIMITED,CARE ESTABLISHMENT,OPPD - Cost of Care - City South - Over 65,Older People - City & South - Care,Domiciliary Care
Cambridgeshire County Council,05-Jun-23,51301997051,910.04,WESTMINSTER HOMECARE LIMITED,CARE ESTABLISHMENT,OPPD - Cost of Care - City South - Over 65,Older People - City & South - Care,Domiciliary Care
Cambridgeshire County Council,05-Jun-23,51301997051,910.04,WESTMINSTER HOMECARE LIMITED,CARE ESTABLISHMENT,OPPD - Cost of Care - City South - Over 65,Older People - City & South - Care,Domiciliary Care
Cambridgeshire County Council,05-Jun-23,51301998358,914.96,Redacted Personal Data,FOSTER PARENT,Adoption Allowances,Adoption Allowances,Adoption Allowances
Cambridgeshire County Council,05-Jun-23,51301991313,949.85,BUCKDEN CE PRIMARY SCHOOL,EDUCATION,Early Years Specialist Support,SEND - Childcare Access Funding,Independent School Placements
Cambridgeshire County Council,05-Jun-23,51301998093,953.91,Alves iCare Ltd,CARE ESTABLISHMENT,LD - East Locality - Cost of Care,LD - East Cambs - Special Needs,Domiciliary Care
Cambridgeshire County Council,05-Jun-23,51301998211,959.28,THE RIVERSIDE GROUP LTD,CARE ESTABLISHMENT,Unaccompanied Asylum Seeking Children,Separated Migrant Children > 18,Living Spport Grants - Financial Assistance 18+
Cambridgeshire County Council,05-Jun-23,51301996813,963.99,AVAILL HEALTHCARE,CARE ESTABLISHMENT,LD - East Locality - Cost of Care,LD - East Cambs - Care,Domiciliary Care
Cambridgeshire County Council,05-Jun-23,51301998598,965.04,Redacted Personal Data,FOSTER PARENT,Fostering,FCP allowances,Enhanced Payments
Cambridgeshire County Council,05-Jun-23,51301998606,965.04,Redacted Personal Data,FOSTER PARENT,Fostering,FCP allowances,Enhanced Payments
Cambridgeshire County Council,05-Jun-23,51301998386,965.04,Redacted Personal Data,FOSTER PARENT,Fostering,FCP allowances,Enhanced Payments
Cambridgeshire County Council,05-Jun-23,51301998620,965.04,Redacted Personal Data,FOSTER PARENT,Fostering,FCP allowances,Enhanced Payments
Cambridgeshire County Council,05-Jun-23,51301998195,983.15,LOCATE ACCOMMODATION,CARE ESTABLISHMENT,Unaccompanied Asylum Seeking Children,Separated Migrant Children > 18,Living Spport Grants - Financial Assistance 18+
Cambridgeshire County Council,05-Jun-23,51301996138,"1,000.00",Redacted Personal Data,INDIVIDUAL,Children's Disability Direct Payments,CSC Direct Payments,Direct Payments
Cambridgeshire County Council,05-Jun-23,51301998209,"1,008.00",Apollo Business Finance Ltd Re. Premier Medical Staffing Limited,COMPANY,Unaccompanied Asylum Seeking Children,Separated Migrant Children > 18,Living Spport Grants - Financial Assistance 18+
Cambridgeshire County Council,05-Jun-23,51301997902,"1,008.48",Starry Care Uk Ltd,COMPANY,OPPD - Cost of Care - Fenland - Over 65,Older People - Fenland - Care,Domiciliary Care
Cambridgeshire County Council,05-Jun-23,51301989389,"1,023.60",Lindsey Wilkinson Landscape Architecture,SOLETRADER,Growth & Development,Quality Charter funding,Professional Fees and Hired Services
Cambridgeshire County Council,05-Jun-23,51301998433,"1,026.00",Redacted Personal Data,INDIVIDUAL,Adoption Allowances,Adoption Allowances,Childcare Costs
Cambridgeshire County Council,05-Jun-23,51301989790,"1,065.03",D LINE MARKINGS LTD,TRADE SUPPLIER,Parking Enforcement,Civil Parking Enforcement,Professional Fees and Hired Services
Cambridgeshire County Council,05-Jun-23,51301998061,"1,083.00",Christine Marie Care,COMPANY,OPPD - Cost of Care - City South - Over 65,Older People - City & South - Care,Domiciliary Care
Cambridgeshire County Council,05-Jun-23,51301990206,"1,089.29",FOSTER BUILDING SERVICES LTD,COMPANY,County Farms,County Farms,County Farms Maintenance unplanned
Cambridgeshire County Council,05-Jun-23,51301998131,"1,114.71",Redacted Personal Data,INDIVIDUAL,Fostering,FCP allowances,Support and Grants to Foster Carers
Cambridgeshire County Council,05-Jun-23,51301989885,"1,116.25",CARING TOGETHER CHARITY,CARE ESTABLISHMENT,Community Support Service,Community Support Service ECF,Grants to Voluntary Bodies
Cambridgeshire County Council,05-Jun-23,51301998669,"1,132.18",Redacted Personal Data,FOSTER PARENT,Adoption Allowances,Adoption Allowances,Adoption Allowances
Cambridgeshire County Council,05-Jun-23,51301998460,"1,148.00",Redacted Personal Data,INDIVIDUAL,Adoption Allowances,Adoption Allowances,Adoption Allowances
Cambridgeshire County Council,05-Jun-23,51301998434,"1,170.00",Redacted Personal Data,INDIVIDUAL,Adoption Allowances,Adoption Allowances,Adoption Allowances
Cambridgeshire County Council,05-Jun-23,51301997905,"1,210.16",Total Healthcare,COMPANY,OPPD - Cost of Care - Huntingdon - Under 65,OPPD - Under 65 - Huntingdon,Domiciliary Care
Cambridgeshire County Council,05-Jun-23,51301997905,"1,210.16",Total Healthcare,COMPANY,OPPD - Cost of Care - Huntingdon - Under 65,OPPD - Under 65 - Huntingdon,Domiciliary Care
Cambridgeshire County Council,05-Jun-23,51301997905,"1,210.16",Total Healthcare,COMPANY,OPPD - Cost of Care - Huntingdon - Under 65,OPPD - Under 65 - Huntingdon,Domiciliary Care
Cambridgeshire County Council,05-Jun-23,51301997905,"1,210.16",Total Healthcare,COMPANY,OPPD - Cost of Care - Huntingdon - Under 65,OPPD - Under 65 - Huntingdon,Domiciliary Care
Cambridgeshire County Council,05-Jun-23,51301997905,"1,210.16",Total Healthcare,COMPANY,OPPD - Cost of Care - Huntingdon - Under 65,OPPD - Under 65 - Huntingdon,Domiciliary Care
Cambridgeshire County Council,05-Jun-23,51301997905,"1,210.16",Total Healthcare,COMPANY,OPPD - Cost of Care - Huntingdon - Under 65,OPPD - Under 65 - Huntingdon,Domiciliary Care
